{"text_format":"3","workbook":"xlsx","n_sheets":1,"sheets":["Sheet1"],"not_rendered":{"defined_names":3},"read":"whole","date_system":"1900"}

{"sheet":"Sheet1","index":0,"n_rows":333,"n_cols":26,"rows_kept":333,"merged":[[1,1,1,25],[2,0,2,22],[3,0,6,0],[3,1,5,2],[3,3,6,3],[3,4,6,4],[3,5,6,5],[3,6,6,6],[3,7,6,7],[3,8,6,8],[3,9,3,12],[3,13,5,20],[3,21,6,21],[3,22,6,22],[3,23,6,23],[3,24,6,24],[3,25,6,25],[4,9,6,9],[4,10,4,11],[4,12,6,12],[6,13,6,14],[6,15,6,16],[6,17,6,18],[6,19,6,20],[7,0,7,7],[8,0,8,3],[8,4,8,7],[14,0,14,3],[14,4,14,7],[16,0,16,3],[16,4,16,7],[18,0,18,3],[18,4,18,7],[29,0,29,3],[29,4,29,7],[31,0,31,3],[31,4,31,7],[41,0,41,3],[41,4,41,7],[177,0,177,3],[177,4,177,7],[185,0,185,3],[185,4,185,7],[216,0,216,3],[216,4,216,7],[218,0,218,3],[218,4,218,7],[234,0,234,3],[234,4,234,7],[237,0,237,3],[237,4,237,7],[265,0,265,3],[265,4,265,7],[272,0,272,3],[272,4,272,7],[326,0,326,3],[326,4,326,7],[331,0,331,3],[331,4,331,7]]}
["附件1"]
[null,"三江侗族自治县2025年计划实施财政衔接乡村振兴补助资金项目资金分配明细表"]
["  填报单位 :县衔接资金项目管理工作专班                                                                                                                                              "]
["序号","项目地点",null,"项目名称","资金投向 \n（项目类型）\n1.乡村建设行动\n2.产业发展\n3.项目管理费\n4.易地搬迁后扶\n5.巩固三保障成果\n6.就业项目","建设性质\n（新建、续建、往年项目资金缺口）","主要建设内容\n（详细说明）","时间进度计划\n（2025年x月--2025年x月）","项目总投资金额\n（万元）","安排资金文号及规模",{"$nulls":3},"受益对象",{"$nulls":7},"主管部门","实施单位","年度绩效目标","联农带农机制","备注"]
[{"$nulls":9},"合计","提前批",null,"县本级\n三财政\n〔2025〕1号\n2246万"]
[{"$nulls":10},"中央","自治区"]
[null,"乡(镇)\n名称","行政\n村名",{"$nulls":7},"桂整合\n〔2024〕29号\n24771万\n","桂整合\n〔2024〕29号\n10068万\n",null,"受益村（个数）",null,"受益总人数",null,"其中：脱贫人口（含监测人员）",null,"其中：易地搬迁对象\n（易安点项目填写）"]
["合计",{"$nulls":7},{"$f":"SUM(I9,I15,I17,I19,I30,I32,I42,I178,I186,I217,I219,I235,I238,I266,I273,I327,I332)","v":49213.487392},{"$f":"SUM(J9,J15,J17,J19,J30,J32,J42,J178,J186,J217,J219,J235,J238,J266,J273,J327,J332)","v":37085},{"$f":"SUM(K9,K15,K17,K19,K30,K32,K42,K178,K186,K217,K219,K235,K238,K266,K273,K327,K332)","v":24771},{"$f":"SUM(L9,L15,L17,L19,L30,L32,L42,L178,L186,L217,L219,L235,L238,L266,L273,L327,L332)","v":10068},{"$f":"SUM(M9,M15,M17,M19,M30,M32,M42,M178,M186,M217,M219,M235,M238,M266,M273,M327,M332)","v":2246},{"$f":"SUM(N9,N15,N17,N19,N30,N32,N42,N178,N186,N217,N219,N235,N238,N266,#REF!,N273,N327,N332)","v":{"$error":"#REF!"}},{"$f":"SUM(O9,O15,O17,O19,O30,O32,O42,O178,O186,O217,O219,O235,O238,O266,#REF!,O273,O327,O332)","v":{"$error":"#REF!"}},{"$f":"SUM(P9,P15,P17,P19,P30,P32,P42,P178,P186,P217,P219,P235,P238,P266,#REF!,P273,P327,P332)","v":{"$error":"#REF!"}},{"$f":"SUM(Q9,Q15,Q17,Q19,Q30,Q32,Q42,Q178,Q186,Q217,Q219,Q235,Q238,Q266,#REF!,Q273,Q327,Q332)","v":{"$error":"#REF!"}},{"$f":"SUM(R9,R15,R17,R19,R30,R32,R42,R178,R186,R217,R219,R235,R238,R266,#REF!,R273,R327,R332)","v":{"$error":"#REF!"}},{"$f":"SUM(S9,S15,S17,S19,S30,S32,S42,S178,S186,S217,S219,S235,S238,S266,#REF!,S273,S327,S332)","v":{"$error":"#REF!"}},{"$f":"SUM(T9,T15,T17,T19,T30,T32,T42,T178,T186,T217,T219,T235,T238,T266,#REF!,T273,T327,T332)","v":{"$error":"#REF!"}},{"$f":"SUM(U9,U15,U17,U19,U30,U32,U42,U178,U186,U217,U219,U235,U238,U266,#REF!,U273,U327,U332)","v":{"$error":"#REF!"}}]
["县发改局",{"$nulls":3},"小计",{"$nulls":3},{"$f":"SUM(I10:I14)","v":739.977187},{"$f":"SUM(J10:J14)","v":598},{"$f":"SUM(K10:K14)","v":528},{"$f":"SUM(L10:L14)","v":70},{"$f":"SUM(M10:M14)","v":0},{"$f":"SUM(N10:N14)","v":2},3,1479,5972,415,1963,19,72]
[1,"丹洲镇","板江社区","丹洲镇板江社区雷洞屯至麻江屯道路提升工程","乡村建设行动","新建","1、新建桥梁两座：分别为桥梁全长23米，宽5.5米及15米引道；桥梁全长20米，宽5.5米及15米引道。2.新建拦水坝一座，长7米及水渠长25米。3.新建挡土墙三幅，总长130米。","2025年1月--2025年12月",113.1855,{"$f":"K10+L10+M10","v":113},113,null,null,1,null,172,655,25,85,0,0,"发改局","丹洲镇","完成桥梁2座，拦水坝1座","改善雷洞屯至麻江屯路段农民群众出行便利，有效提升农产品种植和运输。","以工代赈-提前批"]
[2,"梅林乡","梅林村","梅林乡梅林村平力屯至梅林村梅林屯道路提升工程","乡村建设行动","新建","1、新建6幅挡土墙，总长407米。2、新建60*60排水沟长37米、40*40排水沟长236米、40*40盖板沟长30米。3、新建台阶长48米。4、新建圆管涵长32米。\n1、新建挡土墙2幅，总长136米。2、新建40*40排水沟136米。3、路肩硬化110平方米","2025年1月--2025年12月",113.8812,{"$f":"K11+L11+M11","v":113},113,{"$nulls":3},1,746,2873,176,723,14,58,"发改局","梅林乡","解决梅林村道路通车问题，改善村基础设施。","改善梅林村平力、岑朗屯的生产生活条件，方便群众出行。","以工代赈-提前批"]
[3,"同乐乡","归亚村","同乐苗族乡归亚村归亚屯习先道路防护工程","乡村建设行动","新建","新建1幅长25米，高4米挡土墙","2025年2月--2025年12月",19,{"$f":"K12+L12+M12","v":19},19,{"$nulls":3},1,264,1178,176,980,null,null,"发改局","发改局","解决村屯产业通车问题，改善归亚村基础设施，方便264户1178人出行、满足产业需求","改善归亚村生产条件，促进产业发展，方便群众出行。","以工代赈-提前批"]
[4,"古宜镇","寨准村","古宜镇寨准村六合屯通屯道路工程项目","乡村建设行动","新建","新建桥梁一座，全长62.0m，总宽5.50m，新建道路路面250.3米，路面宽4.5米新建挡土墙5幅共1240m³，新建50涵管44米，新建波形防护栏172米。","2025年2月—2025年10月",350,{"$f":"K13+L13+M13","v":210},140,70,null,1,null,172,706,18,69,2,6,"发改局","发改局","按时按质按量完成","降低当地村民农业产品运输成本，行人出行安全问题"]
[5,"梅林乡","新民村","梅林乡新民村下寨屯农田水利基础设施建设项目","乡村建设行动","新建","1、30*30水沟维修长505米；2、加拦水坝长9米；3、新建30*30水沟长3米；4、60*60水沟维修长5530米","2025年1月--2025年12月",143.910487,{"$f":"K14+L14+M14","v":143},143,{"$nulls":3},1,125,560,20,106,3,8,"发改局","梅林乡","有效解决新民下寨屯水利基础实施，方便群众生产生活，解决125户560人农田用水的问题。","改善新民村生产生活条件，促进产业发展","以工代赈-提前批"]
["县文联",null,"小计",null,"小计",{"$nulls":3},{"$f":"SUM(I16)","v":400},{"$f":"SUM(J16)","v":400},{"$f":"SUM(K16)","v":0},{"$f":"SUM(L16)","v":0},{"$f":"SUM(M16)","v":400},{"$f":"SUM(N16)","v":2},3,1400,0,0,0,0,500]
[6,"三江县","全县","三江侗族自治县农民画产业化发展“强基固本”项目","产业发展","续建","1.培育壮大三江农民画队伍。加大培训力度，持续开展一批农民作者和农民画师提升班培训，促进三江农民画人才梯队式发展，为产业化的发展奠定基础。2.巩固提升三江农民画基地。以基地建设为抓手，完成县民族中学、县民族高中、龙城笔阵基地等场地提升，以基地为窗口，宣传展示三江农民画独特魅力。3.参加全国农民画精品系列巡展。积极创作更多精品，组织参加广西农民画精品进京展及全国各地系列巡展，举办首届怀远杯(三江杯)农民画大赛暨全国农民画精品展，举办农民画文创大赛暨产业化发展论坛，承接2025广西农民画培训成果汇报展暨农民画回乡展（三江县城），提升农民画知名度和美誉度。4.打造三江农民画文化品牌。坚持农民画的传承保护与创新，举办农民画两本书(理论、画册)全区发布会并争取入选东盟图书，举办独峒镇农民画文化艺术节，形成三江文化品牌效应。5.夯实三江农民画全产业基础。坚持以市场为导向，以工业化的理念打造农民画产业链，制定三江农民画传承与发展长期规划，打造一个三江县农民画展览中心，创建三江县农民画产业示范村(程阳村岩寨屯)，健全联农带农益家机制，为产业化的发展奠定基础。","2025年1月-2025年12月",400,{"$f":"K16+L16+M16","v":400},null,null,400,2,3,1400,{"$nulls":4},500,"文联","三江县文联","三江农民画2012年被列入自治区级非物质文化遗产项目名录，近年来共有近300幅作品在全国、全区文艺展览、赛事中获奖。目前长期从事农民画创作的作者约600人，年产值约为500万元，为脱贫攻坚和乡村振兴助力赋能。通过实施“强基固本”项目，不断提升农民画产业化基础，形成产业链。并以画师培训、巡展宣传、文创推送、提供就业、文旅结合、研学引客、作品展销等方式,受益农户0.14万户0.14万人左右,其中脱贫户、监测户0.05万户0.05万人左右，人均年增收600元左右。","通过作品销售/务工就业/培训指导/文创产品/产业基础配套设施建设/文旅消费/其他等方式，促进农户年增收超过600元左右。"]
["县牛浪坡林场",null,"小计",null,"小计",{"$nulls":3},{"$f":"SUM(I18)","v":36},{"$f":"J18","v":36},{"$f":"K18","v":36},{"$f":"L18","v":0},{"$f":"M18","v":0},36,36,36,36,36,36,36,36]
[7,"国营三江侗族自治县牛浪坡林场","河口分场","牛浪坡林场河口分场林下百部种植项目","产业发展","新建","国营三江侗族自治县牛浪坡林场河口分场十公里公益林、天然林建立林下种植百部示范林，种植面积100亩。种植采收周期3年。可以有效地利用森林资源，减少对原始森林的砍伐和破坏。有助于林业的可持续发展。通过充分利用森林资源，实现土地的多元利用和循环利用，减少对土地、水资源和化肥的过度消耗，降低环境污染的风险。来增加平方土地上经济产出，提高林场经济收入，","2025年2月-2025年12月",36,{"$f":"K18+L18+M18","v":36},36,null,null,1,null,40,60,{"$nulls":4},"牛浪坡林场","牛浪坡林场"," 国营三江侗族自治县牛浪坡林场在河口分场公益林、天然林建立林下种植百部示范林。项目建成后，利润：10000元-15000元/亩/三年。通过林下种植百部起到示范带动作用，可以带动农民合作与协作，促进了地域合作和交流，增强了地域凝聚力，增加农村地区的经济活动和发展机会。为林场提供新的收入来源，增加县财政收入。","百部林下种植需要劳动力参与，提供了农村地区的就业机会，有助于减轻农村劳动力闲置问题，促进农民增收。","欠发达国有林场巩固提升任务"]
["县易服中心",null,"小计",null,"小计",{"$nulls":3},{"$f":"SUM(I20:I29)","v":528.28602},{"$f":"SUM(J20:J29)","v":471},{"$f":"SUM(K20:K29)","v":0},{"$f":"SUM(L20:L29)","v":471},{"$f":"SUM(M20:M29)","v":0},{"$f":"SUM(N20:N29)","v":0},10,16248,70446,16152,70082,16128,69987]
[8,"古宜镇","富安家园安置点","古宜镇富安家园安置点基础配套附属设施建设项目（易安后扶）","易地搬迁后扶","新建","1、安装带杆太阳能路灯30盏 2、下水道井盖8个 3 、篮球架一副4、小区消防通道划线。","2025年3月-2025年12月",15.059798,{"$f":"K20+L20+M20","v":13},null,13,null,null,1,131,717,131,717,131,717,"易服中心","易服中心","通过建设项目，完善安置点基础设施，解决富安家园易安点小区巷道晚间黑暗问题，消除安全隐患，保障群众生活安全、提高易安点治安安全系数，方便出行、改善居民生活条件和强身健体，受益群众131户717人。","通过建设项目，有效改善安置点基础设施，解决131户717人晚间巷道黑暗问题，消除安全隐患，保障群众生活安全、提高易安点治安安全系数，方便出行、改善居民生活条件。"]
[9,"古宜镇","厘金滩安置点","古宜镇厘金滩安置点基础配套附属设施建设项目（易安后扶）","易地搬迁后扶","新建","13栋、14栋化粪池出口管道维修","2025年3月-2025年12月",5.01889,4,null,4,null,null,1,56,300,56,300,56,300,"易服中心","易服中心","通过建设项目，解决易安点排污管道堵塞、完成化粪池排水管排污功能等问题，改善搬迁群众生活环境，提升安置点基础设施条件，提高群众获得感和满意度，受益群众56户300人。 ","通过完善安置点基础附属设施，解决56户300人易安点排污管道堵塞、安全出行等问题，改善搬迁群众生活环境，提升安置点基础设施条件和提高群众满意度。"]
[10,"古宜镇","南站社区","古宜镇南站社区基础配套附属设施建设项目（易安后扶）","易地搬迁后扶","新建","1、安装5个小区、文体公园太阳能路灯约400盞；2、侗笛小区、鼓楼小区各2个门禁，共4个门禁；3、鼓楼小区新建排水沟120米；侗笛小区新建排水沟2处，共120米。","2025年3月-2025年12月",79.647446,60,null,60,null,null,1,4606,19581,4606,19581,4606,19581,"易服中心","易服中心","通过建设项目，继续完善安置点基础配套设施，一是解决安置点各小区晚间巷道黑暗问题，方便搬迁群众日常出行，消除安全隐患；二是有效易安小区治安管理乱问题，保障搬迁群众居住安全，使搬迁群众的安全感得到提升；三是解决小区排污管道堵塞、雨季排水不顺畅，积水等问题，提升居民居住环境，提高群众满意度。受益群众4606户19581人。","通过建设项目，完善安置点基础设施，解决4606户19581人晚间出行安全、车辆管理、治安管理、排水管堵塞等问题，提高安置点治安安全系数，方便出行、改善居民生活环境，让搬迁群众住的放心、住得舒心。"]
[11,"古宜镇","南站社区","古宜镇南站社区排水沟建设项目（易安后扶）","易地搬迁后扶","新建","1.新建排水沟一条（长度约423米、深度约1.25米、宽度约2.1米），沉沙井7个，集水井2个等。","2025年3月-2025年12月",100.812533,80,null,80,null,null,1,4606,19581,4606,19581,4606,19581,"易服中心","易服中心","通过建设项目，继续完善安置点基础配套设施，解决社区排污管道堵塞、雨季排水不顺畅，积水等问题，提升居民居住环境，提高群众满意度。受益群众4606户19581人。","通过建设项目，完善安置点基础设施，解决4606户19581人出行安全、排水管堵塞等问题，改善安置点居民生活居住环境，方便群众到社区办理事务，提高获得感和满意度。"]
[12,"林溪镇","风雨九寨安置点","林溪镇风雨九寨安置点安防建设项目（易安后扶）","易地搬迁后扶","新建","建设小区安防设施一套。单元楼门禁12扇等。","2025年3月-2025年12月",6.949038,6,null,6,null,null,1,132,554,132,554,132,554,"易服中心","易服中心","通过建设项目，完善安置点基础配套设施，建设单元楼门禁，禁止外来人员随便出入，消除安全隐患，受益群众132户554人。","通过建设项目，解决小区单元楼无门禁，外来人员随便出入的安全隐患，为132户554名群众的人身财产安全保驾护航。"]
[13,"良口乡","良口开发区安置点","良口乡良口开发区安置点基础配套附属设施建设项目（易安后扶）","易地搬迁后扶","新建","建设排水沟约21米、11栋前道路硬化、无障碍通道（楼梯扶手）、矛盾协调沟通室、党员活动室、小区治安室1个等。","2025年3月-2025年12月",12.088507,10,null,10,null,null,1,204,793,204,793,204,793,"易服中心","易服中心","通过建设项目，继续完善安置点基础配套设施，一为特殊群体提供便利服务，建设楼梯扶手方便他们日常出行；二解决安置点内雨季排水不顺畅、积水等问题；三是解决小区治安管理及方便群众办理事务问题，提升居民居住环境，提高群众满意度。受益204户793人。","通过建设项目，方便204户793人搬迁群众办事服务，增加党群联系，解决安置点搬迁群众日常出行、雨季积水、排水堵塞、治安管理等问题，提高安置点治安安全系数，方便出行、改善居民生活环境，让搬迁群众住的放心、住得舒心。"]
[14,"富禄乡","侗乡苗寨安置点","富禄苗族乡侗乡苗寨安置点基础配套附属设施建设项目（易安后扶）","易地搬迁后扶","新建","1、新建蓄水池1个。长4米，宽3米，深1.3米，存水量约10吨；2、人车过渡码头硬化约100平方米。","2025年3月-2025年12月",3.007606,2,null,2,null,null,1,197,972,197,972,197,972,"易服中心","易服中心","通过建设项目，进一步完善居民用水基础服务设施，通过建设蓄水池，可以有效解决居民用水不足问题，对进入蓄水池的水进行沉淀、过滤，提高供水的质量，为安置点提供紧急备用水源，解决群众生活用水难题，确保搬迁户正常用水，让搬迁群众住得安心，提升群众满意度，受益群众197户972人。 ","通过建设项目，完善安置小区基础附属设施，解决197户972人搬迁群众生活用水难题。为安置点提供紧急备用水源，确保搬迁户正常用水，有效解决搬迁群众的安全饮水。方便群众出行，让搬迁群众搬得出住得稳，有获得感、幸福感。"]
[15,"同乐乡","高武村平文屯安置点","同乐乡高武村平文屯安置点基础配套附属设施建设项目（易安后扶）","易地搬迁后扶","新建","1、综合楼旁三面光排雨水水沟（含盖板）约160米；2、综合楼周边巷道硬化约600平方米；3、护坡约300平方米","2025年3月-2025年12月",9.152099,6,null,6,null,null,1,143,564,47,200,23,105,"易服中心","易服中心","通过建设项目，完善安置点基础配套设施，解决排水沟堵塞、雨季排水不顺畅，积水等问题，提升居民居住环境，提高群众满意度。受益群众23户105人。","通过建设项目，完善易安点基础设施建设，解决23户105人居住环境，提高获得感和满意度。"]
[16,"同乐乡","归夯村安置点","同乐乡归夯村安置点基础配套附属设施建设项目（易安后扶）","易地搬迁后扶","新建","1、巷道维修：①长度35米，宽度4.5米，厚度0.2米；②维修路面悬空灌浆长度20米，深度0.8米；2、公路水毁排水沟200米 2、护坡护理及地面硬化约200平方米","2025年3月-2025年12月",16.550103,10,null,10,null,null,1,54,260,54,260,54,260,"易服中心","易服中心","通过建设项目，完善安置点搬迁群众活动场地，方便安置点居民出行便利，解决雨季路面积水等问题，不断提升安置点居住环境，提升群众幸福感及满意度，受益群众54户260人。","通过建设项目，解决安置点54户260人搬迁群众活动场地、雨季路面积水等问题，改善安置点基础设施。"]
[17,"三江侗族自治县","三江县易地搬迁安置点","三江侗族自治县易地扶贫搬迁2025年融资利息及地方政府债券利息（易安后扶）","易地搬迁后扶","新建","2016-2018年易地扶贫搬迁项目已融资 133536.42万元，截止2024年9月30日已归70454.83万元，剩余金额63081.59万元;根据历年政府债券资金提示付息通知书及银行测算，我县2025年需偿还融资利息约280万元。","2025年3月-2025年12月",280,280,null,280,null,null,1,6119,27124,6119,27124,6119,27124,"易服中心","三江县电力有限责任公司","通过建设项目，按时偿还“十三五”规划时期产生的易地扶贫搬迁融资及地方政府债券利息，保持企业良好征信，受益群众6119户27124人。","通过偿还“十三五”规划时期产生的易地扶贫搬迁融资及地方政府债券利息，保持企业良好征信。"]
["县融媒体中心",null,"小计",null,"小计",{"$nulls":3},{"$f":"SUM(I31)","v":441.17},{"$f":"SUM(J31)","v":441},{"$f":"SUM(K31)","v":0},{"$f":"SUM(L31)","v":441},{"$f":"SUM(M31)","v":0},{"$f":"SUM(N31)","v":0},0,60000,300000,0,0,0,0]
[18,"全县",null,"2025年三江侗族自治县特色产业与文旅产业品牌宣传推广项目","产业发展","新建","与中央电视台开展三江茶品牌宣传推广；运维“三江早春茶”品牌抖音号平台；运维三江早春茶微信公众号1个；运维三江早春茶视频号1个；三江特色产业品牌形象宣传推广；“两茶”等特色产业宣传片制作4个；三江侗族自治县乡村振兴网络名人培育基地（直播带货和实训基地）四个直播间直播带货一体机矩阵建设和平台矩阵系统配备维护升级项目；三江早春茶系列视频推广；与新媒体协会策划三江早春茶系列宣传活动策划。","2025年1月-2025年12月",441.17,{"$f":"K31+L31+M31","v":441},null,441,{"$nulls":3},60000,300000,{"$nulls":4},"融媒体中心","融媒体中心","1、在中央电视台农业农村频道CCTV-17播出特别节目专题片2集，节目主题为关注三江茶叶产业，茶旅结合，时长10分钟；播出新闻动态报道8条；在中央广播电视总台农业农村节目中心新媒体平台，发布特色主题宣传片8条。2、通过专业团队运维专属三江茶品牌推广的抖音号、微信公众号、视频号三个新媒体平台，合计完成60个1分钟以内的短视频发布、70条推文发布、完成32场直播带货，通过短视频、直播推广、直播带货、图文推广等形式，以及与上级媒体平台合作，抢占宣传舆论阵地，营造产茶大县氛围，助力三江茶品牌打造和推广。3、采集、制作特色产业品牌形象推广1分钟以内短视频20个，全年官方全媒体矩阵展示；自媒体制作特色产业品牌形象推广1分钟以内短视频40个，在自媒体平台发布。4、完成三江油茶、三江茶叶等内容宣传片制作2个，时长每个5-7分钟，并在三江电视台播出，在风情三江视频号和抖音号等平台发布；自媒体完成特色产业5条品牌宣传小短片，时长1—2分钟，在自媒体平台发布。5、自媒体策划“茶韵三江，视界绽放” 优质短视频征集活动：预计参与用户：10人+，精选主推视频5个+。“春茶潮拍，抖出精彩”抖音短视频创作大赛：预计参与用户：30人+，预计总流量：200万+。“品三江早春茶，赢幸运早茶礼” 逢 6 有礼公众号推文活动：浏览量6000+。“墨香茶语，文润三江” 三江早春茶优质软文创作活动：向县内外10个+知名媒体平台发布推文。“镜藏茶影，定格美好” 三江早春茶摄影大赛活动：投稿30人+，征集作品100+（以上工作分两个阶段进行）","\"通过国家级权威媒体助力三江茶品牌打造和推广，提升三江茶知名度和认可度，进而拓展市场开发，促进茶农茶青销售、茶叶销售。通过本地媒体矩阵推广和宣传，助力三江茶品牌打造和推广，提升三江茶知名度和认可度，进而拓展市场开发，促进茶农茶青销售、茶叶销售。通过网络宣传平台运维，抢占宣传舆论阵地，营造产茶大县氛围，助力三江茶品牌打造和推广。进而拓展三江茶市场影响力和占有率，促进茶农茶青销售、茶叶销售。与合作入驻基地的经济组织签协议，利用乡村振兴网络直播带货平台，直接带动相关产业的企业、专业合作社、村集体经济组织在线上销售产品，实现经济收入。\""]
["县交通局",null,"小计",null,"小计",{"$nulls":3},{"$f":"SUM(I33:I41)","v":625.5881},{"$f":"SUM(J33:J41)","v":454},{"$f":"SUM(K33:K41)","v":374},{"$f":"SUM(L33:L41)","v":80},{"$f":"SUM(M33:M41)","v":0},{"$f":"SUM(N33:N41)","v":4},5,5441,20418,1319,5532,0,0]
[19,"丹洲镇","板江社区","丹洲镇板江社区雷洞屯至麻江屯防护栏（三项工程）","乡村建设行动","新建","雷洞屯至麻江屯道路新建2公里波形防护栏","2025年1月-2025年12月",58.1013,{"$f":"K33+L33+M33","v":37},37,null,null,1,null,543,2397,88,309,null,null,"交通运输局","公路发展中心","新建2公里波形防护栏，完善村屯基础设施建设，提升村基础设施环境和生活条件，解决沿线543户，2397人出行难问题，其中脱贫户88户，309人。\n数量指标：新建道路防护工程   =2公里；\n质量指标：项目（工程）验收合格率  =100%；\n时效指标：项目（工程）完成及时率  =100%；\n成本指标：项目建设总成本 ≤42万元；\n社会效益指标：解决沿线群众行路难问题受益人数  ≥2397人;\n可持续影响指标:工程设计使用年限 ≥10年;\n服务对象满意度指标:受益贫困人口满意度  ≥90%;","新建2公里波形防护栏，完善村屯基础设施建设，提升村基础设施环境和生活条件，解决沿线543户，2397人出行难问题，其中脱贫户88户，309人。"]
[20,"独峒镇","知了村","独峒镇知了村屯级道路安防建设项目工程（三项工程）","乡村建设行动","新建","归滚、知了、良拜屯共新建道路安全防护栏约2公里","2025年1月-2025年12月",55.3315,39,31,8,null,null,1,632,2499,189,806,null,null,"交通运输局","公路发展中心","新建2公里波形防护栏，提升村基础设施环境和生活条件，解决知了村道路存在安全隐患问题，完善村屯基础设施建设，保障632户2499人出行安全\n数量指标：新建道路防护工程   =2公里；\n质量指标：项目（工程）验收合格率  =100%；\n时效指标：项目（工程）完成及时率  =100%；\n成本指标：项目建设总成本 ≤42万元；\n社会效益指标：解决沿线群众行路难问题受益人数  ≥2499人;\n可持续影响指标:工程设计使用年限 ≥10年;\n服务对象满意度指标:受益贫困人口满意度  ≥90%;","新建2公里波形防护栏，完善村屯基础设施建设，提升村基础设施环境和生活条件，解决知了村道路存在安全隐患问题，完善村屯基础设施建设，保障632户2499人出行安全"]
[21,"高基乡","桐叶村","高基乡桐叶村必赖屯道路防护栏（三项工程）","乡村建设行动","新建","新建道路防护栏总长350米","2025年1月-2025年12月",5.2191,3,3,null,null,1,null,261,1057,70,299,null,null,"交通运输局","公路发展中心","新建350米波形防护栏，完善村屯基础设施建设，提升村基础设施环境和生活条件，解决沿线261户，1057人出行难问题，其中脱贫户70户，299人。\n数量指标：新建道路防护工程   =350米；\n质量指标：项目（工程）验收合格率  =100%；\n时效指标：项目（工程）完成及时率  =100%；\n成本指标：项目建设总成本 ≤5万元\n社会效益指标：解决沿线群众行路难问题受益人数  ≥1057人;\n可持续影响指标:工程设计使用年限 ≥10年;\n服务对象满意度指标:受益贫困人口满意度  ≥90%;","新建350米波形防护栏，完善村屯基础设施建设，提升村基础设施环境和生活条件，解决沿线261户，1057人出行难问题，其中脱贫户70户，299人。"]
[22,"良口乡","产口村","良口乡产口村屯级道路提升建设工程（三项工程）","乡村建设行动","新建","高贵、寨枝、寨沙、长冲屯全程6.8公里，扩宽硬化1米以及挡土墙多处。","2025年1月-2025年12月",138.1025,83,83,{"$nulls":3},1,517,2090,136,582,null,null,"交通运输局","公路发展中心","新建6.8公里通屯道路3.5米宽混凝土路面加宽提升1米。完善村屯基础设施建设，提升村基础设施环境和生活条件，解决沿线517户，2090人出行难问题，其中脱贫户136户，582人。\n数量指标：新建改建公路里程 =6.8公里；\n质量指标：项目（工程）验收合格率  =100%；\n时效指标：项目（工程）完成及时率  =100%；\n成本指标：项目建设总成本 ≤140万元；\n社会效益指标：解决沿线群众行路难问题受益人数 ≥2090人;\n可持续影响指标:工程设计使用年限 ≥10年;\n服务对象满意度指标:受益贫困人口满意度  ≥90%;","新建6.8公里通屯道路3.5米宽混凝土路面加宽提升1米。完善村屯基础设施建设，提升村基础设施环境和生活条件，解决沿线517户，2090人出行难问题，其中脱贫户136户，582人。"]
[24,"同乐乡","七团村","同乐乡七团村七团屯入村生命防护栏及道路修复项目（三项工程）","乡村建设行动","新建","建设600米生命防护栏及路面修复总长度50米长、4.5米宽，厚0.2米，路面加宽120米，宽1米，厚0.2米","2025年1月-2025年12月",14.5674,9,9,{"$nulls":3},1,605,2431,276,1195,null,null,"交通运输局","公路发展中心","新建600米波形防护栏。完善村屯基础设施建设，提升村基础设施环境和生活条件，解决沿线605户，2431人出行难问题，其中脱贫户276户，1195人。\n数量指标：新建道路防护工程   =600米；\n质量指标：项目（工程）验收合格率  =100%；\n时效指标：项目（工程）完成及时率  =100%；\n成本指标：项目建设总成本 ≤20万元；\n社会效益指标：解决沿线群众行路难问题受益人数 ≥2431人;\n可持续影响指标:工程设计使用年限 ≥10年;\n服务对象满意度指标:受益贫困人口满意度  ≥90%;","新建600米波形防护栏。完善村屯基础设施建设，提升村基础设施环境和生活条件，解决沿线605户，2431人出行难问题，其中脱贫户276户，1195人。"]
[25,"同乐乡","七团村","同乐乡七团屯至高洋村通屯路生命防护栏项目（三项工程）","乡村建设行动","新建","新建4公里通屯道路波形护栏及标志标牌。","2025年1月-2025年12月",90.1246,65,53,12,null,null,1,605,2431,276,1195,null,null,"交通运输局","公路发展中心","新建4公里波形防护栏，完善村屯基础设施建设，提升村基础设施环境和生活条件，解决沿线605户，2431人出行难问题，其中脱贫户276户，1195人。\n数量指标：新建道路防护工程   =4公里；\n质量指标：项目（工程）验收合格率  =100%；\n时效指标：项目（工程）完成及时率  =100%；\n成本指标：项目建设总成本 ≤84万元；\n社会效益指标：解决沿线群众行路难问题受益人数  ≥2431人;\n可持续影响指标:工程设计使用年限 ≥10年;\n服务对象满意度指标:受益贫困人口满意度  ≥90%;","新建4公里波形防护栏，完善村屯基础设施建设，提升村基础设施环境和生活条件，解决沿线605户，2431人出行难问题，其中脱贫户276户，1195人。\n"]
[26,"同乐乡","桂书村","同乐乡桂书村高扒屯至高武屯路面加宽工程（三项工程）","乡村建设行动","新建","新建4.2公里通屯道路3.5米宽混凝土路面加宽提升1米。","2025年1月-2025年12月",48.4289,30,30,{"$nulls":3},1,412,1686,129,525,null,null,"交通运输局","公路发展中心","新建4.2公里通屯道路3.5米宽混凝土路面加宽提升1米。完善村屯基础设施建设，提升村基础设施环境和生活条件，解决沿线412户，1686人出行难问题，其中脱贫户129户，526人。\n数量指标：新建改建公路里程 =4.2公里；\n质量指标：项目（工程）验收合格率  =100%；\n时效指标：项目（工程）完成及时率  =100%；\n成本指标：项目建设总成本 ≤76万元；\n社会效益指标：解决沿线群众行路难问题受益人数 ≥1686人;\n可持续影响指标:工程设计使用年限 ≥10年;\n服务对象满意度指标:受益贫困人口满意度  ≥90%;","新建4.2公里通屯道路3.5米宽混凝土路面加宽提升1米。完善村屯基础设施建设，提升村基础设施环境和生活条件，解决沿线412户，1686人出行难问题，其中脱贫户129户，526人。"]
[27,"林溪镇","林溪社区","林溪镇林溪社区道路桥梁工程项目","乡村建设行动","新建","新建道路桥梁长45米，宽6米，高7.7米。","2025年1月-2025年12月",180,166,106,60,null,1,null,1316,4139,81,342,null,null,"交通运输局","公路发展中心","完成新建道路桥梁长45米，宽6米，高7.7米，及配套设施建设。","解决道路通车问题，改善脱贫村和面上村基础设施，方便4139人出行水平。"]
[28,"和平乡","六溪村","和平乡六溪村六溪村至泗泷屯路面加宽提升工程（三项工程）","乡村建设行动","新建","扩宽六溪村至泗泷屯通屯道路。1.4公里原3.5米路面硬化加宽至4.5路面","2025年1月-2025年12月",35.7128,22,22,null,null,1,null,550,1688,74,279,null,null,"交通运输局","公路发展中心","新建1.4公里通屯道路3.5米宽混凝土路面加宽提升1米。，完善村屯基础设施建设，提升村基础设施环境和生活条件，解决沿线550户，1688人出行难问题，其中脱贫户74户，279人。\n数量指标：新建改建公路里程 =1.4公里；\n质量指标：项目（工程）验收合格率  =100%；\n时效指标：项目（工程）完成及时率  =100%；\n成本指标：项目建设总成本 ≤20万元；\n社会效益指标：解决沿线群众行路难问题受益人数 ≥1688人;\n可持续影响指标:工程设计使用年限 ≥10年;\n服务对象满意度指标:受益贫困人口满意度  ≥90%;","新建1.4公里通屯道路3.5米宽混凝土路面加宽提升1米。，完善村屯基础设施建设，提升村基础设施环境和生活条件，解决沿线550户，1688人出行难问题，其中脱贫户74户，279人。"]
["县农业农村局",null,"小计",null,"小计",{"$nulls":3},{"$f":"SUM(I43:I177)","v":27415.596962},{"$f":"SUM(J43:J177)","v":21379},{"$f":"SUM(K43:K177)","v":15395},{"$f":"SUM(L43:L177)","v":4138},{"$f":"SUM(M43:M177)","v":1846},{"$f":"SUM(N43:N177)","v":314},535,152206,516596,71210,202859,7642,10915]
[29,"三江县","各村","2025年三江侗族自治县螺蛳粉原材料基地建设以奖代补项目","产业发展","新建","发展螺蛳粉原材料（豆角、木耳螺蛳）基地建设，对达到补助条件的种植/养殖户、村集体和新型经营主体进行奖补，积极推进螺蛳粉原材料产业发展。","2025年3月--2025年12月",585,{"$f":"K43+L43+M43","v":325},null,325,{"$nulls":3},200,600,80,240,null,null,"农业农村局","农业农村局","建设螺蛳粉原材料（豆角、木耳螺蛳）基地，对达到补助条件的种植/养殖户、村集体和新型经营主体进行奖补，带动农户就业和发展产业，同时增加村集体经济收入。实现就业人员或者发展产业农户增收1000元以上。","实现就业人员或者发展产业农户增收1000元以上，增加村集体经济收入。"]
[30,"三江县","各村","2025年三江侗族自治县到户产业以奖代补项目","产业发展","新建","对发展县级“5”产业、村级“3”产业和自主从全区86个产业中自选一个产业并达到补助条件的脱贫户、监测对象进行奖补。","2025年3月--2025年12月",3100,3066.02927,2400,650,16.02927,64,98,12000,36000,12000,36000,null,null,"农业农村局","农业农村局","对发展县级“5”村级“3”特色产业和自主从全区86个产业中自选一个产业并达到补助条件的脱贫户、监测对象进行奖补。通过实施以奖代补政策，年带动农户12000户以上发展生产，实现户均增收1200元以上。","其他，促进农户户均年增收超过0.12万元。"]
[31,"三江县","各村","2025年三江侗族自治县雨露计划项目","巩固三保障成果","新建","1.雨露计划职业教育学历补助补助；\n2.雨露计划短期技能培训；\n3.雨露计划农民实用技术培训。","2025年3月--2025年12月",1600,1050,720,330,null,72,98,14470,14470,14470,14470,2170,2170,"农业农村局","农业农村局","一是核实核准雨露计划学生信息，做到精准补助、应补尽补，确保补助资金按时足额发放到户。二是根据贫困劳动力转移就业需求，有针对性地开展短期技能培训，实现技能型就业，提高就业质量；三是围绕产业发展需要，大力开展农村实用技术培训，重点培育一批“土专家”、种养能手和技术骨干。","通过“雨露计划”引导农村脱贫户（监测对象）家庭初中、高中毕业生和青壮年劳动力接受学历教育及技能培训，提升内生动力，促进转移就业，实现增收致富，阻断贫困代际传递。"]
[32,"三江县","各村","2025年三江侗族自治县脱贫人口小额信贷贴息资金","产业发展","新建","完成脱贫人口小额信贷贴息，解决脱贫人口发展生产启动资金难问题，支持脱贫人口发展生产","2025年3月--2025年12月",1200,1200,1200,null,null,62,98,5000,20000,4000,16000,1000,4000,"农业农村局","农业农村局","完成脱贫人口小额信贷贴息，解决脱贫人口发展生产启动资金难问题，支持脱贫人口发展生产，受益户数 6000户。","按时完成脱贫人口小额信贷贴息5000户，促进脱贫人口增收"]
[33,"三江县","各村","2025年三江侗族自治县乡村振兴公益岗补助","就业项目","新建","开发公益性岗位，解决4000左右人次就业，保障脱贫人口就业稳定、解决就业问题、巩固脱贫成效","2025年3月--2025年12月",5500,2644,2526,118,{"$nulls":3},4000,4000,3800,3800,1000,1000,"农业农村局","农业农村局","完成开发公益性岗位，解决4000左右人次就业，保障脱贫人口就业稳定、解决就业问题、巩固脱贫成效，促进脱贫人口增收。","通过务工就业/技术培训指导/等方式，促进农户年增收超过1000万元。"]
[34,"三江县","各村","2025年三江侗族自治县脱贫人口跨省一次性交通补助","就业项目","新建","对前往区外务工脱贫户（含监测户）劳动力享受不低于300元/人／年一次性交通补贴，完成年任务2万人给以一次性交通补助。","2025年3月--2025年12月",1500,900,600,300,{"$nulls":3},6000,20000,5800,19800,2000,1000,"农业农村局","农业农村局","到区外务工脱贫户（含监测户）一次性交通补贴补助2万人，保障脱贫人口就业稳定、解决就业问题、巩固脱贫成效，促进脱贫人口增收。","通过务工就业/技术培训指导/等方式，促进农户年增收超过1000万元。"]
[35,"三江县","各村","2025年三江侗族自治县脱贫人口县域内稳定就业补助","就业项目","新建","在县域内稳定就业补助（150至400元/人.月），补助最长不超过6个月。","2025年3月--2025年12月",600,360,240,120,{"$nulls":3},3000,4000,2900,3900,1000,800,"农业农村局","农业农村局","完成县域内劳务补贴补助0.3万人，保障脱贫人口就业稳定、解决就业问题、巩固脱贫成效，促进脱贫人口增收。","通过务工就业/技术培训指导/等方式，促进农户年增收超过1000万元。"]
[36,"三江县","各村","2025年三江侗族自治县衔接资金项目管理费","项目管理费","新建","2025年度资金项目设计预算、监理等项目管理费用。详见附件2.","2025年3月--2025年12月",2500,{"$f":"K50+L50+M50","v":2169.97073},240,100,1829.97073,{"$nulls":8},"农业农村局","各单位",null,"完成三江县2025年度资金项目管理费用支付管理，保障项目管理合法合规按时按质完成。"]
[37,"斗江镇","滩底村","斗江镇滩底村河村屯生猪养殖场项目","产业发展","新建","建设生猪养殖场5000平方米，建设厂房及附属设备。","2025年3月--2025年12月",420,420,420,{"$nulls":10},"农业农村局","农业农村局",null,"按照投资资金4%的比例获取分红，每村每年预计通过分红收入2.8万元。","集体经济项目"]
[38,"八江镇","三团村","八江镇三团综合种养基地项目","产业发展","新建","建设规模为20亩左右综合种养基地，其中将大约16亩旱地改造成水田，用于生态稻谷的种植和青头鸭、禾花鱼、甲鱼等禽类和水产品的放养；将大约6亩地用于农用设施大棚、畜类、禽类兰舍大棚建设。该项目同时配套建设冷链、仓储、禽类宰杀包装等生产车间。","2025年3月--2025年12月",140,140,140,{"$nulls":10},"农业农村局","八江镇",null,"按照投资资金4%的比例获取分红，每村每年预计通过分红收入2.8万元。","集体经济项目"]
[39,"三江县","三江县","2025年三江茶品牌运营项目","产业发展","续建","举办2025年三江早春茶线上产销对接会暨三江茶文化活动，以及其它茶事活动等；参加国内各类展销会、博览会；品牌宣传广告投放；三江茶品质提升技术开发及风味特色挖掘；三江茶商标及专利维护等。","2025年1月-2025年12月",{"v":260,"d":"260.00"},160,null,{"v":160,"d":"160.00"},null,66,96,65000,250000,16800,60000,null,null,"三江县农业农村局","三江县农业农村局","本项目通过组织企业参加国内各类茶叶展销会，参加及举办各类茶事活动；产品品质提升等措施促进茶叶销售；通过三江早春茶广告投放，提高三江茶品牌知名度。通过以上品牌打造措施，带动16800户脱贫户茶青收购，实现脱贫户增收。","通过参加国内各类展销会、博览会，各类茶事活动，广告投放等，提高三江茶品牌知名度，促进企业茶产品销售，从而带动茶农茶青收购，实现联农带农富农目标。"]
[40,"古宜镇","大竹村","古宜镇大竹村茶叶产业基地便道建设","产业发展","新建","硬化茶园便道1.946公里。","2025年3月-2025年11月",{"v":34.933692,"d":"34.93"},31,{"v":31,"d":"31.00"},null,null,1,null,932,3670,73,264,null,0,"三江县农业农村局","古宜镇","完成建设茶园便道1.946公里。","促进产业发展改善平传村基础设施，方便3670人差农业发展。","乡镇"]
[41,"古宜镇","平传村","古宜镇平传村茶叶产业基地便道建设工程","产业发展","新建","硬化茶园便道7.5公里。","2025年3月-2025年11月",90.463217,82,67,15,null,1,null,610,2510,62,212,null,null,"三江县农业农村局","古宜镇","完成建设茶园便道7.5公里。","促进产业发展改善平传村基础设施，方便610户2510人差农业发展。","乡镇"]
[42,"古宜镇","文大村","古宜镇文大村茶叶产业基地便道建设工程","产业发展","新建","硬化茶园便道2.4公里。","2025年3月-2025年11月",31.017285,28,21,7,null,1,null,242,971,12,33,null,null,"三江县农业农村局","古宜镇","完成建设茶园便道2.4公里。","改善生产生活条件，促进产业发展，巩固脱贫成果。方便971人群众发展生产","乡镇"]
[43,"古宜镇","寨准村","古宜镇寨准村茶叶产业基地便道建设工程","产业发展","新建","硬化茶园便道4公里。","2025年3月-2025年11月",82.583635,75,60,15,null,1,null,148,657,10,42,null,null,"三江县农业农村局","古宜镇","完成建设茶园便道2.4公里。","改善生产生活条件，促进产业发展，巩固脱贫成果。方便278人群众发展生产","乡镇"]
[44,"独峒镇","唐朝村","独峒镇唐朝村茶叶产业基地便道建设工程","产业发展","新建","硬化茶园便道6.4公里。","2025年3月-2025年11月",{"v":142.67548,"d":"142.675480"},130,108,22,null,null,1,682,2830,273,1450,null,null,"三江县农业农村局","三江县农业农村局","完成建设茶园便道6.4公里。","完善唐朝村生产基础设施建设，方便群众发展生产，促进茶叶产业发展，受益群众682户2830人。","茶办"]
[45,"独峒镇","八协村","独峒镇八协村茶叶产业基地便道建设工程","产业发展","新建","硬化茶园便道5.4公里。","2025年3月-2025年11月",122.131631,110,88,22,null,null,1,572,2266,125,504,null,null,"三江县农业农村局","三江县农业农村局","完成建设茶园便道5.4公里。","解决脱贫村生产便道硬化匮乏问题，改善贫困村基础设施，促进产业发展，方便572户2266人生产发展。","茶办"]
[46,"独峒镇","干冲村","独峒镇干冲村茶叶产业基地便道建设工程","产业发展","新建","硬化茶园便道3公里。","2025年3月-2025年11月",48.235487,{"$f":"K60+L60+M60","v":43},27,16,null,null,1,1426,5317,265,1157,null,null,"三江县农业农村局","独峒镇","完成建设茶园便道2公里。","解决脱贫村生产便道硬化匮乏问题，改善贫困村基础设施，促进产业发展，方便1426户5317人生产发展。","乡镇"]
[47,"独峒镇","林略村","独峒镇林略村茶叶产业基地便道建设工程","产业发展","新建","硬化茶园便道5公里。","2025年3月-2025年11月",118.294938,107,87,20,null,null,1,887,3466,150,698,null,null,"三江县农业农村局","三江县农业农村局","完成建设茶园便道5公里。","解决脱贫村生产便道硬化匮乏问题，改善贫困村基础设施，促进产业发展，方便887户3466人生产发展。","茶办"]
[48,"洋溪乡","波里村","洋溪乡波里村茶叶产业基地便道建设工程","产业发展","新建","硬化茶园便道3公里。","2025年3月-2025年11月",51.46984,46,39,7,null,null,1,421,1874,120,509,null,null,"三江县农业农村局","洋溪乡","完成建设茶园便道4公里。","改决村民出行困难等问题，增加农作物运输和护理效率，吸引外商投资，带动波里村产业发展。","乡镇"]
[49,"同乐乡","高旁村","同乐乡高旁村茶叶产业基地便道建设工程","产业发展","新建","硬化茶园便道8公里。","2025年3月-2025年11月",184.854362,165,135,30,null,null,1,446,1723,192,800,null,null,"三江县农业农村局","三江县农业农村局","完成建设茶园便道8公里。","解决贫困村产业生产安全出行问题，改善贫困村基础设施，方便446户1723人出行安全，保障村民出行安全，促进村民产业发展。","茶办"]
[50,"同乐乡","高洋村","同乐乡高洋村茶叶产业基地便道建设工程","产业发展","新建","硬化茶园便道5公里。","2025年3月-2025年11月",80.147806,71,56,15,null,null,1,561,2616,166,736,null,null,"三江县农业农村局","同乐乡","完成建设茶园便道5公里。","为茶农提供了更加便捷的通行条件，降低了劳动强度，从而提高了劳动效率；有利于茶园的精细化管理，茶农可以更加方便地巡视茶园，及时发现并处理病虫害等问题，保证茶叶的生长环境良好，直接促进了茶产业的发展，提高了茶叶的产量和质量，进而增加了茶农的收入从而提升茶叶的品质，","乡镇"]
[51,"同乐乡","寨大村","同乐乡寨大村茶叶产业基地便道建设工程","产业发展","新建","硬化茶园便道7.3公里。","2025年3月-2025年11月",89.936885,81,70,11,null,1,null,240,948,45,166,null,null,"三江县农业农村局","同乐乡","完成建设茶园便道7.3公里。","完善产业基地配套设施，扩大产业种植规模，促进产业提质增效。增加农户收入，壮大村集体经济。方便240户948人开展产业活动。","乡镇"]
[52,"同乐乡","同乐村","同乐乡同乐村茶叶产业基地便道建设工程","产业发展","新建","硬化茶园便道10公里。","2025年3月-2025年11月",184.053292,165,135,30,null,null,1,1402,4963,275,1125,null,null,"三江县农业农村局","三江县农业农村局","完成建设茶园便道10公里。","完善产业基地配套设施，扩大产业种植规模，促进产业提质增效。增加农户收入，壮大村集体经济。方便1402户4963人开展产业活动。","茶办"]
[53,"同乐乡","归东村","同乐乡归东村茶叶产业基地便道建设工程","产业发展","新建","硬化茶园便道6公里。","2025年3月-2025年11月",138.587029,125,110,15,null,null,1,560,2277,305,1274,null,null,"三江县农业农村局","三江县农业农村局","完成建设茶园便道6公里。","完善产业基地配套设施，扩大产业种植规模，促进产业提质增效。增加农户收入，壮大村集体经济。方便560户2277人开展产业活动。","茶办"]
[54,"同乐乡","地保村","同乐乡地保村茶叶产业基地便道建设工程","产业发展","新建","硬化茶园便道10公里。","2025年3月-2025年11月",{"v":176.544381,"d":"176.54"},160,130,30,null,null,1,405,1561,166,683,null,null,"三江县农业农村局","三江县农业农村局","完成建设茶园便道4公里。","改善生产生活条件，促进产业发展，巩固脱贫成果。方便群众发展生产","茶办"]
[55,"程村乡","大树村","程村乡大树村茶叶产业基地便道建设工程","产业发展","新建","硬化茶园便道3.6公里。","2025年3月-2025年11月",49.362111,44,37,7,null,1,null,224,759,41,147,null,null,"三江县农业农村局","程村乡","完成建设茶园便道3.6公里。","改善生产生活条件，促进产业发展，巩固脱贫成果。方便群众发展生产","乡镇"]
[56,"八江镇","汾水村","八江镇汾水村茶叶产业基地便道建设工程","产业发展","新建","硬化茶园便道4公里。","2025年3月-2025年11月",42.124288,38,31,7,null,0,1,781,3319,368,1550,null,null,"三江县农业农村局","八江镇","完成建设茶园便道4公里。","完善汾水村产业基础设施，促进产业发展，便于群众出行","乡镇"]
[57,"八江镇","八斗村","八江镇八斗村茶叶产业基地便道建设工程","产业发展","新建","硬化茶园便道8.6公里。","2025年3月-2025年11月",100.980389,91,75,16,null,1,null,1210,4110,165,638,117,514,"三江县农业农村局","三江县农业农村局","完成建设茶园便道8.6公里。","改善生产生活条件，促进产业发展，巩固脱贫成果。方便群众发展生产","项目办"]
[58,"八江镇","归令村","八江镇归令村茶叶产业基地便道建设工程","产业发展","新建","硬化茶园便道5公里。","2025年3月-2025年11月",{"v":115.453754,"d":"115.45"},{"$f":"K72+L72+M72","v":104},88,16,null,null,1,631,2302,146,549,null,null,"三江县农业农村局","三江县农业农村局","完成建设茶园便道5公里。","改善生产生活条件，促进产业发展，巩固脱贫成果。方便群众发展生产","项目办"]
[59,"八江镇","岩脚村","八江镇岩脚村茶叶产业基地便道建设工程","产业发展","新建","硬化茶园便道3.6公里。","2025年3月-2025年11月",53.611198,48,41,7,null,null,1,354,1170,118,440,null,null,"三江县农业农村局","八江镇","完成建设茶园便道3.6公里。","改善生产生活条件，促进产业发展，巩固脱贫成果。方便群众发展生产","乡镇"]
[60,"八江镇","布央村","八江镇布央村茶叶产业基地便道建设工程","产业发展","新建","硬化茶园便道8公里。","2025年3月-2025年11月",119.54756,107,92,15,null,1,null,632,2361,144,558,33,148,"三江县农业农村局","三江县农业农村局","完成建设茶园便道8公里。","改善生产生活条件，促进产业发展，巩固脱贫成果。方便群众发展生产","项目办"]
[61,"良口乡","寨塘村","良口乡寨塘村茶叶产业基地便道建设工程","产业发展","新建","硬化茶园便道3.6公里。","2025年3月-2025年11月",62.759849,56,45,11,null,null,1,279,1133,106,499,null,null,"三江县农业农村局","良口乡","完成建设茶园便道3.6公里。","完善产业基地配套设施，促进产业提质增效。增加农户收入，壮大村集体经济。","乡镇"]
[62,"良口乡","良口村","良口乡良口村茶叶产业基地便道建设工程","产业发展","新建","硬化茶园便道6.5公里。","2025年3月-2025年11月",96.143788,86,67,19,null,1,null,1277,3786,278,1064,78,284,"三江县农业农村局","良口乡","完成建设茶园便道6.5公里。","完善产业基地配套设施，促进产业提质增效。增加农户收入，壮大村集体经济。","乡镇"]
[63,"林溪镇","高秀村","林溪镇高秀茶茶叶产业基地便道建设工程","产业发展","新建","硬化茶园便道2.5公里。","2025年3月-2025年11月",59.372481,53,42,11,{"$nulls":3},40,180,25,110,null,null,"三江县农业农村局","林溪镇","完成建设茶园便道2.5公里。","完善产业基地配套设施，扩大产业种植规模，促进产业提质增效。增加农户收入，壮大村集体经济。方便405户1561人开展产业活动。","乡镇"]
[64,"林溪镇","美俗村","林溪镇美俗村茶叶产业基地便道建设工程","产业发展","新建","硬化茶园便道10公里。","2025年3月-2025年11月",181.221005,165,135,30,null,null,1,453,1645,122,337,47,180,"三江县农业农村局","三江县农业农村局","完成建设茶园便道10公里。","改善生产生活条件，促进产业发展，巩固脱贫成果。方便278人群众发展生产","茶办"]
[65,"老堡乡","老巴村","老堡乡老巴村茶叶产业基地便道建设工程","产业发展","新建","硬化茶园便道2.9公里。","2025年3月-2025年11月",68.572856,61,50,11,null,null,1,336,1548,156,710,45,223,"三江县农业农村局","老堡乡","完成建设茶园便道2.9公里。","完善老巴村生产基础设施建设，方便群众发展生产，促进茶叶产业发展，受益群众336户1548人。","乡镇"]
[66,"老堡乡","边浪村","老堡乡边浪村茶叶产业基地便道建设工程","产业发展","新建","硬化茶园便道7公里。","2025年3月-2025年11月",{"v":135.24375,"d":"135.243750"},121,117,4,null,null,1,343,1542,280,1292,null,null,"三江县农业农村局","三江县农业农村局","完成建设茶园便道7公里。","解决脱贫村生产便道硬化匮乏问题，改善贫困村基础设施，促进产业发展，方便343户1542人生产发展。","项目办"]
[67,"老堡乡","车田村","老堡乡车田村茶叶产业基地便道建设工程","产业发展","新建","硬化茶园便道10公里。","2025年3月-2025年11月",159.035411,143,113,30,null,1,null,296,1140,33,126,26,98,"三江县农业农村局","三江县农业农村局","完成建设茶园便道10公里。","解决脱贫村生产便道硬化匮乏问题，改善贫困村基础设施，促进产业发展，方便296户1140人生产发展。","项目办"]
[68,"老堡乡","老堡村","老堡乡老堡村茶叶产业基地便道建设工程","产业发展","新建","硬化茶园便道6.3公里。","2025年3月-2025年11月",103.143116,92,66,26,null,1,null,496,1829,77,291,null,null,"三江县农业农村局","三江县农业农村局","完成建设茶园便道6.3公里。","解决老堡村生产便道硬化匮乏问题，改善村内基础设施，促进产业发展，方便496户1829人生产发展。","项目办"]
[69,"斗江镇","东坪村","斗江镇东坪村茶叶产业基地便道建设工程","产业发展","新建","硬化茶园便道4.4公里。","2025年3月-2025年11月",65.279762,58,47,11,null,1,null,371,1271,20,57,null,null,"三江县农业农村局","斗江镇","完成建设茶园便道4.4公里。","改善生产生活条件，促进产业发展，巩固脱贫成果。方便群众发展生产","乡镇"]
[70,"斗江镇","扶平村","斗江镇扶平村茶叶产业基地便道建设工程","产业发展","新建","硬化茶园便道2公里。","2025年3月-2025年11月",38.084052,34,28,6,null,null,1,755,2585,199,781,null,null,"三江县农业农村局","斗江镇","完成建设茶园便道2公里。","改善生产生活条件，促进产业发展，巩固脱贫成果。方便群众发展生产","乡镇"]
[71,"斗江镇","沙宜村","斗江镇沙宜村茶叶产业基地便道建设工程","产业发展","新建","硬化茶园便道5公里。","2025年3月-2025年11月",72.264627,65,62,3,null,1,null,637,2293,90,329,null,null,"三江县农业农村局","斗江镇","完成建设茶园便道1.5公里。","改善生产生活条件，促进产业发展，巩固脱贫成果。方便群众发展生产","乡镇"]
[72,"独峒镇","八协村","独峒镇八协村茶园水肥一体化项目","产业发展","新建","覆盖358亩的水肥一体化系统（含配电设施），主要实施内容为：水肥一体化水网系统及附属配电设施，总共覆盖358亩。","2025年3月-2025年11月",173.8,160,130,30,null,null,1,572,2266,125,504,null,null,"三江县农业农村局","三江县农业农村局","完成建设358亩的水肥一体化系统（含配电设施），主要实施内容为：水肥一体化水网系统及附属配电设施，总共覆盖358亩。","完善产业基地配套设施，扩大产业种植规模，促进产业提质增效。增加农户收入，壮大村集体经济。方便405户1562人开展产业活动。"]
[73,"洋溪乡","高露村","洋溪乡高露村茶园水肥一体化项目","产业发展","新建","覆盖300亩的水肥一体化系统（含配电设施），主要实施内容为：水肥一体化水网系统及附属配电设施，总共覆盖300亩。","2025年3月-2025年11月",181,167,137,30,null,null,1,240,800,46,208,null,null,"三江县农业农村局","三江县农业农村局","完成建设300亩的水肥一体化系统（含配电设施），主要实施内容为：水肥一体化水网系统及附属配电设施，总共覆盖300亩。","完善产业基地配套设施，扩大产业种植规模，促进产业提质增效。增加农户收入，壮大村集体经济。方便405户1564人开展产业活动。"]
[74,"林溪镇","高秀村","林溪镇高秀村茶园水肥一体化项目","产业发展","新建","新建覆盖350亩的茶园水肥一体化系统项目，建设内容有水肥一体化网管、配电设备及配套附属设施。","2025年3月-2025年11月",188.5,173,147,26,null,null,1,418,1648,140,557,51,195,"三江县农业农村局","三江县农业农村局","完成建设350亩的茶园水肥一体化系统项目，建设内容有水肥一体化网管、配电设备及配套附属设施。","完善产业基地配套设施，扩大产业种植规模，促进产业提质增效。增加农户收入，壮大村集体经济。方便405户1565人开展产业活动。"]
[75,"古宜镇","洲北村","古宜镇洲北村溪脑屯农田水利设施建设工程（地点：金竹口）","乡村建设行动","新建","新建三面光水利30cm*30cm*1500m","2025年1月--2025年12月",18.28,16,16,null,null,1,null,92,351,16,55,null,0,"农业农村局","古宜镇","完善小型农田水利设施建设，改善面上村基础设施，方便92户351人生产生活。","改善面上村基础设施，方便92户351人生产生活。"]
[76,"古宜镇","周坪村","古宜镇周坪村榕树屯农田水利设施建设工程","乡村建设行动","新建","新建三面光水利30cm*30cm*2000m","2025年1月--2025年12月",27.19,24,24,null,null,1,null,151,576,27,98,null,0,"农业农村局","古宜镇","完善小型农田水利设施建设，改善面上村基础设施，方便151户576人生产生活。","改善面上村基础设施，方便151户576人生产生活。"]
[77,"古宜镇","大洲村","古宜镇大洲村洲开屯农田水利设施建设工程（地点：旱信榜）","乡村建设行动","新建","新建大洲村洲开屯南面头至旱信榜2.5公里水渠，三面光40*40厘米及水管铺设","2025年1月--2025年12月",36.44,33,33,null,null,1,null,106,440,8,35,0,0,"农业农村局","古宜镇","建设2.5公里水渠，三面光40*40厘米及水管铺设，解决大洲村洲开屯约50亩水田水利灌溉问题","解决大洲村洲开屯约50亩水田水利灌溉问题"]
[78,"丹洲镇","板必村","丹洲镇板必村洛潘屯小农水利项目","乡村建设行动","新建","新建三面光水渠长1500米、宽0.3米、高0.3米；水坝两座宽8米、高1米、厚0.8米（下底2米、上底0.8米）","2025年1月－2025年12月",35.23,32,32,null,null,1,null,96,360,15,55,null,null,"农业农村局","丹洲镇","完成水渠水坝建设1500米及水坝两座，","解决洛潘屯群众水稻种植问题，使群众增产增收。提高农户生活水平。"]
[79,"丹洲镇","西坡村","丹洲镇西坡村水利建设项目","乡村建设行动","新建","新建设水利三面光长2公里、宽30厘米、高40厘、基层厚10厘米、清理塌方泥土30米；","2025年1月－2025年12月",58.82,52,40,12,null,1,null,507,1937,43,181,null,null,"农业农村局","丹洲镇","严守耕地红线，促进高标准农田建设，有效解决群众缺水灌溉农田主要问题。","改善西坡村滩头屯的生产条件，促进产业发展，保证群众粮食收成有保障，提高群众粮食增收。"]
[80,"丹洲镇","合桐村","丹洲镇合桐村农田水利项目","乡村建设行动","新建","硬化30*30水利长1200米，枧槽50米.坝塘两处(合水屯、桐木屯)","2025年1月－2025年12月",30.51,27,27,null,null,1,null,525,1905,29,99,4,7,"农业农村局","丹洲镇","完善农田供水设施","改善合桐村的生产生活条件，促进农业产业发展。"]
[81,"丹洲镇","红路村","丹洲镇红路村农田水利建设工程","乡村建设行动","新建","1.毛田屯建设水利三面光长400米、宽30厘米、高30厘米、基层厚15厘米;2、白路屯（野夫口）建设水利三面光长200米、宽30厘米、高30厘米、基层厚15厘米;","2025年1月－2025年12月",13.12,11,11,null,null,0,1,60,250,25,70,null,null,"农业农村局","丹洲镇","严守耕地红线，促进高标准农田建设，有效解决群众缺水灌溉农田的主要问题","改善红路村生产条件，促进产业发展，确保群众粮食安全的保障。提高群众粮食的增收。"]
[82,"丹洲镇","江荷村","丹洲镇江荷村望江亭农田水利三面光","乡村建设行动","新建","三面光长：1500米，宽0.4，米高0.4","2025年1月－2025年12月",21.82,19,19,{"$nulls":3},1,123,516,6,24,null,null,"农业农村局","丹洲镇","有效保护农田30亩","完善农田供水设施"]
[83,"斗江镇","斗江社区","斗江镇斗江社区斗江屯农田水利设施建设工程（十六段）","乡村建设行动","新建","1、新建三面光水渠总长1783米，（其中0.2x0.2m三面光水渠678米；0.3x0.3m三面光水渠410米：0.6x0.6m三面光水渠695米）；2、新建拦水坝2座。","2025年1月--2025年12月",46.398932,41,41,null,null,1,null,382,1528,20,60,null,null,"农业农村局","斗江镇","完成水利2000米建设项目","有效解决382户1528人农田灌溉问题，提高粮食产量。"]
[84,"斗江镇","周牙村","斗江镇周牙村廖村屯农田水利设施建设项目 ","乡村建设行动","新建","1、新建三面光水渠总长1345米，（其中0.2x0.2m三面光水渠295米；0.3x0.3m三面光水渠779米；0.3x0.5m三面光水渠71米；0.4x0.4m三面光水渠200米）；2、50PE管总长112米；3、DN400波纹管总长57米；4、新建拦水坝2座；5、新建渡槽长52.5米。","2025年1月--2025年12月",41.703698,37,37,null,null,1,null,228,718,43,155,null,null,"农业农村局","斗江镇","完成水利三面光0.3米*0.3米*3000米","解决廖村屯228户水利灌溉问题，改善廖村屯基础设施，方便228户718人灌溉。"]
[85,"斗江镇","凤凰村","斗江镇凤凰中广屯农田水利设施建设工程","乡村建设行动","新建","新建0.4x0.4m 三面光水渠202米+27米;0.6m 高拦水坝1.5 米一座。","2025年1月--2025年12月",7.212563,6,6,null,null,1,null,115,403,17,70,null,null,"农业农村局","斗江镇","加快我村现代标准农田建设步伐，打造亩产超吨粮的目标，进一步改善农业生产条件，提高农田生产能力，造应现代农业发展的需要。","农田水利设施工程建设后，可提高单产，增加产，从而增加产值，最终实现农业增产，使115户403人增收。"]
[86,"斗江镇","沙宜村","斗江镇沙宜村沙湾屯油站背至火烧田农田水利设施建设工程","乡村建设行动","新建","新建0.4x0.4m三面光水渠总长569米(其中24米需破除）;疏通原有直径300涵管7米。","2025年1月--2025年12月",14.538051,13,13,null,null,1,null,52,228,12,41,null,null,"农业农村局","斗江镇","完成三面光1.5公里，及配套设施建设。","有效保障粮食安全生产，助力52户228人增产增收。"]
[87,"斗江镇","扶平村","斗江镇扶平村农田水利设施建设工程（扶平屯、等平屯）","乡村建设行动","新建","新建0.2x0.2m三面光水渠180米；0.3x0.3m三面光水渠940米；0.4x0.3m三面光水渠405米；0.4x0.4m三面光水渠1130米；0.5x0.5m三面光水渠40米；1x0.6m三面光水渠55米；新建拦水坝3座；新建de75灌溉给水管2150米。","2025年1月--2025年12月",68.124289,60,41,19,null,null,1,79,307,23,95,null,null,"农业农村局","斗江镇","完成农田水利2800米建设。","解决79户307人农田用水问题，提高群众粮食增收。"]
[88,"斗江镇","滩底村","斗江镇滩底村河村屯公雄冲水利项目","乡村建设行动","新建","水利三面光：0.3*0.3*765米，渡槽24.5米，拦水坝1个","2025年1月--2025年12月",20.577016,18,18,null,null,1,null,8,27,1,4,null,null,"农业农村局","斗江镇","完成三面光水利长1000米。","解决8户27人粮食种植问题"]
[89,"斗江镇","牙林村","斗江镇牙林村牙林屯农田水利项目工程","乡村建设行动","新建","水利三面光：0.2*0.2*719米、0.3*0.4*845米、0.5*0.5*332米，拦水坝2个","2025年1月--2025年12月",36.600404,25,15,10,null,1,null,125,520,15,61,null,null,"农业农村局","斗江镇","完成1800米农田水利三面光30厘米*30厘米*30厘米","解决非贫困村农田水利，促进125户520人农业增效。"]
[90,"林溪镇","林溪村","林溪镇林溪村岩寨屯小型农田水利维修项目","乡村建设行动","新建","完成维修岩寨小型农田水利，长20米宽下底2米，上底1米","2025年3月--2025年12月",10.997738,9,9,null,null,1,null,145,618,38,186,null,null,"农业农村局","林溪镇","完成维修岩寨小型农田水利，长20米宽下底2米，上底1米","解决林溪村岩寨屯农田灌溉，提升群众幸福感，提高群众生产效率"]
[91,"林溪镇","程阳村","林溪镇程阳村世英农田水渠维修项目","乡村建设行动","新建","完成农田水渠维修1500米","2025年3月--2025年12月",6.668271,{"$f":"K105+L105+M105","v":6},6,null,null,1,null,200,812,40,164,null,null,"农业农村局","林溪镇","完成农田水渠维修1500米","解决程阳150亩农田灌溉。"]
[92,"林溪镇","平铺村","林溪镇平铺村双夫农田灌溉","乡村建设行动","新建","完成1公里150#EP引水管铺设，及配套设施建设。","2025年3月--2025年12月",14.405478,12,12,null,null,1,null,60,250,10,55,null,null,"农业农村局","林溪镇","完成1公里150#EP引水管铺设，及配套设施建设。","解决双夫片区农田灌溉问题，改善村基础设施，促进60户250人农业产业发展，农民增收。"]
[93,"八江镇","归令村","八江镇归令村六更屯务岗水利项目","乡村建设行动","新建","硬化水利三面光长1700米，30*30*30*","2025年1月--2025年12月",73.689583,66,52,14,null,null,1,105,403,42,162,null,null,"农业农村局","八江镇","新建硬化水利三面光长1700米.30*30*30*","解决村民群众农田灌溉问题，保障村民农田有产业发展。"]
[94,"八江镇","三团村","八江镇三团村三团屯便亨水利建设项目","乡村建设行动","新建","1.新建30*30水渠长320米。2.新建 40*40水渠长 540米。3.水渠修复 45 米","2025年1月--2025年12月",33.994386,30,30,null,null,1,null,325,1217,63,257,20,83,"农业农村局","八江镇","1.新建30*30水渠长320米。2.新建 40*40水渠长 540米。3.水渠修复 45 米","保障粮食生产安全，促进增收。受益人数325户1217人，其中脱贫户(包含监测户)63户257人。"]
[95,"八江镇","三团村","八江镇三团村便妞孟龙水利项目","乡村建设行动","新建","硬化水利三面光长500米，40*40，拦水坝一座长10米，高1米，宽0.8米，","2025年1月--2025年12月",8.225534,7,7,null,null,1,null,254,854,56,185,null,null,"农业农村局","八江镇","维修硬化水利三面光长500米，40*40*40，拦水坝一座长10米，高1米，宽0.8米，","改善三团村产业基础设施条件，促进种植产业，带动旅游产业发展。"]
[96,"八江镇","布央村","八江镇布央村美地屯盘大水利三面光项目","乡村建设行动","新建","长1.5公里、宽0.3米","2025年1月--2025年12月",38.78368,34,34,null,null,1,null,103,412,30,90,null,null,"农业农村局","八江镇","完成水利三面光水渠长1.5公里、宽0.3米","解决农作物灌溉问题，改善基础设施，方便103户412人出行，提高收入水平。"]
[97,"独峒镇","岜团村","独峒镇岜团村集体复垦田水利工程","乡村建设行动","新建","新建给水管1719米，其中1#DN200PE管747米;2#de75PE管965米:de32PE管3米:de63PE管4米。共计出水口7处,de32PE闸阀3个，de63PE闸阀4个。本项目有40米架空给水管","2025年3月--2025年12月",14.149611,12,12,{"$nulls":3},1,55,253,23,100,null,null,"农业农村局","独峒镇","完成水利设施网管2千米，及配套设施建设。","完善脱贫村农田水利设施建设，灌溉水田20亩，40亩旱地，鱼塘5亩，受益55户253人。"]
[98,"独峒镇","干冲村","独峒镇干冲村渠桂交至岑苗农田水利灌溉项目","乡村建设行动","新建","新建de75给水管382米，de110给水管352米，de160给水管1785米，de200给水管4940米，新建拦水坝2座，新建集水井1座，新建阀门井及配套阀门52个","2025年3月--2025年12月",90.607668,77,42,35,null,null,1,500,3657,42,230,null,null,"农业农村局","独峒镇","完成水利水管铺设7000米，进水沉沙池3个，分水阀14个。","解决贫困村屯级生活生产问题，改善贫困村农业水利基础设施，方便500户3657人500亩农业安全生产。"]
[99,"独峒镇","干冲村","独峒镇干冲村顶真明条庙至岑蛮农田水利灌溉项目","乡村建设行动","新建","新建de63给水管890米，de110给水管2415米，de160给水管715米，de200给水管1110米，新建拦水坝9座，新建集水井2座，新建阀门井及配套阀门16个。","2025年3月--2025年12月",36.1351,25,25,{"$nulls":3},1,250,1284,50,210,null,null,"农业农村局","独峒镇","完成水利水管铺设5000米，进水沉沙池2个，分水阀12个。","解决贫困村屯级生活生产问题，改善贫困村农业水利基础设施，方便250户1284人250亩农业安全生产。"]
[100,"独峒镇","岜团村","独峒镇岜团村良工水利修复工程","乡村建设行动","新建","PE200水管25米，PE100管100米，步道硬化268米，水渠三面光及盖板133米","2025年3月--2025年12月",11.590688,10,10,{"$nulls":3},1,32,142,10,42,null,null,"农业农村局","独峒镇","完成水利设施网管修建1千米，及配套设施建设。","完善脱贫村农田水利设施建设，灌溉水田30亩，25亩旱地，鱼塘3亩，受益32户142人。"]
[101,"独峒镇","林略村","独峒镇林略村塘围农田水渠灌溉项目","乡村建设行动","新建","新建0.3*03m三面光水渠793米：新建0.3*0.3m盖板沟142米：新建PE100引水管96米：新建0.5*0.5m盖板沟1211米：新建拦水坝1座。","2025年3月--2025年12月",76.43321,64,44,20,null,null,1,240,960,50,230,null,null,"农业农村局","独峒镇","完成农田水渠三面光2.4千米建设，及配套设施建设。","完善脱贫村农田水利设施建设，灌溉水田65亩，20亩旱地，鱼塘5亩，受益240户960人。"]
[102,"独峒镇","弄底村","独峒镇弄底村弄底屯三团高培水利工程","乡村建设行动","新建","新建给水管966米，其中1#DN110PE管959米;2#de63PE管3米;de32PE管4米。共计出水口7处,出水口de32PE闸阀4个，排泥de63PE闸阀3个。新建3米长，0.6米高拦水坝一座。","2025年3月--2025年12月",5.538366,4,4,null,null,1,80,415,26,127,{"$nulls":3},"农业农村局","独峒镇","完成农田水利网管1.4千米及配套设施建设。","解决脱贫村农田灌溉难问题，改善脱贫村农业生产配套设施，项目受益80户415人。"]
[103,"程村乡","头坪村","程村乡头坪村老皮冲水利工程","乡村建设行动","新建","新修三面光水渠800米","2025年3月--2025年6月",11.68,10,10,null,null,1,0,40,267,13,67,0,0,"农业农村局","程村乡","拦水坝1座；30*30三面光水渠625米","改善生活生产条件，促进产业发展。"]
[104,"程村乡","头坪村","程村乡头坪村程村上寨屯龙家泠农田水利建设项目","乡村建设行动","新建","拦水坝2座；30*30三面光水渠1493米","2025年3月--2025年6月",27.61,24,24,{"$nulls":10},"农业农村局","程村乡","拦水坝2座；30*30三面光水渠1493米"]
[105,"程村乡","泗里村坪潺屯","程村乡泗里村坪潺屯大虫泠农田水利设施建设项目","乡村建设行动","新建","拦水坝3座；30*30三面光水渠555米；DN200PE管75米；DN110PE管1124米","2025年3月--2025年6月",26.47,23,23,{"$nulls":10},"农业农村局","程村乡"]
[106,"和平乡","板六村","和平乡板六村农田水利设施建设工程","乡村建设行动","新建","修建三面光水沟2200米宽30厘米、高30厘米、厚10厘米（东岭屯1200米；靖州屯1000米）","2025年1月-2025年6月",33.09,29,15,14,null,null,1,175,365,39,147,null,null,"农业农村局","和平乡","完成农田水利建设2200米","完善农户产业发展条件，促进产业发展，促进农户增收，涉及100亩农田，直接受益175户365人。"]
[107,"老堡乡","车田村","老堡乡车田村农田水利设施建设工程（红渔江至长古、口寨屯老边寨）","乡村建设行动","新建","新建2200米三面光水利，拦水坝一个","2025年3月--2025年12月",57.67,50,20,30,null,1,null,296,1142,{"$nulls":4},"农业农村局","老堡乡","完成水利及配套设施建设，宽度大于30厘米，管道直径不小于110毫米。","解决车田村农田灌溉用水，方便296户1142人粮食种植问题，项目建成后，农业产业将得到大力发展，有效治理撂荒非粮化"]
[108,"老堡乡","坡头村","老堡乡坡头村坡头屯大水库水利项目","乡村建设行动","新建","维修长500米、铺设管道，","2025年3月--2025年12月",11.2,10,10,null,null,1,null,60,360,8,24,null,null,"农业农村局","老堡乡","完成500米灌溉水利。","改善面上村灌溉设施，方便60户360人种植水稻粮食。"]
[109,"高基乡","白郡村","高基乡白郡村六亚学校背至庙底农田水利","乡村建设行动","新建","农田水利宽0.3米*高0.3米*壁厚0.1米*长1500","2025年3月--2025年12月",41.87,37,37,null,null,1,0,57,204,12,42,null,null,"农业农村局","高基乡","完成农田水利建设1500米","促进产业发展，完善配套设施，灌溉面积90亩。"]
[110,"高基乡","桐叶村","高基乡桐叶村桐拉屯农田水利灌溉工程","乡村建设行动","新建","新增水管1000米","2025年3月--2025年12月",9.71,8,8,null,null,"1",0,26,107,11,40,null,null,"农业农村局","高基乡","完成水源1000米水管铺设，及配套设施建设。","解决50亩水稻种植水源问题，提高群众种植积极性。"]
[111,"高基乡","白郡村","高基乡白郡村上白郡屯农田水利设施工程（拿应至老脚至应科田边）","乡村建设行动","新建","农田水利宽0.3米*高0.3米*壁厚0.1米*长1500","2025年3月--2025年12月",25.62,23,23,null,null,1,0,52,192,13,53,null,null,"农业农村局","高基乡","完成农田水利建设1500米","促进产业发展，完善配套设施，灌溉面积120亩。"]
[112,"高基乡","高基村","高基乡高基村高基屯十三段农田水利项目","乡村建设行动","新建","拦水坝1座；40*40三面光盖板水渠865米；DN160PE管110米","2025年3月--2025年6月",17.03,15,15,{"$nulls":10},"农业农村局","高基乡"]
[113,"良口乡","燕茶村","良口乡燕茶村燕子屯小型农田水利三面光硬化","乡村建设行动","新建","（1）燕茶村燕子屯平宽小型农水利三面光硬化长600米0.30米X0.30米。(受益群众2500人，农田150亩）\n（2）燕茶村燕子，布交屯高后田段农田水利三面光硬化长600米X0.30X0.30，(需修2处拦水坝)。（受群众3000人，农田200亩)\n（3）燕茶村大茶屯冲小农田水利三面光硬化长800米X0.30X0.30","2025年3月－2025年12月",63.764998,57,44,13,null,null,1,600,3000,275,1500,null,null,"农业农村局","良口乡","目建成后可解决脱贫村农田供水问题，改善基础设施，可便于恢复水毁、撂荒农田近100亩，项目惠及基本农田550多亩","改善燕茶村的生产生活条件，促进产业增收"]
[114,"洋溪乡","玉民村","洋溪乡玉民村珠荣扛至引两拥三面光水利项目","乡村建设行动","新建","新建玉民村珠荣扛至引两拥1.5公里30cm*30cm三面光水利项目","2025年3月--2025年12月",9.674901,9,9,null,null,0,1,61,308,61,308,0,0,"农业农村局","洋溪乡","完成新建珠荣扛至引两拥三面光水利项目","便于洋溪乡玉民村耕作区发展生产"]
[115,"洋溪乡","玉民村","洋溪乡玉民村负背至两足三面光水利项目","乡村建设行动","新建","新建玉民村负背至两足1公里30cm*30cm三面光水利项目","2025年3月--2025年12月",9.411509,8,8,null,null,0,1,93,580,13,77,0,0,"农业农村局","洋溪乡","完成新建负背至两足三面光水利项目","便于洋溪乡玉民村耕作区发展生产"]
[116,"洋溪乡","洋溪村","洋溪乡洋溪村古瓦屯边大至支言水渠农田水利设施建设工程","乡村建设行动","新建","新建长500米30cm*30cm三面光","2025年3月--2025年12月",5.018617,4,4,null,null,0,1,45,185,23,92,0,0,"农业农村局","洋溪乡","解决村民产业发展供水灌溉问题","为村民发展产业提供便利，促进生产发展"]
[117,"洋溪乡","勇伟村","洋溪乡勇伟村寨保屯农田水利设施建设工程项目","乡村建设行动","新建","寨保屯水利修复4处，共100米","2025年3月--2025年12月",8.777675,8,8,null,null,0,1,58,268,13,60,0,0,"农业农村局","洋溪乡","修复稳固水利4出100米","保障农户发展产业有稳定水源供给"]
[118,"洋溪乡","玉民村","洋溪乡珠荣扛至松都九三面光水利项目","乡村建设行动","新建","新建玉民村珠荣扛至松都九2公里30cm*30cm三面光水利项目","2025年3月--2025年12月",26.862574,24,24,null,null,0,1,61,308,61,308,0,0,"农业农村局","洋溪乡","完成新建珠荣扛至松都九三面光水利项目","便于洋溪乡玉民村耕作区发展生产"]
[119,"洋溪乡","玉民村","洋溪乡玉民村更初至付足下里三面光水利项目","乡村建设行动","新建","新建玉民村更初至付足下1.5公里30cm*30cm三面光水利项目","2025年3月--2025年12月",18.076145,16,16,null,null,0,1,74,440,38,211,0,0,"农业农村局","洋溪乡","完成新建更初至付足下三面光水利项目","便于洋溪乡玉民村耕作区发展生产"]
[120,"富禄乡","培进村","富禄乡培进村农田水利建设工程项目","乡村建设行动","新建","乌归虾至松弄水利三面光:底30X高40X高40、厚度均为10CM长1500米；乌归虾至南上水利三面光:底30X高40X高40、厚度均为10CM长1500米；乌归虾至南上水利三面光:底30X高40X高40、厚度均为10CM长1500米；正乌至乌列胶管：水管内空直径20CM、长1500米；归朱奶至北洛送胶管：75水管长300米。","2025年3月--2025年12月",91.46538,82,68,14,null,null,1,318,1590,291,1455,null,null,"农业农村局","农业农村局","完成水利建设，促进产业发展","解决群众农田水利问题，促进产业发展，增加群众收入"]
[121,"富禄乡","岑洞村","富禄乡岑洞村永两务至两故优农田水利设施建设工程","乡村建设行动","新建","永两务至两故优管道水利：主管50#长500米、支管40#2000米。永古奋至冲马脑管道水利：主管50#长500米、支管40#1500米。永留至冲底管道水利：主管50#长300米、支管40#1000米。松福至冲深管道水利：主管50#长600米、支管40#1000米。","2025年3月--2025年12月",26.825216,24,24,{"$nulls":3},1,317,2119,121,855,null,null,"农业农村局","富禄乡","完成管道水利长7400米，及配套设施建设，灌溉水田80亩。","解决贫困村屯粮食安全问题，灌溉基本农田。"]
[122,"富禄乡","岑旁村","富禄乡岑旁村农田水利灌溉项目","乡村建设行动","新建","岑羊至广种片区水管1500米.安装63管;归高难至归太片区水管1500米.安装80管;归高难至归太片区水管1500米.安装80管;归茶片区水管500米.安装63管;归茶至机山片区水管400米.安装63管；归岑牙片区水管300米.安装63管。","2025年3月--2025年12月",54.636558,{"$f":"K136+L136+M136","v":49},36,13,null,null,1,433,1838,226,1016,null,null,"农业农村局","富禄乡","完成农田水利灌溉，及配套设施建设。","解决贫困村农田水利灌溉问题，改善贫困村基础设施。"]
[123,"富禄乡","龙奋村","富禄乡龙奋村引两王农田水利设施建设工程","乡村建设行动","新建","引两王农田水利长1960米，PE管直径160毫米","2025年3月--2025年12月",30.813062,27,27,{"$nulls":3},1,428,2186,275,1422,null,null,"农业农村局","富禄乡","完成1960米水利灌溉饮水，便于灌溉400亩左右基本农田，保障龙奋村种粮安全。","方便428户2192人农业生产。"]
[124,"梅林乡","新民村","梅林乡新民村省口屯水利农渠拦水坝项目","乡村建设行动","新建","1.拦水坝10m长，高2.0m,0.3*0.3渠道95m\n2.拦水坝5m长,高2.0m,0.3*0.3渠道125m\n3.拦水坝6m长,高2.0m,0.3*0.3渠道80m\n4.拦水坝15m长,高1.5m,0.3*0.3渠道100m\n5.拦水坝9m长高1.5m,，pe50水管长440m\n6.拦水坝5m长,高1.5m,0.3*0.3渠道130m\n7.拦水坝8m长,高2.0m,0.3*0.3渠道15m\n8.拦水坝6m长,高1.5m,0.3*0.3渠道180m\n9.拦水坝6m长，高2.0m,pe200水管长110m\n10.拦水坝9m长,高1.5m,0.3*0.3渠道40m","2025年1月--2025年12月",30.808414,27,27,{"$nulls":3},1,253,1139,94,378,0,0,"农业农村局","梅林乡","解决产业发展，防止水毁农田","改善新民村生产生活条件，促进产业发展"]
[125,"同乐乡","归夯村","同乐乡归夯村归交水利建设工程","乡村建设行动","新建","新建水利三面光。长度4000米，规格40*30*12，","2025年1月-2025年4月",100.993789,87,47,40,null,null,1,418,1800,220,967,null,null,"农业农村局","同乐乡","完成新建三面光水利4公里，及配套基础设施建设，保障418户1800人粮食安全生产问题。","完善农田水利设施，改善产业发展环境，提升农田产出收益，增加农民产业收入，保障418户1800人粮食安全。"]
[126,"同乐乡","高洋村","同乐乡高洋村高洋屯农田水利设施建设工程（松昂至周耶）","乡村建设行动","新建","1、新建0.2x0.3m三面光水渠总长185米；2、160PE管总长1000米。","2025年1月-2025年4月",11.130897,10,10,{"$nulls":3},1,561,2616,166,736,null,null,"农业农村局","同乐乡","完成2000米三面光水渠，为高洋村2个生产组耕种区，提供水源灌溉，保障农户正常耕种生产，确保土地非粮化","完成2000米三面光水渠，为高洋村2个生产组耕种区，提供水源灌溉，保障农户正常耕种生产，确保土地非粮化，保障561户2616人粮食安全。"]
[127,"同乐乡","归东村","同乐乡归东村农田水利设施建设工程","乡村建设行动","新建","新建0.3*03m三面光水渠848米；新建0.4*0.4m水渠781米；新建0.5*0.5m水渠843米；新建1*1m水渠202米；新建50PE引水管663米；新建63PE引水管746米；新建75PE引水管114米：新建160PE引水管64米：新建100PE引水管328米；新建200PE引水管246米","2025年1月-2025年4月",76.429473,63,38,25,null,null,1,560,2277,305,1274,null,null,"农业农村局","农业农村局","完成水利三面光硬化0.3公里，改善560户，2277人粮食安全问题。","完善农田水利设施，改善产业发展环境，提升农田产出收益，增加农民产业收入，保障560户2277人粮食安全。"]
[128,"同乐乡","归美村","同乐乡归美村高达屯命美生至乌成美孝农田水利设施建设工程","乡村建设行动","新建","1、新建三面光水渠总长1506米（其中0.3x0.3m三面光水渠1441米；0.2x0.2m三面光水渠65米）；2、de75PE管总长477米；3、新建拦水坝一座。","2025年1月-2025年4月",24.037332,21,21,{"$nulls":3},1,150,600,50,213,null,null,"农业农村局","同乐乡","完成水利三面光硬化1.2公里，改善110户，460人粮食安全问题。","完善农田水利设施，改善产业发展环境，提升农田产出收益，增加农民产业收入，保障150户600人粮食安全。"]
[129,"同乐乡","归美村","同乐乡归美村归纳屯农田水利设施建设工程","乡村建设行动","新建"," 新建0.3米*0.3米三面光水渠1891米；新建0.5米*0.5米三面光水渠2米；新建1座长2.5米，高0.5米拦水坝；新建1.5m高护肩挡土墙17米；新建直径0.3m混凝土管沟11米；新建DN110给水管62米，其中有30米需架管，","2025年1月-2025年4月",36.310138,32,32,{"$nulls":3},1,323,1503,95,393,null,null,"农业农村局","同乐乡","完成水利三面光硬化1.8公里，改善323户，1503人粮食安全问题。","完善农田水利设施，改善产业发展环境，提升农田产出收益，增加农民产业收入，保障323户1503人粮食安全。"]
[130,"和平乡","六溪村","和平乡六溪村农田水利设施建设工程","乡村建设行动","新建","拦水坝2座；dn90pe管1537米；30*30三面光水渠2272米；维修水渠597米；埋设30直径砼涵管8米；破除旧水渠469米","2025年1月-2025年4月",49.47,44,33,11,{"$nulls":3},478,1735,64,255,null,null,"农业农村局","和平乡","完善我村农田水利灌溉建设：1.新建de90PE引水管长度1537米；2.新建300*300水渠2272米；3.原水渠维修597米；4.破除原水渠469米；5.埋设φ30涵管8米。6.新建拦水坝一座，长9米，高1.4米。","解决群众种田缺水及防洪问题，提高群众种粮积极性，粮食增产增收，直接受益478户1735人.。"]
[131,"林溪镇","林溪村","林溪镇林溪村新寨务难水利管道项目","乡村建设行动","新建","1#,2#水源拦水坝:两座，分别2m*1m高；de160PE100管：1010m，分水阀若干","2025年1月-2025年4月",9.706013,8,8,null,null,1,0,56,271,8,39,3,13,"农业农村局","林溪镇","完成该屯56户水利配套设施","解决了全屯56户271人的水利灌溉问题"]
[132,"南站社区","南站社区","三江侗族自治县南站社区地摊经济市场项目","产业发展","续建","三江县南站社区地摊经济市场项目，总建筑面积 889.56平方米。主要建设内容包括建筑工程、装饰装修工程、给排水工程、电气工程、通风工程、消防工程以及室外绿化、给排水、供配电等。","2024年6月-2025年4月",50,45,45,{"$nulls":10},"农业农村局","农业农村局","拟建商业用房及公厕各1栋，框架结构，总建筑面积890.33㎡，其中商业用房为两层建筑，建筑面积为876.68㎡，公厕为单层建筑，建筑面积为13.65㎡，围墙305m，场地硬化3700㎡，绿化面积776㎡实现村民就近就业，助推当地村集体经济发展。\n数量指标：商业用房为两层建筑，建筑面积为876.68㎡，公厕为单层建筑，建筑面积为13.65㎡；\n质量指标：项目验收合格率100％；项目资金支出合规率100％；\n时效指标：完工及时率＝100％，项目完工验收时间≤2025年12月；\n成本指标：项目建成总成本≤420万元；","一是可依托当地党支部搭建平台。搭建农户自主经营惠民平台，依托党支部提供场地和培训，鼓励周边村民群众通过租赁摊位参与经济发展，着力培养出能推动村级集体经济快速发展的骨干中坚力量。二是小摊位促进大增收。以“小摊位”带动本地群众家门口就业的同时，依靠出租摊位促成村集体收益，形成可固定、可持续、可增长的良好发展态势。三是配套设施提升服务。以环境综合整治为着力点，可在服务区设置保洁员等公益岗位，开展周边环境卫生治理、卫生间维护等工作，全面改善道路环境，完善卫生间等基础设施，不断刷新易安小区周边村镇整体“颜值”的同时，拓宽为民助民渠道，不断富裕村民“口袋”。同时预计可设40个摊位，预计可带动直接从事“地摊经济“约 130 人，间接带动从事产业链相关人员就业预计可达 400 人。实现村民就近就业，助推当地村集体经济发展。","续建项目"]
[133,"古宜镇","大竹村","三江侗族自治县苗木交易市场项目","产业发展","续建","建筑面积 2132.50 平方米，其中 1#楼为一栋附属管理用房，为两层\n建筑，建筑面积约为 432.50 平方米，2#楼为一栋市场用房，为\n两层建筑，建筑面积约为 1700 平方米。","2024年6月-2025年4月",100,90,90,{"$nulls":10},"农业农村局","农业农村局","有效繁荣三江苗木经济，存进三江县特色产业\n的发展及壮大。建成三江侗族自治县苗木交易市场项目，总建筑\n面积 2132.50 平方米，总体目标为在建设期 1.5 年内各建设内\n容全部交工验收合格","项目建成后将形成“一站式”种苗交易市场平台。是一项惠及广大人民群众,并带动种苗、商业、物流相关产业共同发展的一项惠民工程,也是一项调整项目所在县农业产业化结构、增加农民收入的战略性举措, 极大地促进地方经济建设快速发展。项目建设有利于三江地方农产品产业自身的发展和市场的需求,为当地农业企业、农户提供具备竞争优势的交易平台,项目建设已具备了较有利的条件,项目具有良好的经济效益、社会效益,也有较强抗风险能力,项目建设必要性充足,有建设价值","续建项目"]
[134,"古宜镇","大竹村","古宜镇大竹村杉木产业基地产业路硬化项目（县填埋场至深冲岭)","产业发展","新建","（1）混凝土道路 1.852公里，本生产路为砼路面道路，路肩宽0.5m；（2）φ0.6涵管6.0米;（3）新建混凝土排水沟964米;(4)破除旧路面5900平方(5)竣工牌1块","2025年3月--2025年12月",123.9779,{"$f":"K148+L148+M148","v":111},null,111,null,1,null,932,3670,73,264,null,0,"农业农村局","农业农村局","完成硬化路面长2.5公里，及配套设施建设。方便932户3670人高质量发展产业。","解决大竹村村民通车运输农产品问题，改善村基础设施，方便932户3670人高质量发展产业。"]
[135,"古宜镇","文大村","古宜镇文大村大坪屯油茶产业基地产业路硬化项目（公路至松冲口）","产业发展","新建","（1）混凝土道路:道路宽度：0.35米，道路总长0.79公里，本生产路为砼路面道路，路肩宽0.5m；（2）旧路面破除1452.5㎡；（3）竣工牌2块","2025年3月--2025年12月",57.7536,51,null,51,null,1,null,77,319,5,24,1,3,"农业农村局","农业农村局","完成硬化路面长1公里，及配套设施建设。解决大坪屯村民通车运输农产品问题，改善村基础设施，方便77户318人高质量发展产业。","解决大坪屯村民通车运输农产品问题，改善村基础设施，方便77户318人高质量发展产业。"]
[136,"丹洲镇","六孟村","丹洲乡六孟村甲塘至古济冲（孟公）产业路项目","产业发展","新建","总里程0.509km，新建碎石路面0.509km，路基宽5.5m,路面宽4.5m；新建1-5*5m盖板涵，1-2*2m盖板涵","2025年3月--2025年12月",55.577674,50,null,50,null,1,null,512,1746,51,190,0,0,"农业农村局","农业农村局","新建公路长2.5公里及配套排水设施建设","减少农产品运输成本，带动产512户1746人业发展"]
[137,"丹洲镇","西坡村","丹洲镇西坡村下段屯至白石坡产业路硬化","产业发展","新建","硬化路面长3公里、路面宽3.5米、厚20厘米，压实砂石基层厚18厘米；两边培路肩宽各0.5米；合理设置涵洞、边沟、错车道等","2025年3月--2025年12月",178.8141,160,null,160,null,1,null,41,195,2,7,0,0,"农业农村局","农业农村局","解决西坡村下段屯茶叶50亩，油茶80亩，杉木4000多亩等产业运输问题，改善下段屯生产生活条件，方便群众发展产业。","改善西坡村下段屯的生产生活条件，促进产业发展，使村民得到增收，方便群众发展产业。"]
[138,"斗江镇","扶平村","斗江镇扶平村杉木基地建设项目（广南冲至甘岭）","产业发展","新建","总里程3.215km，本工程路基宽为4.5米；路面宽：3.5米；路面结构层拟定为：15cm厚碎石垫层（就地取材）+2cm厚磨耗层路面，土路肩（两边做），新建圆管涵96m/12道，错车道10处，竣工碑一座","2025年3月--2025年12月",78.530283,70,null,70,null,null,1,269,1055,74,299,null,null,"农业农村局","农业农村局","完成产业路4公里建设。","解决农副产品运输问题，方便269户1055人发展产业及出行。"]
[139,"斗江镇","沙宜村","斗江镇沙宜村界脚屯209国道至周家冲产业道路硬化项目 ","产业发展","新建","总里程1.817km，路基宽为4.5米、路面宽3.5米、路面结构层拟定为:15cm厚碎石垫层+20cm厚C25混凝土路面、土路肩 1817.20㎡(两边做),新建圆管涵42m/6道，错车道6处，新建挡土墙4幅，护栏1140米，竣工碑一座","2025年3月--2025年12月",133.080989,119,null,119,null,1,null,36,142,7,33,null,null,"农业农村局","农业农村局","完成硬化路2.5公里，及配套设施建设。","助力产业发展，有效解决村民出行，方便生活生产提升36户142人幸福感。"]
[140,"斗江镇","思欧村","斗江镇思欧村油茶产业基地产业路硬化项目（金城隘屯六稿山）","产业发展","新建","新建产业路硬化3公里，路面宽3.5米函板桥10处","2025年3月--2025年12月",210.8434,190,null,190,null,null,1,458,1392,123,407,null,null,"农业农村局","农业农村局","完成硬化路面长3公里，及配套设施建设。","解决农副产品运输问题，方便458户1392人发展产业及出行。"]
[141,"斗江镇","沙宜村","斗江镇沙宜村那晚屯209国道至溪边道路硬化项目","产业发展","新建","（1）水泥路面616平方米；（2）拆除原有小桥梁，新建一座盖板涵、护栏28米；（3）新建挡土墙高2.0米，长15米；（4）新建盖板沟51米、排水沟39米、φ0.3涵管4.5米","2025年3月--2025年12月",19.659336,18,18,null,null,1,null,12,48,{"$nulls":4},"农业农村局","农业农村局","完成硬化路300米，及配套设施建设。","助力产业发展，有效解决村民出行，方便12户48人生活生产。"]
[142,"林溪镇","高秀村","林溪镇高秀村马哨屯务命加祥油茶产业基地产业道路硬化项目","产业发展","新建","总里程1.438km，路基宽4.5m，铺筑水泥混凝土路面宽3.5m，过路管涵24m,波形护栏1561m，并设竣工碑一座","2025年3月--2025年12月",118.1831,106,69,37,{"$nulls":3},120,498,{"$nulls":4},"农业农村局","农业农村局","完成硬化路面长2.6公里，及配套设施建设。","解决高秀村马哨屯务命加祥油茶产业基地道路通车问题，改善基础设施，方便120户498人出行水平。"]
[143,"林溪镇","合华村","林溪镇合华村交桃产业路硬化项目","产业发展","新建","总里程1.251km，路基宽4.5m，铺筑水泥混凝土路面宽3.5m。主要工程：碎石基层、水泥混凝土路面等，并设竣工碑一座","2025年3月--2025年12月",78.2754,70,70,null,null,1,0,147,675,28,121,10,46,"农业农村局","农业农村局","完成硬化路面长1.1公里，及配套设施建设。","解决贫困村与非贫困村屯级道路通车问题，改善贫困村基础设施，方便147户675人出行水平。"]
[144,"八江镇","汾水村","八江镇汾水村高滩屯高山云雾茶产业示范基地建设项目","产业发展","新建","（1）混凝土道路 3.011公里，本生产路为砼路面道路，路肩宽0.5m；（2）φ1.0涵管6.0米；（3）竣工牌1块","2025年3月--2025年12月",176.1453,158,158,null,null,0,1,329,1319,191,921,null,null,"农业农村局","农业农村局","硬化路面长3.747公里、路面宽4.5米、厚20厘米，压实砂石基层厚30厘米；两边培路肩宽各0.5米；合理设置涵洞、边沟、错车道等","完善汾水村产业基础设施，促进产业发展，便于群众出行"]
[145,"八江镇","八斗村","八江镇八斗村八斗大屯油茶基地产业路安全防护项目","产业发展","新建","挡土墙1幅50m，公路边沟170m，波形护栏912m，并设竣工碑一座","2025年3月--2025年12月",47.1315,42,42,{"$nulls":4},1210,4110,250,1057,null,null,"农业农村局","农业农村局","完成硬安全防护栏安装1公里，挡土墙58米，高3.7米，排水沟180米，及配套设施建设。","解决贫困村行车安全问题，保障群众出行安全，方便1210户4110人出行。"]
[146,"独峒镇","林略村","独峒镇林略村通大塘坳旅游路提升项目","产业发展","新建","（1）新建重力式挡土墙25m，（2）新建仰斜式挡土墙26+77m,（3）新建急流槽：16+18m，（4）新建1－Ф0.8圆管涵：2m，（4）新建排水沟：141m，（5）新建1-3.0*3.0盖板涵：19m，（6）拆除、新建C30防撞墙：32m，（7）破除并恢复路面：15m。","2025年3月--2025年12月",173.29107,155,155,{"$nulls":3},3,887,3346,105,526,null,null,"农业农村局","农业农村局","完成旅游道路配套设施建设","完善产业发展基础设施，促进当地村民发展生产。"]
[147,"程村乡","头坪村","程村乡头坪村南山脑至高榜竹木经济林道路建设工程","产业发展","新建","建设内容：新建经济林道路、合理设置边沟、错车道。\n建设规模：新建路面长3.5公里、路面宽4.5米厘米合理设置涵洞、边沟、错车道等。","2025年3月--2025年12月",137.663,123,123,null,null,1,0,650,2400,37,139,5,16,"农业农村局","农业农村局","完成头坪村各屯竹木经济林道路修建。","改善生活生产条件，促进产业发展。"]
[148,"和平乡","和平村","和平乡和平村江脑屯独田（棉山）油茶产业基地配套产业路项目","产业发展","新建","项目总长2.009公里，路基宽为4.5 m，路面宽为3.5 m；采用3 .5m行车道+2×0.5m培土路肩，设置涵洞7道，每道6米，总共42米；全部为新建圆管涵","2025年3月--2025年12月",146.0324,131,131,null,null,1,null,69,198,14,45,null,null,"农业农村局","农业农村局","完成3公里产业路建设","解决油茶种植户基地产业路，提高群众发展产业的信心，直接受益69户198人。"]
[149,"和平乡","清江村","和平乡清江村拉州屯至和平村江脑屯通屯砂石路硬化工程","产业发展","新建","硬化通屯砂石路，长3.494公里，路面宽4.5米、盖板涵、挡土墙、防护栏","2025年3月--2025年12月",319.5291,287,287,{"$nulls":10},"农业农村局","农业农村局",null,"解决清江村拉州屯至和平村江脑屯道路通车问题，改善基础设施，方便587户1798人出行水平。"]
[150,"老堡乡","边浪村","老堡乡边浪村中草药材基地产业道路硬化项目（上保屯至白云山）","产业发展","新建","硬化路面长3公里、路面宽3.5米、厚20厘米，压实砂石基层厚15厘米；两边培路肩宽各0.5米；合理设置涵洞、边沟、错车道等","2025年3月--2025年12月",188.9409,170,170,{"$nulls":3},1,344,1557,280,1293,23,99,"农业农村局","农业农村局","完成硬化路面长7公里，及配套设施建设。","解决脱贫村产业道路通车问题，改善脱贫村基础设施，方便344户1557人产业发展。"]
[151,"高基乡","弓江村","高基乡弓江村下九坪至江外油茶基地道路硬化建设项目","产业发展","新建","项目总长1.980公里，路基宽为4.5 m，路面宽为3.5 m；采用3 .5m行车道+2×0.5m培土路肩，设置涵洞13道，12道6米、1道10米；总共82米；全部为新建圆管涵。","2025年3月--2025年12月",150.8238,135,135,null,null,0,1,195,706,87,319,null,null,"农业农村局","农业农村局","完成硬化路面长3.5公里，及配套设施建设。","解决脱贫村油茶基地和集体经济项目养牛基地道路通车问题，改善脱贫村基础设施，方便了130亩油茶林管护，60户350人杉竹出山水平，也便于本村集体经济项目养牛基地发展壮大。"]
[152,"高基乡","白郡村","高基乡白郡村寨旺屯产业路硬化项目（坡墓至拉岜）","产业发展","新建","硬项目总长1.532公里，路基宽为4.5 m，路面宽为3.5 m；采用3 .5m行车道+2×0.5m培土路肩，设置涵洞3道，每道6米；总共18米；全部为新建圆管涵。","2025年3月--2025年12月",139.346,125,125,null,null,1,0,60,256,5,27,null,null,"农业农村局","农业农村局","完成硬化路面长1公里，及配套设施建设。","解决村民生产问题，改善基础设施，方便60户256人生产作业。"]
[153,"良口乡","产口村","良口乡产口村新寨屯二组产业路","产业发展","新建","项目总长6.232公里，路基宽为4.5 m，路面宽为3.5 m；采用3 .5m行车道+2×0.5m培土路肩，设置涵洞28道，每道7米，总共196米；全部为新建圆管涵。","2025年3月--2025年12月",156.933,140,121,19,null,null,1,527,1987,83,349,null,null,"农业农村局","农业农村局","项目建成后能改善群众出行以及农作物的运输，有效的降低了群众的运输成本，提高群众的收入","降低运输成本，提高收益，带动产业发展"]
[154,"良口乡","产口村","良口乡产口村寨沙屯油茶基地产业路硬化","产业发展","新建","良口乡产口村寨沙屯油茶基地产业路硬化","2025年3月--2025年12月",151.9984,136,114,22,null,null,1,527,1987,83,349,null,null,"农业农村局","农业农村局","项目建成后有方便群众出行，降低了农作物运输成本，增加群众收入，带动产业发展","改善生产生活条件，降低运输成本，促进产业发展，方便群众出行"]
[155,"洋溪乡","高露村","洋溪乡高露村中寨屯杉木产业基地新建产业路项目(布萨至加甲下)","产业发展","新建","路面长4公里、路面宽4.5米，路基6米，压实砂石基层厚15厘米；两边培路肩宽各0.75米；合理设置涵洞、边沟、错车道等","2025年3月--2025年12月",179.8565,161,120,41,null,null,1,240,800,46,208,null,null,"农业农村局","农业农村局","便利高露村产业路输出产业发展","改善高露村的生活件，促进产业运输方便，方便群众出行"]
[156,"洋溪乡","玉民村","洋溪乡玉民村新寨产业基地至两胜刘产业基地新建产业路项目","产业发展","新建","新建新寨产业基地至两胜刘产业基地路面长5公里、路面宽5米产业路。","2025年3月--2025年12月",181.4899,163,122,41,null,null,1,208,1207,57,316,null,null,"农业农村局","农业农村局","完成新建路面长5公里产业路","解决村与村屯级道路通车问题，改善村基础设施，方便群众交通出行安全。"]
[157,"洋溪乡","信洞村","洋溪乡信洞村新村至高记农户联营优质稻基地产业路硬化项目","产业发展","新建","项目总长1.260公里，路基宽为4.5 m，路面宽为3.5 m；采用3 .5m行车道+2×0.5m培土路肩，设置涵洞2道，每道12米，总共24米；全部为新建圆管涵。","2025年3月--2025年12月",63.9245,57,42,15,null,null,1,478,1949,271,1133,null,null,"农业农村局","农业农村局","该基地涉及油茶产业 124 亩、茶叶 320 亩、优质稻 560 亩、杉木 168 亩，项目建成后大大降低农户运输化肥及农副产品的运输成本，改善群众生产生活条件的同时，完善产业基地的配套基础设施。","项目建成后大大降低农户运输化肥及农副产品的运输成本，改善群众生产生活条件的同时，完善产业基地的配套基础设施。受益户478户，受益人口1949人。"]
[158,"富禄乡","培进村","富禄乡培进村列嘎至别塘山油茶基地产业路硬化项目","产业发展","新建","硬化路面长3.5公里、路面宽3.5米、厚20厘米，压实砂石基层厚10厘米；两边培路肩宽各1米；合理设置涵洞、边沟、错车道等","2025年3月--2025年12月",192.06134,172,139,33,null,null,1,415,2145,276,1422,null,null,"农业农村局","农业农村局","完成硬化路面长3.5公里，及配套设施建设。","解决贫困村产业路问题，改善贫困村基础设施，方便415户2145人出行水平。"]
[159,"富禄乡","富禄村","富禄乡富禄村葛亮屯产业路建设工程","产业发展","新建","新建产业路井班-岑牙-岑远-管电白-轮岑，全长约7公里，宽4米","2025年3月--2025年12月",{"v":171.786656,"d":"171.7867"},154,109,45,null,1,null,218,716,23,99,null,null,"农业农村局","农业农村局","解决富禄村葛亮屯产业发展问题，收益群众736人，杉树1200亩，油茶200亩","改善富禄村葛亮屯的生产生活条件，促进产业发展。"]
[160,"梅林乡","石碑村","梅林乡石碑村广现坡产业路硬化项目","产业发展","新建","硬化路面长5.5公里、路面宽4米、厚20厘米，压实砂石基层厚20厘米；两边培路肩宽各0.5米；合理设置涵洞、边沟、错车道等","2025年3月--2025年12月",234.7731,211,166,45,null,1,0,490,1849,81,323,9,36,"农业农村局","农业农村局","完成硬化路面长5.5公里，及配套设施建设。","解决贫困村与非贫困村屯级道路通车问题，改善村寨基础设施，方便490户1849人出行水平和发展产业"]
[161,"同乐乡","良冲村","同乐乡良冲村培秀屯岑塔约林区道路建设工程","产业发展","新建","项目总长3.634公里,路基宽为4.5 m，路面宽为3.5 m；采用3 .5m行车道+2×0.5m培土路肩，设置涵洞9道，每道6米，总共54米；全部为新建圆管涵","2025年3月--2025年12月",145.7553,134,112,22,null,null,1,735,3054,384,1746,null,null,"农业农村局","农业农村局","完成硬化路面长4公里，及配套设施建设。方便735户，3054人安全出行。","完善产业基地配套设施，扩大产业种植规模，促进产业提质增效。增加农户收入，壮大村集体经济。方便735户3054人开展产业活动。"]
[162,"同乐乡","孟寨村","同乐乡孟寨村富北亮竹和央友林区道路建设工程","产业发展","新建","项目总长2.155公里、央友林区项目总长1.734公里，路基宽为4.5 m，路面宽为3.5 m；采用3 .5m行车道+2×0.5m培土路肩，富北亮竹设置涵洞4道，每道6米，总共24米、央友林区设置涵洞5道，每道6米，总共30米；全部为新建圆管涵。","2025年3月--2025年12月",108.3655,97,70,27,null,null,1,699,2787,238,886,null,null,"农业农村局","农业农村局","完成林区道路建设4.4公里，及配套设施建设。解决699户2787人产业生产出行困难问题。","完善产业交通设施，解决贫困村村民发展产业出行困难问题，提高村民经济收入，方便699户2787人发展林区经济。带动优质稻256亩，茶叶356亩，杉木587亩，茶油283亩产业提质增效。"]
[163,"同乐乡","高旁村","同乐乡高旁村登弄两茶产业基地新建产业路项目","产业发展","新建","硬化产业路。长3.8公里、路面宽3.5米、厚20厘米，压实砂石基层厚10厘米；两边培路肩宽各0.5米；合理设置涵洞、边沟、错车道等。","2025年3月--2025年12月",254.678,229,133,96,null,null,1,446,1723,192,800,null,null,"农业农村局","农业农村局","完成硬化路面长2.8公里，及配套设施建设。保障446户1723人出行安全。","解决贫困村产业道路通车问题，改善贫困村基础设施，方便446户1723人出行安全，保障村民出行安全，促进村民产业发展。"]
["县统战部",null,"小计",null,"小计",{"$nulls":3},{"$f":"SUM(I179:I185)","v":1382.297241},{"$f":"SUM(J179:J185)","v":1150},{"$f":"SUM(K179:K185)","v":1150},{"$f":"SUM(L179:L185)","v":0},{"$f":"SUM(M179:M185)","v":0},{"$f":"SUM(N179:N185)","v":1},6,4461,16784,1518,6249,0,0]
[164,"独峒镇","岜团村岜团屯","独峒镇岜团村民族特色村寨旅游产业发展配套设施项目","产业发展","新建","新便民桥1座，宽4.5米，长度23米；新石板路80米，1.2宽；栈道长433米，宽2.1米；","2025年1月-2025年12月",276.614753,{"$f":"K179+L179+M179","v":235},235,{"$nulls":3},1,554,2254,210,833,null,null,"统战部","统战部","新建风雨桥1座，宽4.5米，长度23米；新石板路80米，1.2宽；栈道长433米，宽2.1米；","项目建成后，将全面提升民族村寨“形、实、魂”，补齐基础设施和公共服务设施短板弱项，依托村寨地域特点和文化特色，积极发展民俗风情旅游，打造特色乡村旅游品牌。推动民族村寨建设成为多姿多彩乡土文化繁荣发展、巩固拓展脱贫攻坚成果和乡村振兴，扎实推进各民族交往交流交融，擦亮的宜居宜业和美村寨，使其成为引领民族村寨高质量发展的标杆示范。","少数民族发展任务"]
[165,"八江镇","八斗村","八江镇八斗村中朝屯冲喜至岗补苗油茶基地产业路硬化建设项目","产业发展","新建","产业路硬化路线全长2.6 公里，路基宽度：4.5 米，路面宽度：3.5 米\n。包括预留排水沟、路肩回填、涵洞、挡土墙等；","2025年1月-2025年12月",188.935,145,145,null,null,1,null,1211,4110,250,1057,null,null,"统战部","统战部","产业路硬化路线全长2.6 公里，路基宽度：4.5 米，路面宽度：3.5 米\n。包括预留排水沟、路肩回填、涵洞、挡土墙等；","该基地涉及油茶587亩、茶叶202亩、优质稻36亩、杉木1123亩。项目建成后，将有力推动产业发展，大幅提高村民产业生产效率，显著降低农户运输化肥及农副产品的成本。全面改善农业生产与出行安全条件，辐射带动周边农户产业进步。促进各民族团结奋斗、繁荣发展，进一步铸牢中华民族共同体意识，助力乡村振兴。","少数民族发展任务"]
[166,"古宜镇","泗联村","古宜镇泗联村白花屯窍泠屯油茶基地新建产业路项目","产业发展","新建","产业路硬化路场0.963公里，路基宽度：4.5 米，路面宽度：3.5 米。新开挖产业路2.937公里，路基宽4.5米，路面宽3.5米（碎石垫层厚15cm+磨耗层厚2cm）。包括预留排水沟、路肩回填、涵洞、挡土墙等。","2025年1月-2025年12月",262.6647,225,225,{"$nulls":3},1,{"$f":"125+167","v":292},{"$f":"505+594","v":1099},{"$f":"7+16","v":23},74,null,null,"统战部","统战部","产业路硬化路场0.963公里，路基宽度：4.5 米，路面宽度：3.5 米。新开挖产业路2.937公里，路基宽4.5米，路面宽3.5米（碎石垫层厚15cm+磨耗层厚2cm）。包括预留排水沟、路肩回填、涵洞、挡土墙等。","该基地涉及油茶200亩，茶叶1900亩、中草药20亩、南竹130亩、杉木1300亩项目建成后，将有力推动产业发展，大幅提高村民产业生产效率，显著降低农户运输化肥及农副产品的成本。全面改善农业生产与出行安全条件，辐射带动周边农户产业进步。促进各民族团结奋斗、繁荣发展，进一步铸牢中华民族共同体意识，助力乡村振兴。","少数民族发展任务"]
[167,"洋溪乡","信洞村","洋溪乡信洞村翁布至面长农户联营油茶基地产业路硬化项目","产业发展","新建","产业路硬化路线全长 3.2095公里，路基宽度：4.5 米，路面宽度：3.5 米\n。包括预留排水沟、路肩回填、涵洞等；","2025年1月-2025年12月",264.9043,225,225,{"$nulls":3},1,478,1949,271,1133,null,null,"统战部","统战部","产业路硬化路线全长 3.2095公里，路基宽度：4.5 米，路面宽度：3.5 米\n。包括预留排水沟、路肩回填、涵洞等；","该基地涉及油茶226亩、茶叶425亩、优质稻420亩、杉木620亩。项目建成后，将有力推动产业发展，大幅提高村民产业生产效率，显著降低农户运输化肥及农副产品的成本。全面改善农业生产与出行安全条件，辐射带动周边农户产业进步。促进各民族团结奋斗、繁荣发展，进一步铸牢中华民族共同体意识，助力乡村振兴。","少数民族发展任务"]
[168,"梅林乡","梅林村","梅林乡梅林村宝花山富硒茶油基地产业道路硬化项目","产业发展","新建","产业路硬化路线全长2.473 公里，路基宽度：4.5 米，路面宽度：3.5 米\n。包括预留排水沟、路肩回填、涵洞等；","2025年1月-2025年12月",190.0214,160,160,{"$nulls":3},1,694,2554,441,1806,null,null,"统战部","统战部","产业路硬化路线全长2.473 公里，路基宽度：4.5 米，路面宽度：3.5 米\n。包括预留排水沟、路肩回填、涵洞等；\n","该基地涉及油茶860亩、茶叶115亩、杉木1213亩。项目建成后，将有力推动产业发展，大幅提高村民产业生产效率，显著降低农户运输化肥及农副产品的成本。全面改善农业生产与出行安全条件，辐射带动周边农户产业进步。促进各民族团结奋斗、繁荣发展，进一步铸牢中华民族共同体意识，助力乡村振兴。","少数民族发展任务"]
[169,"丹洲镇","江荷村","丹洲镇江荷村大桥山农户联营竹木基地产业路硬化项目","产业发展","新建","产业路硬化路线全长1.98公里，路基宽度：4.5 米，路面宽度：3.5 米\n。包括预留排水沟、路肩回填、涵洞、挡土墙等；","2025年1月-2025年12月",166.626,135,135,{"$nulls":3},1,497,1960,41,170,null,null,"统战部","统战部","产业路硬化路线全长1.98公里，路基宽度：4.5 米，路面宽度：3.5 米\n。包括预留排水沟、路肩回填、涵洞、挡土墙等；","该基地涉及茶叶50亩、杉木2000亩、竹木150亩。项目建成后，将有力推动产业发展，大幅提高村民产业生产效率，显著降低农户运输化肥及农副产品的成本。全面改善农业生产与出行安全条件，辐射带动周边农户产业进步。促进各民族团结奋斗、繁荣发展，进一步铸牢中华民族共同体意识，助力乡村振兴。","少数民族发展任务"]
[170,"同乐乡","岑甲村","同乐乡岑甲村归岳屯小型公益基础设施项目","乡村建设行动","新建","新建水毁、护坡共计5幅64.0延米，防撞墩3幅27米，安全防护栏287米","2025年1月-2025年12月",32.531088,25,25,{"$nulls":3},1,735,2858,282,1176,null,null,"统战部","统战部","新建水毁、护坡共计5幅64.0延米，防撞墩3幅27米，安全防公路护栏287米","项目建成后，将对村内交通设施进行全方位的升级完善，极大地改善村民出行条件，为735户共计2858人提供坚实的安全出行保障。促进各民族在生产生活中的交流合作，携手共同团结奋斗，实现共同繁荣发展，进一步铸牢中华民族共同体意识，助力乡村和谐发展。","少数民族发展任务"]
["县水利局",null,"小计",null,"小计",{"$nulls":3},{"$f":"SUM(I187:I216)","v":3451.2596},{"$f":"SUM(J187:J216)","v":2633},{"$f":"SUM(K187:K216)","v":1443},{"$f":"SUM(L187:L216)","v":1190},{"$f":"SUM(M187:M216)","v":0},{"$f":"SUM(N187:N216)","v":20},12,8945,33667,2194,8711,525,1380]
[171,"斗江镇","周牙村","斗江镇周牙村周村屯人饮维修项目","乡村建设行动","新建","建设人饮水池及铺设水管","2025年2月-2025年11月",80.1727,{"$f":"K187+L187+M187","v":70},30,40,null,1,null,211,688,26,111,null,null,"水利局","农村饮水安全事务站","保障农村饮水安全，受益人口211户688人。"]
[172,"斗江镇","沙宜村","斗江镇沙宜村杉木寨屯供水保障设施建设工程","乡村建设行动","新建","总长10公里，水源头过滤池一座、拦水坝一座，100㎡水池一座，水源头50水管4公里，110主管2公里，50分管1公里，入户25管3公里。","2025年2月-2025年11月",79.6954,70,30,40,null,1,null,143,580,14,55,null,null,"水利局","农村饮水安全事务站","保障农村饮水安全，受益人口134户580."]
[173,"同乐乡","高旁村","同乐乡高旁村水源工程","乡村建设行动","新建","1、主坝部分：主坝面防渗处理，坝顶硬化、坝脚新建齿墙；2、副坝部分、新建C20毛石砼坝体，硬化溢洪道排水沟；3、管网部分：de75引水管长1850米，de280清池管长75米。","2025年2月-2025年11月",64.7452,55,25,30,null,null,1,405,1513,192,800,null,null,"水利局","农村饮水安全事务站","保障农村饮水安全，受益人口405户1513人。"]
[174,"同乐乡","同乐村","同乐乡同乐村归斋安全饮水提升工程","乡村建设行动","新建","1座水源集水池、1座消毒净化进水口设施，1个100吨位水池，铺设满足水压需求的“国标”人饮管，水源管长2800米（其中110＃管600米、90＃管1500米、75＃管700米），入户管4500米（其中63＃管1200米、50＃1000米、32＃2300米","2025年2月-2025年11月",50.3436,43,20,23,null,null,1,1402,4963,275,1125,null,null,"水利局","农村饮水安全事务站","保障农村饮水安全，受益人口1402户4963人."]
[175,"林溪镇","程阳村","三江侗族自治县林溪镇程阳集中供水项目","乡村建设行动","新建","在程阳景区北门服务区新建水厂，就地抽取程阳河地表水处理后，进行水源补水。据规划结合实际情况，本次设计供水现有人口 7197 人，按设计水平年为 10 年预测，供水人口达到 12538 人，经计算，日供水量为 1417m³/d，年供水量 51.72 万吨。据《村镇供水工程技术规范 SL687-2014》，考虑到程阳八寨的发展需要，程阳集中供水项目设备规模为 1500m³/d。","2025年2月-2026年11月",1399.45,985,555,430,null,1,null,1846,7120,405,1607,58,344,"水利局","农村饮水安全事务站","解决程阳八寨中四个村寨目前供水不足的问题，解决程阳八寨景区近期发展急需供水的问题。按设计水平年为 10 年预测，供水人口达到 12538 人，经计算，日供水量为 1417m³/d，年供水量 51.72 万吨。据《村镇供水工程技术规范 SL687-2014》，考虑到程阳八寨的发展需要，程阳集中供水项目设备规模为 1500m³/d。"]
[176,"林溪镇","高友村","林溪镇高友村安全饮水巩固提升新建安全饮水工程","乡村建设行动","新建","新建水池200立方高位水池一座、拦水坝一座及水源管路及水池出水管及配套设施，水源保水护岸100m，抽水集水池一座，施工便道300m","2025年2月-2025年11月",123.5631,100,50,50,null,null,1,490,1924,127,452,48,223,"水利局","农村饮水安全事务站","解决贫困村群众枯水期供及节假日水不足问题，方便490户1924人安全饮水问题。"]
[177,"独峒镇","具盘村","独峒镇具盘村旧具屯人饮提升工程","乡村建设行动","新建","新建200立方水池，200米网管，1500米水源管，电杆5根，电线700米，抽水机一台，抽水房一个","2025年2月-2025年11月",52.394,45,20,25,null,null,1,150,557,50,223,8,28,"水利局","农村饮水安全事务站","保障农村饮水安全，受益人口557人。"]
[178,"八江镇","布代村","八江镇布代村孟田屯水源工程","乡村建设行动","新建","新建100T水池一座，新建配套管网9480米","2025年2月-2025年11月",67.3552,55,30,25,null,1,null,336,1478,205,923,25,107,"水利局","农村饮水安全事务站","保障农村饮水安全，受益人口1478人。"]
[179,"古宜镇","周坪村","古宜镇周坪村下林江屯饮水安全巩固提水工程","乡村建设行动","新建","新建水池50T一座，新建无法过滤池一座，新建配套网管7900米","2025年2月-2025年11月",93.6999,80,40,40,null,1,null,158,635,19,84,3,12,"水利局","农村饮水安全事务站","保障农村饮水安全，受益人口635人。"]
[180,"古宜镇","周坪村","古宜镇周坪村榕树屯人饮提升工程","乡村建设行动","新建","新建100吨水池1个，饮水管约2000米","2025年2月-2025年11月",87.8709,72,35,37,null,1,null,151,576,22,85,4,13,"水利局","农村饮水安全事务站","解决周坪村饮水安全问题，保证151户576人饮水安全"]
[181,"古宜镇","古皂村","古宜镇古皂村罗古屯饮水提升工程","乡村建设行动","新建","新建100T水池一座、增设水源管，过滤池2座，规格长2米，宽1.5米，高1.5米，引水管2500米","2025年2月-2025年11月",39.7123,33,28,5,null,1,null,56,214,7,25,2,5,"水利局","农村饮水安全事务站","改善农村基础设施，解决罗古屯56户214人的饮水困难问题"]
[182,"程村乡","头坪村","程村乡头坪村饮水项目维修工程","乡村建设行动","新建","1.跨河管网500米*3；2.水泥墩2个；3.钢绞线500米*3；4.维修水池1座","2025年2月-2025年11月",13.0569,11,8,3,null,1,0,328,1371,15,70,5,22,"水利局","农村饮水安全事务站","保障农村饮水安全，受益人口1371人"]
[183,"程村乡","泗里村","程村乡泗里村显塘屯安全饮水建设项目","乡村建设行动","新建","150立方米水池1个，配套管网3000米","2025年2月-2025年11月",21.2409,19,14,5,null,0,1,82,348,8,26,2,9,"水利局","农村饮水安全事务站","解决显塘屯饮水安全问题，保证82户348人饮水安全。"]
[184,"和平乡","清江村","和平乡清江村六甲组饮水安全维修工程","乡村建设行动","新建","六甲组麻呢人饮水管维修更换，50#水源管3500米，25#水源管1800米","2025年2月-2025年11月",22.1627,19,14,5,null,1,null,37,106,9,30,null,null,"水利局","农村饮水安全事务站","通过新建人饮，解决农户饮水问题，提高群众满意度，直接受益37户106人。"]
[185,"八江镇","布央村","八江镇布央村美地屯人饮水池项目","乡村建设行动","新建","新增水源管3000米、蓄水池200吨一座，进户网管3000米","2025年2月-2025年11月",79.7678,65,35,30,null,1," ",261,1017,65,243,16,72,"水利局","农村饮水安全事务站","保障农村饮水安全，受益人口1017人."]
[186,"林溪镇","林溪村","林溪镇林溪村平地棉屯人饮管网维修工程","乡村建设行动","新建","人饮消防100镀锌管680米，阀门5个，消防栓4个。到户镀锌管80管100米，40管80米，20管300米及其配套设施","2025年2月-2025年11月",61.3127,50,25,25,null,1,null,32,153,4,16,2,7,"水利局","农村饮水安全事务站","保障农村饮水安全，受益人口153人."]
[187,"丹洲镇","板江社区","丹洲镇板江社区雷口组人饮工程","乡村建设行动","新建","雷口组新建100立方米高位水池一座，人饮管道总长4500米。","2025年2月-2025年11月",47.6292,40,20,20,null,1,null,77,251,20,75,null,null,"水利局","农村饮水安全事务站","保障农村饮水安全，受益人口251人."]
[188,"丹洲镇","六孟村","丹洲镇六孟村外寨屯人饮入户管网改造项目","乡村建设行动","新建","内径100㎜PE管长2500米、内径40㎜PE长1000米，消防栓13个","2025年2月-2025年11月",28.9579,24,16,8,null,1,null,81,320,20,74,null,null,"水利局","农村饮水安全事务站","解决饮水问题，确保81户320人饮水得到保障"]
[189,"梅林乡","梅林村","梅林中学饮用水水质净化工程","乡村建设行动","新建","拦水坝，沉沙井，无阀过滤池各一座，简易消毒设备一套。","2025年2月-2025年11月",15.5489,13,9,4,null,2,2,500,500,200,200,300,300,"水利局","农村饮水安全事务站","解决梅林中学饮水安全问题，保证梅林中学500人饮水安全"]
[190,"高基乡","篦梳村","高基乡篦梳村上河屯新增人饮建设工程","乡村建设行动","新建","新建人饮水池一个（50吨）、拦溪坝一个、水源管3500米（50管）、过滤池一个、入户管网3000米等工程","2025年2月-2025年11月",51.7212,45,20,25,null,1,0,67,244,12,42,1,2,"水利局","农村饮水安全事务站","解决非贫困村屯人饮水问题，改善方便51户177人饮水安全。"]
[191,"高基乡","拉旦村","高基乡拉旦村台竹山屯人饮水池提升工程","乡村建设行动","新建","新建20立方人饮水\n池一座","2025年2月-2025年11月",24.4755,20,15,5,null,0,1,16,60,6,24,3,13,"水利局","农村饮水安全事务站","巩固脱贫攻坚成果，提升整屯60人的安全饮水质量，提高人民群众满意度。"]
[192,"富禄乡","富禄村","富禄乡富禄村岑胖屯人饮提水工程","乡村建设行动","新建","岑胖屯新建储水池50吨、抽水设备两套及配套网管800米、建设配电房","2025年1月--2025年12月",17.1503,15,10,5,null,1,null,128,532,22,96,null,null,"水利局","农村饮水安全事务站","解决饮水问题，确保128户532人饮水得到保障."]
[193,"富禄乡","纯德村","富禄乡纯德村水源工程","乡村建设行动","新建","对现有蓄水山塘主体进行挖深、加宽、加固。挖土约7600立方米，挖石约2500立方米，建挡土墙约1860立方米，接饮水管至村上水池等。","2025年2月-2025年11月",310.2129,255,125,130,null,null,1,476,2756,185,1207,null,null,"水利局","农村饮水安全事务站","改善贫困村基础设施，保障村寨消防水源，有效保障生产生活用水，作为出现长期干旱时村民应饮用水源"]
[194,"洋溪乡","洋溪村","洋溪乡洋溪村寨湾屯移民新村人饮工程项目","乡村建设行动","新建","新建16户人饮管网及配套设施。","2025年2月-2025年11月",7.0966,4,4,null,null,0,1,16,75,5,27,0,0,"水利局","农村饮水安全事务站","解决饮水问题，确保16户75人饮水得到保障."]
[195,"洋溪乡","波里村","洋溪乡波里上寨屯新建人饮水源工程项目","乡村建设行动","新建","新建一个水源沉淀池过滤池，安装50PE管2000米","2025年2月-2025年11月",32.7338,27,22,5,null,0,1,172,764,36,155,0,0,"水利局","农村饮水安全事务站","解决饮水问题，确保172户764人饮水得到保障."]
[196,"良口乡","白毛村","良口乡白毛村大团屯水源工程","乡村建设行动","新建","水源提升一处，200米钢管，抽水设备一套","2025年2月-2025年11月",18.2965,16,11,5,null,1,null,132,479,35,135,null,null,"水利局","农村饮水安全事务站","提升大团屯132户479人安全饮水"]
[197,"良口乡","产口村","良口乡产口村新寨、旧寨屯屯内人饮管网","乡村建设行动","新建","整屯更换人饮水管和消防水管DN100镀锌管8000米，新建20立方水池","2025年2月-2025年11月",74.2249,60,30,30,null,1,null,527,1987,83,349,null,null,"水利局","农村饮水安全事务站","解决饮水问题，确保527户1987人饮水得到保障."]
[198,"林溪镇","高友村","林溪镇高友村安全饮水巩固提升配电安装工程","乡村建设行动","新建","新装160KVA台变1台,综合配电箱1套及配套设施","2025年2月-2025年11月",33.8,27,22,5,null,1,1,490,1924,127,452,48,223,"水利局","农村饮水安全事务站","解决贫困村群众枯水期供及节假日水不足问题，方便490户1924人安全饮水问题。"]
[199,"老堡乡","老堡社区","老堡乡老堡社区人饮管网维修工程","乡村建设行动","新建","维修老堡街道管网，新增老堡水源。","2025年2月-2025年11月",102.8686,90,40,50,{"$nulls":3},175,532,{"$nulls":4},"水利局","农村饮水安全事务站","解决饮水问题，确保175户532人饮水得到保障."]
[200,"三江县","各乡镇","三江侗族自治县2025年农村饮水水旱灾害维修抢修工程","乡村建设行动","新建","对各乡镇因冰冻、强降雨受损及旱灾影响的饮水工程进行修复，维修抢修采购水管管材等。","2025年2月-2025年11月",350,225,140,85,{"$nulls":9},"水利局","农村饮水安全事务站","保障安全饮水受益1.5万人"]
["县组织部",null,"小计",null,"小计",{"$nulls":3},{"$f":"SUM(I218)","v":565},{"$f":"SUM(J218)","v":565},{"$f":"SUM(K218)","v":0},{"$f":"SUM(L218)","v":565},{"$f":"SUM(M218)","v":0},{"$f":"SUM(N218)","v":7},98,47737,194880,16849,78028,5336,23104]
[201,"15个乡镇","113个行政村（社区）","2025年三江侗族自治县第一书记建设资金","乡村建设行动\n","新建","解决98个脱贫村、8个易地扶贫搬迁安置点（社区），7个乡村振兴重点村（面上村）的项目建设问题（附件3）","2025年2月—2025年10月",565,{"$f":"K218+L218+M218","v":565},null,565,null,7,98,47737,194880,16849,78028,5336,23104,"组织部","各乡镇","通过衔接资金项目建设，突出对乡村振兴重点帮扶村、脱贫村、易地搬迁安置点等重点地区，突出帮扶监测对象等重点人群，着力补齐乡村振兴建设短板弱项。"]
["县自然资源和规划局",null,"小计",null,"小计",{"$nulls":3},{"$f":"SUM(I220:I234)","v":1151.1302},{"$f":"SUM(J220:J234)","v":804},{"$f":"SUM(K220:K234)","v":0},{"$f":"SUM(L220:L234)","v":804},{"$f":"SUM(M220:M234)","v":0},{"$f":"SUM(N220:N234)","v":28},12,15451,70000,5500,17000,0,0]
[202,"各乡镇","所涉及的26个行政村","三江侗族自治县乡村地区“通则式”规划管理规定编制项目","乡村建设行动-村庄规划编制（含修编）","新建","三江县乡村地区“通则式”规划管理规定编制项目，将实现未编制村庄规划的26个行政村规划管理全覆盖，为乡村地区的国土空间开发保护、实施国土空间用途管制、核发乡村建设项目规划许可、保障乡村振兴项目用地。完善村屯基础设施建设，提升村屯基础设施环境和生活条件，改善生活生产条件，开展各项建设活动提供规划依据。","2025年1月-2025年12月",42,{"$f":"K220+L220+M220","v":30},null,30,null,14,12,15000,70000,5500,17000,0,0,"自然资源和规划局","自然资源和规划局","实现未编制村庄规划的村屯规划管理全覆盖，为乡村地区的国土空间开发保护、实施国土空间用途管制、核发乡村建设项目规划许可、保障乡村振兴项目用地。完善村屯基础设施建设，提升村屯基础设施环境和生活条件，改善生活生产条件，开展各项建设活动提供规划依据。","政务购买第三方服务，无联农带农富农机制"]
[203,"同乐乡","高岜村","柳州市三江侗族自治县同乐乡高岜村正平小学滑坡地质灾害治理工程","乡村建设行动-自然灾害防治综合体系","新建","建设内容：削坡工程+锚杆（索）格构+重力式挡土墙等进行综合治理","2025年1月-2025年12月",106.2566,{"$f":"K221+L221+M221","v":75},null,75,null,1,null,53,{"$nulls":5},"自然资源和规划局","自然资源和规划局","通过建设项目，解决当地学校师生53人生命财产安全，消除地质灾害安全隐患，保障群众生活安全","保障人民群众生命财产安全，方便群众出行生产生活。"]
[204,"同乐乡","孟寨村","柳州市三江侗族自治县同乐乡孟寨村孟寨屯滑坡地质灾害治理工程","乡村建设行动-自然灾害防治综合体系","新建","建设内容：重力式挡土墙+钢管桩+截排水工程等进行综合治理","2025年1月-2025年12月",103.933,73,null,73,null,1,null,42,{"$nulls":5},"自然资源和规划局","自然资源和规划局","通过建设项目，解决当地村民42人生命财产安全，消除地质灾害安全隐患，保障群众生活安全","保障人民群众生命财产安全，方便群众出行生产生活。"]
[205,"梅林乡","石碑村","柳州市三江侗族自治县梅林乡石碑村石碑屯滑坡地质灾害治理工程","乡村建设行动-自然灾害防治综合体系","新建","建设内容：重力式挡土墙+锚杆（索）格构+截排水工程等进行综合治理","2025年1月-2025年12月",74.1406,52,null,52,null,1,null,63,{"$nulls":5},"自然资源和规划局","自然资源和规划局","通过建设项目，解决当地村民63人生命财产安全，消除地质灾害安全隐患，保障群众生活安全","保障人民群众生命财产安全，方便群众出行生产生活。"]
[206,"丹洲镇","东风村","柳州市三江侗族自治县丹洲镇东风村东风屯和红村屯滑坡地质灾害治理工程","乡村建设行动-自然灾害防治综合体系","新建","建设内容：清坡工程+锚杆（索）格构+重力式挡土墙+排水工程等进行综合治理","2025年1月-2025年12月",133.2,94,null,94,null,1,null,25,{"$nulls":5},"自然资源和规划局","自然资源和规划局","通过建设项目，解决当地村民25人生命财产安全，消除地质灾害安全隐患，保障群众生活安全","保障人民群众生命财产安全，方便群众出行生产生活。"]
[207,"八江镇","高迈村","三江侗族自治县八江镇高迈村高迈屯滑坡地质灾害地质工程","乡村建设行动-自然灾害防治综合体系","新建","建设内容：重力式挡土墙+锚杆（索）格构+截排水工程等进行综合治理","2025年1月-2025年12月",148,105,null,105,null,1,null,80,{"$nulls":5},"自然资源和规划局","自然资源和规划局","通过建设项目，解决当地村民80人生命财产安全，消除地质灾害安全隐患，保障群众生活安全","保障人民群众生命财产安全，方便群众出行生产生活。"]
[208,"良口乡","归斗村","柳州市三江侗族自治县良口乡归斗村归斗屯滑坡地质灾害治理工程","乡村建设行动-自然灾害防治综合体系","新建","建设内容：清坡工程+锚杆（索）格构+重力式挡土墙+排水工程等进行综合治理","2025年1月-2025年12月",64.4,46,null,46,null,1,null,48,{"$nulls":5},"自然资源和规划局","自然资源和规划局","通过建设项目，解决当地村民48人生命财产安全，消除地质灾害安全隐患，保障群众生活安全","保障人民群众生命财产安全，方便群众出行生产生活。"]
[209,"程村乡","泗里村","柳州市三江侗族自治县程村乡泗里村严溪屯滑坡地质灾害治理工程","乡村建设行动-自然灾害防治综合体系","新建","建设内容：锚杆（索）格构+重力式挡土墙+排水工程等进行综合治理","2025年1月-2025年12月",49.6,30,null,30,null,1,null,10,{"$nulls":5},"自然资源和规划局","自然资源和规划局","通过建设项目，解决当地村民10人生命财产安全，消除地质灾害安全隐患，保障群众生活安全","保障人民群众生命财产安全，方便群众出行生产生活。"]
[210,"和平乡","板六村","柳州市三江侗族自治县和平乡板六村古良屯崩塌地质灾害治理工程","乡村建设行动-自然灾害防治综合体系","新建","建设内容：清坡工程+锚杆（索）格构+重力式挡土墙+排水工程等进行综合治理","2025年1月-2025年12月",74,52,null,52,null,1,null,12,{"$nulls":5},"自然资源和规划局","自然资源和规划局","通过建设项目，解决当地村民12人生命财产安全，消除地质灾害安全隐患，保障群众生活安全","保障人民群众生命财产安全，方便群众出行生产生活。"]
[211,"良口乡","白毛村","柳州市三江侗族自治县良口乡白毛村大团屯滑坡塌地质灾害治理工程","乡村建设行动-自然灾害防治综合体系","新建","建设内容：清坡工程+锚杆（索）格构+重力式挡土墙+排水工程等进行综合治理","2025年1月-2025年12月",64.4,45,null,45,null,1,null,17,{"$nulls":5},"自然资源和规划局","自然资源和规划局","通过建设项目，解决当地村民17人生命财产安全，消除地质灾害安全隐患，保障群众生活安全","保障人民群众生命财产安全，方便群众出行生产生活。"]
[212,"高基乡","江口村","柳州市三江侗族自治县高基乡江口村江口屯和坵里屯崩塌、滑坡地质灾害治理工程","乡村建设行动-自然灾害防治综合体系","新建","建设内容：清坡工程+重力式挡土墙+排水工程等进行综合治理","2025年1月-2025年12月",66.6,47,null,47,null,1,null,8,{"$nulls":5},"自然资源和规划局","自然资源和规划局","通过建设项目，解决当地村民12人生命财产安全，消除地质灾害安全隐患，保障群众生活安全","保障人民群众生命财产安全，方便群众出行生产生活。"]
[213,"洋溪乡","高露村","柳州市三江侗族自治县洋溪乡高露村平铺屯崩塌地质灾害治理工程","乡村建设行动-自然灾害防治综合体系","新建","重力式挡土墙+排水工程","2025年1月-2025年12月",59.2,41,null,41,null,1,null,30,{"$nulls":5},"自然资源和规划局","自然资源和规划局","通过建设项目，解决当地村民30人生命财产安全，消除地质灾害安全隐患，保障群众生活安全","保障人民群众生命财产安全，方便群众出行生产生活。"]
[214,"老堡乡","老堡村","柳州市三江侗族自治县老堡乡老堡村老堡乡政府办公楼崩塌地质灾害治理工程","乡村建设行动-自然灾害防治综合体系","新建","建设内容：锚杆（索）格构+重力式挡土墙+排水工程等进行综合治理","2025年1月-2025年12月",59.2,41,null,41,null,1,null,35,{"$nulls":5},"自然资源和规划局","自然资源和规划局","通过建设项目，解决当地村民35人生命财产安全，消除地质灾害安全隐患，保障群众生活安全","保障人民群众生命财产安全，方便群众出行生产生活。"]
[215,"良口乡","布糯村","柳州市三江侗族自治县良口乡布糯村布糯屯滑坡地质灾害治理工程","乡村建设行动-自然灾害防治综合体系","新建","建设内容：清坡工程+锚杆（索）格构+重力式挡土墙+排水工程等进行综合治理","2025年1月-2025年12月",47,32,null,32,null,1,null,8,{"$nulls":5},"自然资源和规划局","自然资源和规划局","通过建设项目，解决当地村民8人生命财产安全，消除地质灾害安全隐患，保障群众生活安全","保障人民群众生命财产安全，方便群众出行生产生活。"]
[216,"洋溪乡","信洞村","柳州市三江侗族自治县洋溪乡信洞村盘岩屯滑坡地质灾害治理工程","乡村建设行动-自然灾害防治综合体系","新建","钢管桩+截排水","2025年1月-2025年12月",59.2,41,null,41,null,1,null,20,{"$nulls":5},"自然资源和规划局","自然资源和规划局","通过建设项目，解决当地村民35人生命财产安全，消除地质灾害安全隐患，保障群众生活安全","保障人民群众生命财产安全，方便群众出行生产生活。"]
["县生态环境局",null,"小计",null,"小计",{"$nulls":3},{"$f":"SUM(I236:I237)","v":538.73},{"$f":"SUM(J236:J237)","v":345},{"$f":"SUM(K236:K237)","v":215},{"$f":"SUM(L236:L237)","v":130},{"$f":"SUM(M236:M237)","v":0},{"$f":"SUM(N236:N237)","v":0},2,471,1785,0,0,0,0]
[217,"八江镇","岩脚村","八江镇岩脚村生活污水治理项目","乡村建设行动","新建","在适应采取集中处置的自然屯采用人工湿地处理方式进行处置；其他自然屯采用生活污水资源化利用方式进行处置","2025年1月--2025年12月",215.42,{"$f":"K236+L236+M236","v":150},85,65,null,null,1,250,900,{"$nulls":4},"生态环境局","生态环境局","1.完成一座污水处理设施建设 2.控制在成本内，3.2025年完成建设并投入使用                             ","通过完善村屯污水布局提，改善环境质量，提升群众获得感"]
[218,"独峒镇","里盘村","独峒镇里盘村里盘屯生活污水治理项目","乡村建设行动","新建","建设污水处理终端及配套管网建设","2025年1月--2025年12月",323.31,{"$f":"K237+L237+M237","v":195},130,65,null,null,1,221,885,{"$nulls":4},"生态环境局","生态环境局","1.完成一座污水处理设施建设 2.控制在成本内，3.2025年完成建设并投入使用                             ","通过完善村屯污水布局提，改善环境质量，提升群众获得感"]
["县住建局",null,"小计",null,"小计",{"$nulls":3},{"$f":"SUM(I239:I265)","v":1530.032749},{"$f":"SUM(J239:J265)","v":998},{"$f":"SUM(K239:K265)","v":700},{"$f":"SUM(L239:L265)","v":298},{"$f":"SUM(M239:M265)","v":0},{"$f":"SUM(N239:N265)","v":14},12,13999,55805,3478,14311,619,2545]
[219,"独峒镇","独峒村","独峒镇独峒村屯内排水及生活垃圾转运设施项目","乡村建设行动","新建","1.独峒新村：400x400排水暗沟230m、650x500排水沟330m；垃圾转运点2个。  2.独峒屯：400x400排水暗沟125m、500x400排水沟600m；253m排污管、600、14座检查井；垃圾转运点2个。                                       3.六归屯：500x400排水沟1000m 4.高弄屯：500x400排水沟1000m。","2025年3月--2025年11月",{"v":114.379182,"d":"114.38"},{"$f":"K239+L239+M239","v":80},{"v":45,"d":"45.00"},{"v":35,"d":"35.00"},null,null,1,957,3565,149,276,0,0,"三江县住建局","三江县住建局","完成独峒村屯三面光排污沟建设和新建垃圾转运点4座及配套设施建设","改善村民居住环境，提高居民生活质量，提升居民满意度。"]
[220,"独峒镇","干冲村","独峒镇干冲村牙戈屯下寨片区生活垃圾转运设施项目","乡村建设行动","新建","新建垃圾转运点6个。","2025年3月--2025年11月",{"v":9.34189,"d":"9.34"},5,{"v":5,"d":"5.00"},{"$nulls":3},1,285,1225,40,210,0,0,"三江县住建局","三江县住建局","完成新建垃圾转运点6个及配套设施建设。","改善村民居住环境，提高居民生活质量，提升居民满意度。"]
[221,"高基乡","高基村","高基乡高基村屯内排水及生活垃圾转运设施项目","乡村建设行动","新建","1.上板瓦屯:道路硬化部分:20cm砼面层、面积700,排水沟部分:600x400排水沟200m、800x500排水暗沟120m、500x600排水暗沟150m、600x600排水沟80m,排水管部分:10m排污管600,垃圾转运点1个.\n2.平寨屯:道路硬化部分:20cm砼面层、面积455,排水沟部分:650x700排水沟130m、检查井1座.\n3.红滩屯：道路硬化部分：20cm砼面层、面积280，排水沟部分：400x400排水暗沟180m，挡土墙部分：混凝土挡土墙长10m，高3.2m。排水涵管6mx5\n4.宇论口屯：道路硬化部分：15cm混石垫层、15cm砼面层、面积400","2025年3月--2025年11月",{"v":76.756385,"d":"76.76"},53,{"v":30,"d":"30.00"},{"v":23,"d":"23.00"},null,1,0,320,1138,49,167,0,0,"三江县住建局","三江县住建局","完成高基村排水沟、生活垃圾转运、巷道硬化项目建设","改善村民居住环境，提高居民生活质量，提升居民满意度。"]
[222,"高基乡","篦梳村","高基乡篦梳村基础设施及生活垃圾转运设施项目","乡村建设行动","新建","1.八界屯:道路硬化部分:15cm砼面层、面积84,排水沟部分:500x400排水沟80m、400x300排水沟50m,排污管部分:30m排污管600、4m排污管300,挡土墙部分:混凝土挡土墙长20m，高2.1m,垃圾转运点1个.\n2.甘岭屯:排水沟部分:水沟底修复30m,垃圾转运点1个,太阳能路灯10盏\n3.篦梳屯:道路硬化部分:道路硬化（20cm厚）共计140平米,垃圾转运点1个，\n太阳能路灯20盏。\n4.上河屯：道路硬化部分：15cm砼面层、面积322、15cm混石垫层、20cm砼面层、面积112，排水沟部分：400x300排水沟150m、650x500排水沟160m，排污管部分：10m排污管600、8m排污管300，垃圾转运点1个，太阳能路灯10盏","2025年3月--2025年11月",{"v":71.766264,"d":"71.77"},44,{"v":30,"d":"30.00"},{"v":14,"d":"14.00"},null,1,0,208,796,42,217,23,81,"三江县住建局","三江县住建局","完成篦梳村垃圾转运点、道路硬化、排水沟及道路亮化工程项目","改善村民居住环境，提高居民生活质量，提升居民满意度。"]
[223,"老堡乡","车田村","老堡乡车田村道路硬化及生活垃圾转运设施项目","乡村建设行动","新建","1.口寨：道路硬化：20cm厚碎石垫层，20cm砼面层，35mx3m，面积105㎡\n2.脑寨:盖板涵砼盖板涵3mx3m，1座。道路硬化20cm砼面层，80mx3m，面积240㎡，破软岩2mx6mx80m，960m³；20cm砼面层，206mx3.5m，面积721㎡，垃圾转运点3个。","2025年3月--2025年11月",{"v":33.621719,"d":"33.62"},22,{"v":22,"d":"22.00"},null,null,1,null,123,449,13,43,0,0,"三江县住建局","三江县住建局","完成车田村道路硬化，垃圾垃圾转运点建设。","改善村民居住环境，提高居民生活质量，提升居民满意度。"]
[224,"梅林乡","车寨村","梅林乡车寨村基础设施及生活垃圾转运设施项目","乡村建设行动","新建","1.平寨:道路硬化:15cm厚砼面层，50m*1.5m，面积75㎡,排水沟300x300排水暗沟30m,垃圾转运点2个.\n2.相思:台阶巷道:砼台阶巷道100m*1.2m,垃圾转运点2个.\n3.寨明屯:道路硬化30cm厚碎石垫层，20cm砼面层，150m*3.5m，面积525㎡,阶梯砼台阶110mx1.2m，踏步0.28mx0.15m,人行步道15cm厚砼面层90mx1.2m,排水明沟300x300砼排水明沟50m,垃圾转运点2个,路灯10盏.","2025年3月--2025年11月",{"v":38.485572,"d":"38.49"},27,{"v":23,"d":"23.00"},{"v":4,"d":"4.00"},null,1,null,545,2130,190,805,0,0,"三江县住建局","三江县住建局","完成车寨村道路硬化，垃圾垃圾转运点，路灯建设。","改善村民居住环境，提高居民生活质量，提升居民满意度。"]
[225,"和平乡","清江村","和平乡清江村基础设施建设及生活垃圾转运设施项目","乡村建设行动","新建","1.上、下社洞屯:盖板涵砼盖板涵4.5mx3m，2座，12mx3m，1座\n2.青马屯:排水沟盖板钢筋砼盖板，100m长x0.7m宽x0.08m厚,排污管波纹管DN300长270m,垃圾转运点6个,太阳能路灯5盏.","2025年3月--2025年11月",{"v":35.948698,"d":"35.95"},22,{"v":22,"d":"22.00"},null,null,1,null,202,688,29,92,0,0,"三江县住建局","三江县住建局","完成巷道硬化及排水沟，太阳能路灯安装，提升群众满意度","改善村民居住环境，提高居民生活质量，提升居民满意度。"]
[226,"良口乡","良口村","良口乡良口村基础设施建设及生活垃圾转运设施项目","乡村建设行动","新建","1.渔民新村:排水暗沟300x300排水暗沟330m，DN300波纹管90m.\n2.良口下寨:太阳能路灯10盏，垃圾转运点4个。","2025年3月--2025年11月",{"v":25.116612,"d":"25.12"},15,{"v":15,"d":"15.00"},null,null,1,null,1277,3863,285,1087,204,792,"三江县住建局","三江县住建局","完成良口村巷道硬化及排水沟，太阳能路灯安装，垃圾转运设施建设，提升群众满意度","改善村民居住环境，提高居民生活质量，提升居民满意度。"]
[227,"八江镇","归内村","八江镇归内村基础设施建设及人居环境整治项目","乡村建设行动","新建","挡土墙部分：C25毛砼挡土墙，长12米，道路硬化部分：10cm厚碎石垫层，20cm砼面层，面积675㎡，太阳能路灯16盏。","2025年3月--2025年11月",{"v":27.340864,"d":"27.34"},15,{"v":15,"d":"15.00"},{"$nulls":3},1,298,1389,172,793,null,null,"三江县住建局","三江县住建局","完成归内村巷道硬化及排水沟，太阳能路灯安装，垃圾转运设施建设，提升群众满意度","改善村民居住环境，提高居民生活质量，提升居民满意度。"]
[228,"程村乡","头坪村","程村乡头坪村基础设施建设及生活垃圾转运设施项目","乡村建设行动","新建","道路硬化部分：10cm厚碎石垫层，20cm砼面层，面积743.5㎡，垃圾转运站8个，挡土墙部分：长8米，高1米；长10米，高2.5米","2025年3月--2025年11月",{"v":39.60213,"d":"39.60"},28,{"v":28,"d":"28.00"},null,null,1,0,650,2400,37,139,5,16,"三江县住建局","三江县住建局","完成头坪村巷道硬化，垃圾转运设施建设，提升群众满意度","改善村民居住环境，提高居民生活质量，提升居民满意度。"]
[229,"程村乡","大树屯","程村乡大树村基础设施建设及生活垃圾转运设施项目","乡村建设行动","新建","1.大树屯：道路硬化部分：10cm厚碎石垫层，20cm砼面层，面积173㎡\n垃圾转运点2个，排水沟300*300排水明沟18米。\n2.佳林屯：道路硬化部分：10cm厚碎石垫层，20cm砼面层，面积847.1㎡，垃圾转运点2个，排水沟300*300排水明沟80米。","2025年3月--2025年11月",{"v":30.863051,"d":"30.86"},21,{"v":21,"d":"21.00"},null,null,1,null,224,759,41,147,19,72,"三江县住建局","三江县住建局","完成大树村巷道硬化排水沟，垃圾转运设施建设，提升群众满意度","改善村民居住环境，提高居民生活质量，提升居民满意度。"]
[230,"富禄乡","高安村","富禄乡高安村基础设施及生活垃圾转运设施项目","乡村建设行动","新建","垃圾转运站3个，太阳能路灯50盏，排水沟300x300排水明沟200米，300x300暗沟20米，200x200明沟155米。","2025年3月--2025年11月",{"v":36.012668,"d":"36.01"},22,{"v":22,"d":"22.00"},null,null,1,0,1045,3876,144,595,0,0,"三江县住建局","三江县住建局","完成高安村巷道硬化排水沟，垃圾转运设施，太阳能路灯建设提升群众满意度","改善村民居住环境，提高居民生活质量，提升居民满意度。"]
[231,"富禄乡","岑洞村","富禄乡岑洞村基础设施及生活垃圾转运设施项目","乡村建设行动","新建","垃圾转运点3个，太阳能路灯50盏，排水沟300x300排水明沟200米，300x300暗沟20米，200x200明沟155米","2025年3月--2025年11月",{"v":32.982612,"d":"32.98"},22,{"v":22,"d":"22.00"},null,null,0,1,317,2119,124,502,0,0,"三江县住建局","三江县住建局","完成岑洞村排水沟，垃圾转运设施，太阳能路灯建设提升群众满意度","改善村民居住环境，提高居民生活质量，提升居民满意度。"]
[232,"同乐乡","良冲村","同乐乡良冲村排水沟硬化及生活垃圾转运设施项目","乡村建设行动","新建","岜甲屯-排水沟\n1、内空0.4x0.4米明沟长185米；2、内空0.3x0.3米明沟长127米；3、内空0.8x0.8米明沟长50米；4、内空0.8x0.8米暗沟长12米；5、内空0.5x0.5米明沟长54米。\n良冲屯-排水沟\n1、内空0.3x0.3米明沟长224米；2、内空0.3x0.4米明沟长224米；3、内空0.4x0.4米明沟长130米；4、内空0.3x0.4米暗沟长72米；5、内空0.8x0.8米明沟长145米；6、内空0.8x0.8米明沟（配筋）长45米；7、旱沟修缮C25砼量27.5立方。\n岑培屯-排水沟\n1、内空0.4x0.4米明沟长156米；2、内空0.8x0.8米明沟长130米；3、内空0.8x1.5米涵沟长6米；4、内空0.5x0.8米暗沟长24米；5、原沟壁加高0.15x0.3米高总长20米；6、内空0.3x0.3米（钢筋盖）长20米；7、地面硬化：15cm厚C25砼地面量为3立方。\n生活垃圾转运点2个。","2025年3月--2025年11月",{"v":65.433741,"d":"65.43"},43,{"v":30,"d":"30.00"},{"v":13,"d":"13.00"},null,null,1,735,3054,384,1746,50,178,"三江县住建局","三江县住建局","完成良冲村巷道硬化排水沟，垃圾转运设施，太阳能路灯建设提升群众满意度","改善村民居住环境，提高居民生活质量，提升居民满意度。"]
[233,"同乐乡","高洋村","同乐乡高洋村新建排水沟及生活垃圾转运设施项目","乡村建设行动","新建","高洋屯-排水沟\n1、内空0.3x0.4米明沟长200米；2、内空0.3x0.4米暗沟长211米；3、内空0.4x0.4米明沟长264米；4、内空0.4x0.4米暗沟长45米；5、内空0.8x0.8米明沟长4米；6、内空0.6x0.8米明沟长95米；7、内空1.1x1米明沟长46米；8、硬化：15cm厚C25砼（直径12@150双层双向布置）共计13.5平米\n两方屯-排水沟\n1、内空0.3x0.4米明沟长27米；2、内空0.3x0.4米暗沟长45米；3、内空0.4x0.4米明沟长248米；4、内空0.4x0.4米暗沟长20米；5、内空0.6x0.8米明沟长105米。\n下两方屯-排水沟\n1、内空0.4x0.2米明沟长8米；2、内空0.4x0.4米明沟长77米；3、内空0.3x0.3米明沟长95米；4、内空0.3x0.4米明沟长92米；5、内空0.8x1米明沟长16米；6、内空1x1.5米明沟长11米\n生活垃圾转运点2个。","2025年3月--2025年11月",{"v":65.850985,"d":"65.85"},43,{"v":30,"d":"30.00"},{"v":13,"d":"13.00"},null,null,1,561,2562,166,736,2,7,"三江县住建局","三江县住建局","完成高洋村巷道硬化排水沟，垃圾转运设施，太阳能路灯建设提升群众满意度","改善村民居住环境，提高居民生活质量，提升居民满意度。"]
[234,"丹洲镇","西坡村","丹洲镇西坡村基础设施建设及人居环境整治项目","乡村建设行动","新建","大寨屯：道路硬化部分1、道路硬化（15cm厚）共计857平米；2、道路硬化（20cm厚）共计168.25平米。排水沟1、内空0.8x1米明沟长135米；2、内空0.3x0.3米明沟长138米；3、内空0.3x0.3米暗沟长30米；4、内空0.4x0.4米明沟长83米；5、内空0.3x0.4米明沟长84米；6、内空0.3x0.4米暗沟长4米；7、内空0.6x0.6米暗沟长80米；8、单侧装模浇筑砼高0.5米长18米，太阳能路灯30盏。\n下寨屯\n道路硬化部分：道路硬化（15cm厚）共计288平米，排水沟1、内空0.3x0.3米明沟长163米；2、内空0.3x0.3米暗沟长3米；3、内空0.4x0.4米明沟长53米；4、单侧装模浇筑砼高0.5米长10米。太阳能路灯10盏。\n下段屯\n道路硬化部分：道路硬化（20cm厚）共计140平米，排水沟内空0.4x0.4米明沟长115米，太阳能路灯10盏。\n车寨\n太阳能路灯15盏","2025年3月--2025年11月",{"v":77.643803,"d":"77.64"},54,{"v":30,"d":"30.00"},{"v":24,"d":"24.00"},null,1,null,507,1903,43,181,0,0,"三江县住建局","三江县住建局","完成西坡村巷道硬化排水沟，垃圾转运设施，太阳能路灯建设提升群众满意度","改善村民居住环境，提高居民生活质量，提升居民满意度。"]
[235,"丹洲镇","六孟村","丹洲镇六孟村基础设施建设及生活垃圾转运设施项目","乡村建设行动","新建","上友屯\n排水沟300x300排水明沟320米。\n孟公屯\n排水沟300x400排水明沟40米，800x800暗沟60米，200x200明沟25米，道路硬化部分：10cm厚碎石垫层，20cm砼面层，面积680㎡。\n上社屯\n太阳能路灯19盏，排水沟500*500排水明45米；400*400排水明沟255米；300*300排水明沟430米。\n中寨屯\n道路硬化部分：10cm厚碎石垫层，20cm砼面层，面积3325㎡；8米C25毛石砼挡土墙；DN300混凝土管30米；DN500混凝土管12米，排水沟500*500排水明沟208米，太阳能路灯15盏。","2025年3月--2025年11月",{"v":122.418294,"d":"122.42"},74,{"v":50,"d":"50.00"},{"v":24,"d":"24.00"},{"$nulls":3},512,1746,67,256,0,0,"三江县住建局","三江县住建局","完成西坡村巷道硬化排水沟，垃圾转运设施，太阳能路灯建设提升群众满意度","改善村民居住环境，提高居民生活质量，提升居民满意度。"]
[236,"林溪镇","茶溪村","林溪镇茶溪村基础设施建设及生活垃圾转运设施项目","乡村建设行动","新建","长烂屯\n垃圾转运站2x6米木瓦结构垃圾转运1座，排水沟内空0.4x0.5米暗沟量总长199米，道路硬化部分：15cm厚C25砼硬化量48.6平米，太阳能路灯40盏。\n茶溪屯\n道路硬化部分：20cm厚C25砼硬化量144平米，排水沟1、内空0.4x0.5米明沟长196米；2、内空0.5x1米暗沟长90米，垃圾转运站2.4x6米条形基础、砖混结构垃圾转运1座，太阳能路灯90盏。\n孔冲屯\n道路硬化部分：场地硬化（含直径110x5厚镀锌钢管临边防护杆）20.5平米，排水沟1、内空0.4x0.5米明沟长216米；2、内空0.4x0.5米暗沟长6米。太阳能路灯60盏\n米冲屯\n太阳能路灯40盏","2025年3月--2025年11月",{"v":143.238293,"d":"143.24"},100,{"v":55,"d":"55.00"},{"v":45,"d":"45.00"},null,1,0,402,1625,98,398,20,89,"三江县住建局","三江县住建局","完成茶溪村巷道硬化排水沟，垃圾转运设施，太阳能路灯建设提升群众满意度","改善村民居住环境，提高居民生活质量，提升居民满意度。"]
[237,"斗江镇","扶平村","斗江镇扶平村等坪屯巷道硬化工程及生活垃圾转运设施项目","乡村建设行动","新建","道路硬化部分：15cm厚碎石垫层，20cm砼面层，面积3500㎡，垃圾转运站\n1个，排水沟300*300排水明沟225米；400*400排水暗沟18米；DN600混凝土管40米。","2025年3月--2025年11月",{"v":45.120393,"d":"45.12"},29,{"v":20,"d":"20.00"},{"v":9,"d":"9.00"},null,null,1,101,372,28,118,null,null,"三江县住建局","三江县住建局","完成扶平村巷道硬化排水沟，垃圾转运设施建设提升群众满意度","改善村民居住环境，提高居民生活质量，提升居民满意度。"]
[238,"洋溪乡","玉民村","洋溪乡玉民村基础设施建设及生活垃圾转运设施项目","乡村建设行动","新建","道路硬化部分：10cm厚碎石垫层，20cm砼面层，面积560㎡；5cm厚碎石垫层，15cm厚砼面层，面积230㎡，垃圾转运站1座，排水沟300*300排水明沟600米；500*500排水明沟260米，太阳能路灯75盏。","2025年3月--2025年11月",{"v":63.481177,"d":"63.48"},44,{"v":25,"d":"25.00"},{"v":19,"d":"19.00"},null,null,1,770,4241,281,1663,61,310,"三江县住建局","三江县住建局","完成玉民村巷道硬化排水沟，垃圾转运设施，太阳能路灯建设提升群众满意度","改善村民居住环境，提高居民生活质量，提升居民满意度。"]
[239,"古宜镇","古皂村","古宜镇古皂村基础设施建设及人居环境整治项目","乡村建设行动","新建","硬化10cm厚碎石垫层，20cm砼面层，面积1815㎡，排水沟300*300排水明沟120米、300*300排水暗沟38米、400排水沟底板205米、DN300混凝土管63米、C25毛砼挡土墙，高2米，长18米。太阳能路灯：50盏。","2025年3月--2025年11月",{"v":44.632192,"d":"44.63"},29,{"v":20,"d":"20.00"},{"v":9,"d":"9.00"},null,1,null,332,1390,44,176,0,0,"三江县住建局","三江县住建局","完成古皂村巷道硬化排水沟，垃圾转运设施，太阳能路灯建设提升群众满意度","改善村民居住环境，提高居民生活质量，提升居民满意度。"]
[240,"梅林乡","石碑村","梅林乡石碑村上寨屯下屯内人居环境整治项目","乡村建设行动","新建","1、1000x800砼排水明沟325m；2混凝土挡土墙85m长，3m高","2025年3月--2025年11月",{"v":39.996224,"d":"40.00"},28,{"v":20,"d":"20.00"},{"v":8,"d":"8.00"},null,1,null,490,1850,79,323,9,36,"三江县住建局","三江县住建局","完成石碑村排水沟建设，提升群众满意度","改善村民居住环境，提高居民生活质量，提升居民满意度。"]
[241,"良口乡","良帽村","良口乡良帽村基础设施及生活垃圾转运设施","乡村建设行动","新建","1、1000米排水沟及用属设施建设;2、垃圾转运点2个。","2025年3月--2025年11月",{"v":60,"d":"60.00"},37,{"v":25,"d":"25.00"},{"v":12,"d":"12.00"},null,0,1,352,1399,188,797,0,0,"三江县住建局","三江县住建局","完成良帽村巷道硬化排水沟，垃圾转运设施，太阳能路灯建设提升群众满意度","改善村民居住环境，提高居民生活质量，提升居民满意度。"]
[242,"八江镇","布央村","八江镇布央村基础设施及生活垃圾转运设施","乡村建设行动","新建","1、硬化欧面长0.5公里、路面宽3米、厚20厘米:2、500米排水沟及附属设\n施建设，3、垃圾转运点2个。","2025年3月--2025年11月",{"v":60,"d":"60.00"},37,{"v":25,"d":"25.00"},{"v":12,"d":"12.00"},null,1,0,621,2631,144,858,33,132,"三江县住建局","三江县住建局","完成布央村巷道硬化排水沟，垃圾转运设施建设提升群众满意度","改善村民居住环境，提高居民生活质量，提升居民满意度。"]
[243,"梅林乡","新民村","梅林乡新民村基础设施及生活垃圾转运设施","乡村建设行动","新建","1、香道硬化2900米;2.500米排水沟及附属设施建设;3.垃圾转运点2个。","2025年3月--2025年11月",{"v":60,"d":"60.00"},37,{"v":25,"d":"25.00"},{"v":12,"d":"12.00"},null,0,1,1129,4743,274,1184,27,126,"三江县住建局","三江县住建局","完成新民村巷道硬化排水沟，垃圾转运设施建设提升群众满意度","改善村民居住环境，提高居民生活质量，提升居民满意度。"]
[244,"八江镇","福田村","八江镇福田村基础设施及生活垃圾转运设施","乡村建设行动","新建","1、1500米排水沟及附属设施建设:2、垃圾转运点2个。","2025年3月--2025年11月",{"v":60,"d":"60.00"},37,{"v":25,"d":"25.00"},{"v":12,"d":"12.00"},null,0,1,488,1799,233,452,115,468,"三江县住建局","三江县住建局","完成福田村巷道硬化排水沟，垃圾转运设施建设提升群众满意度","改善村民居住环境，提高居民生活质量，提升居民满意度。"]
[245,"良口乡","产口村","良口乡产口村新寨屯内人居环境整治项目","乡村建设行动","新建","1、垃圾转运设施1座；2，屯内道路硬化200M;3、屯内排水100M.","2025年3月--2025年12月",{"v":50,"d":"50.00"},30,{"v":20,"d":"20.00"},{"v":10,"d":"10.00"},null,null,1,548,2093,134,350,51,238,"三江县住建局","三江县住建局","完成产口村巷道硬化排水沟，垃圾转运设施建设提升群众满意度","改善村民居住环境，提高居民生活质量，提升居民满意度。"]
["县科工贸局",null,"小计",null,"小计",{"$nulls":3},{"$f":"SUM(I267:I272)","v":2000},{"$f":"SUM(J267:J272)","v":510},{"$f":"SUM(K267:K272)","v":0},{"$f":"SUM(L267:L272)","v":510},{"$f":"SUM(M267:M272)","v":0},{"$f":"SUM(N267:N272)","v":432},588,653856,2427990,173652,741012,36564,158520]
[246,"古宜镇","古宜镇","三江侗族自治县电商新媒体人才培育项目","产业发展","新建","1.完善电商培训基地配套设施；\n2.开展本土电商新媒体人才培训，培训电商新媒体人员2000人以上。","2025年1月-2025年12月",150,{"$f":"K267+L267+M267","v":100},null,100,null,72,98,108976,404665,28942,123502,6094,26420,"科工贸局","科工贸局","完善电商培训基地配套设施，培训2000名本土电商新媒体人才（短视频、直播带货达人和电商专业服务人才）。预计网络零售额突破1亿元，助力县域经济全面发展，依托电商实训基地，培育一批扎根本土的电子商务带头人，打造创新型就业岗位，通过短视频、直播带货等方式拉动经济收入。","通过培育2000名本土电商新媒体人才，推动三江特色产品的网络销售和增强美好新三江的曝光力度，预计到2025年底网络零售额同比增长36%，提供就业岗位2000个以上。"]
[247,"程村乡","泗里村","三江侗族自治县程村产业园区排水工程","产业发展","新建","建设长100米、宽1.2米、高1米的排水沟渠设施。","2025年1月-2025年12月",20,10,null,10,null,72,98,108976,404665,28942,123502,6094,26420,"科工贸局","科工贸局","完成长100米、宽1.2米、高1米的排水沟渠建设。园区全面投入使用后预计可新增工业产值约20亿元，推动全县工业发展，通过收益分红、提供就业岗位等方式，增加周边村屯村集体经济及农户收入。","施工期间可为脱贫人口提供就业务工岗位。同时为园区全面投入使用创造条件，施工期间可为脱贫人口提供就业务工岗位，园区全面投入使用预计提供就业岗位3000个以上，同时通过租赁标准厂房进行收益分红，拉动周边村屯集体经济收入约200万元。"]
[248,"程村乡","泗里村","三江侗族自治县程村工业园道路建设项目","产业发展","新建","建设长50米，宽8米的工业园区道路。","2025年1月-2025年12月",30,20,null,20,null,72,98,108976,404665,28942,123502,6094,26420,"科工贸局","科工贸局","完成长50米，宽8米的工业园区道路建设。园区全面投入使用后预计可新增工业产值约20亿元，推动全县工业发展，通过收益分红、提供就业岗位等方式，增加周边村屯村集体经济及农户收入。","施工期间可为脱贫人口提供就业务工岗位。同时为园区全面投入使用创造条件，施工期间可为脱贫人口提供就业务工岗位，园区全面投入使用预计提供就业岗位3000个以上，同时通过租赁标准厂房进行收益分红，拉动周边村屯集体经济收入约200万元。"]
[249,"程村乡","泗里村","三江侗族自治县生态产业园区食品冻库","产业发展","新建","于生态产业园内建设食品冻库。","2025年1月-2025年12月",150,30,null,30,null,72,98,108976,404665,28942,123502,6094,26420,"科工贸局","科工贸局","完成生态产业园内食品冻库建设。园区全面投入使用后预计可新增工业产值约20亿元，推动全县工业发展，通过收益分红、提供就业岗位等方式，增加周边村屯村集体经济及农户收入。","施工期间可为脱贫人口提供就业务工岗位。同时为园区全面投入使用创造条件，施工期间可为脱贫人口提供就业务工岗位，园区全面投入使用预计提供就业岗位3000个以上，同时通过租赁标准厂房进行收益分红，拉动周边村屯集体经济收入约200万元。"]
[250,"程村乡","泗里村","三江侗族自治县产业园区标准厂房","产业发展","新建","项目占地约30亩，新建标准厂房1栋。","2025年1月-2025年12月",1300,275,null,275,null,72,98,108976,404665,28942,123502,6094,26420,"科工贸局","科工贸局","完成建设标准厂房1栋。项目建成后，通过出租标准厂房获得租金收益，用于村集体经济分红。","施工期间可为脱贫人口提供就业务工岗位，厂房建成出租给进驻企业后可提供就业岗位50个以上，同时通过租赁标准厂房进行收益分红，拉动周边村屯集体经济收入。"]
[251,"程村乡","泗里村","三江侗族自治县程村工业园供水提升工程","产业发展","新建","铺设管径100以上，长度5400米的供水管道。","2025年1月-2025年12月",350,75,null,75,null,72,98,108976,404665,28942,123502,6094,26420,"科工贸局","科工贸局","完成管道铺设5400米。园区全面投入使用后预计可新增工业产值约20亿元，推动全县工业发展，通过收益分红、提供就业岗位等方式，增加周边村屯村集体经济及农户收入。","通过完成管道铺设，以供水水费收益进行分红，提升周边村集体经济收入。同时为园区全面投入使用创造条件，施工期间可为脱贫人口提供就业务工岗位，园区全面投入使用预计提供就业岗位3000个以上，同时通过租赁标准厂房进行收益分红，拉动周边村屯集体经济收入约200万元。"]
["县林业局",null,"小计",null,"小计",{"$nulls":3},{"$f":"SUM(I274:I326)","v":6528.419333},{"$f":"SUM(J274:J326)","v":5801},{"$f":"SUM(K274:K326)","v":4930},{"$f":"SUM(L274:L326)","v":871},{"$f":"SUM(M274:M326)","v":0},{"$f":"SUM(N274:N326)","v":21},279,17877,67518,7705,17624,1269,1046]
[252,"全县","各乡镇","2025年林业科技培训项目","产业发展","新建","全县计划组织开展培训24期，按每期50人计，参训人数共1200人，林业科技培训内容包括油茶或“油茶+N”复合经营、八角、杉木等高效栽培技术。","2025年4月－－2025年12月",6,{"$f":"K274+L274+M274","v":6},null,6,null,0,26,26,1200,26,1200,587,587,"三江侗族自治县林业局","三江侗族自治县林业局","培训林农受益农户1200人左右,其中脱贫户、监测户及护林员共1200人左右。","建根据我县《加快特色产业发展  推进三江油茶产业高质量发展工作总体实施方案(2022-2025年)》的通知（三办[2022]49号）文件精神，为加快推进了我县林业产业高质量发展，实现巩固脱贫攻坚成果与全面推进乡村振兴建设有效衔接,受益农户1200户1200人左右,其中脱贫户、监测户及护林员共1200人左右。"]
[253,"古宜镇","马坪村","古宜镇马坪村油茶基地建设项目（新建轨道运输车、晒坪、仓储项目)","产业发展","新建","1.晒坪1个，占地面积441㎡；\n2.仓储房1座，占地面积200㎡；\n3.轨道车6套，总长1295米。","2025年4月－－2025年12月",42.431835,{"$f":"K275+L275+M275","v":40},33,7,null,null,1,201,753,21,94,null,null,"三江侗族自治县林业局","三江侗族自治县林业局","完成新建轨道运输总长2000米5套机组、晒坪900平米、仓储1座200平米。","通过建设92.84亩优质高效油茶示范基地,解决油茶基地园内运输、茶果收储晾晒问题，通过发展油茶产业，提高林地产出，带动农户就近就业，提高农户收入，受益人口201户753人。"]
[254,"八江镇","八江村","八江镇八江村高统油茶基地建设项目（园内单轨运输系统和仓储项目）","产业发展","新建","1.晒坪2个，占地面积400㎡；\n2.仓储房2个，占地面积234㎡；\n3.轨道车22套，总长7619.664米；\n4.混凝土路面宽3.5m，厚度20cm，路基宽4.5m,厚度15cm，道路总长93米，面积325.5平㎡。","2025年4月－－2025年12月",154.565311,{"$f":"K276+L276+M276","v":141},119,22,null,1,null,462,1910,74,274,null,null,"三江侗族自治县林业局","三江侗族自治县林业局","完成新建轨道6000米，轨道车机头30个","通过建设721.6亩优质高效油茶示基地，完善八江村油茶基地建设，改善村民的生产条件，促进产业发展，增加群众收入，受益人口462户1910人。"]
[255,"八江镇","八江村","八江镇金库油茶基地建设项目（新建油茶晒坪和仓储、轨道运输项目）","产业发展","新建","1.晒坪、仓储房1个，占地面积共500㎡；\n2.轨道车12套，总长5955.895米\n3.混凝土路面宽3.5m，厚度20cm，路基宽4.0m,厚度15cm，道路总长67.812米。","2025年4月－－2025年12月",109.058457,99,84,15,null,1,null,141,591,57,228,null,null,"三江侗族自治县林业局","三江侗族自治县林业局","完成油茶晒坪400平方米；仓储1座200平方米，新建单轨道12000米，轨道机组60套","通过建设663.65亩优质高效油茶示范基地，完善八江村产业配套基地设施，促进产业发展，提升群众经济收入，受益人口141户591人。"]
[256,"八江镇","三团村","八江镇三团村石南山油茶基地晒坪和仓储项目","产业发展","新建","1.晒坪3个，占地面积600㎡；\n2.仓储房2座，占地面积117*2=400㎡；\n3.轨道车10套，总长3723.634米；\n4.混凝土路面宽3.5m，厚度20cm，路基宽4.5m,厚度15cm，道路总长0.423公里。","2025年4月－－2025年12月",118.942242,106,91,15,null,1,null,511,1748,99,415,null,null,"三江侗族自治县林业局","三江侗族自治县林业局","完成2000平方水泥晒场、200平方仓储","通过建设690.75亩优质高效油茶示范基地,完善三团村产业配套基地设施，促进产业发展，提升群众经济收入，受益人口511户1748人。"]
[257,"八江镇","岩脚村","八江镇石南山万亩油茶基地建设项目(新建油茶晒坪和仓储、生产步道项目)","产业发展","新建","1.晒坪3个，占地面积647.6㎡；\n2.仓储房2座，占地面积400.4㎡；\n3.轨道车10套，占地面积2630米。\n4.台阶长度880米，占地面积共704㎡\n5.道路硬化长度107.774米，混凝土路面宽3.5m，厚度20cm，路基宽4.5m,厚度10cm。\n6.挡土墙14.5米。","2025年4月－－2025年12月",105.539848,96,81,15,null,null,1,342,1171,118,440,null,null,"三江侗族自治县林业局","三江侗族自治县林业局","完成油茶晒场1200个平方，油茶仓储2座每座10X120X4=480立方","通过建设1378.99亩优质高效油茶示范基地,完善岩脚村产业配套基地设施，促进产业发展，提升群众经济收入，受益人口342户1171人。"]
[258,"八江镇","岩脚村","八江镇石南山油茶基地建设项目（岩脚村达沙屯至石南山林区路修复硬化项目）","产业发展","新建","1.混凝土路面宽4.5m，厚度20cm，路基宽4.5m,厚度15cm，道路总长3.55公里；\n2.C25毛石混凝土挡土墙2幅，总长9米，占地面积14.7㎡；\n3.涵管2道，总长12米。","2025年4月－－2025年12月",279.6432,260,215,45,null,null,1,342,1171,118,440,null,null,"三江侗族自治县林业局","三江侗族自治县林业局","完成林区公路总长3公里，路基宽4.5米，路面宽3.5米，水沟、涵管、错车道","完善岩脚村产业基础设施建设，促进产业发展，提升群众收入，受益人口342户1171人。"]
[259,"八江镇","平善村","八江镇平善村岑选油茶基地晒坪和仓储项目项目","产业发展","新建","1.仓储房2个，占地面积400㎡\n2.晒坪2个，占地面积400㎡；","2025年4月－－2025年12月",{"v":35.185508,"d":"35.1855"},32,32,{"$nulls":3},1,496,1762,152,552,null,null,"三江侗族自治县林业局","三江侗族自治县林业局","完成油茶基地400平方水泥晒场、400平方仓储","通过建设546.43亩优质高效油茶示范基地,完善平善村产业配套基地设施，促进产业发展，提升群众经济收入，受益人口496户1762人。"]
[260,"八江镇","布代村","八江镇布代村孟田屯至岑美松油茶基地林区道路建设项目","产业发展","新建","1.新建产业4.808公里，路面宽3.5米，路基宽4.5米，碎石厚15cm，磨耗层厚2cm；\n2.涵管16道127米","2025年4月－－2025年12月",163.059861,{"$f":"K282+L282+M282","v":147},125,22,null,null,1,336,1570,205,905,null,null,"三江侗族自治县林业局","三江侗族自治县林业局","完成林区砂石公路总长9公里，路基宽4.5米，路面宽3.5米，水沟、涵管、错车道","完善布代村产业基础设施建设，促进产业发展，提升群众收入，受益人口336户1570人。"]
[261,"八江镇","高迈村","八江镇高迈村金竹六海山油茶旅游融合产业园建设项目（园内单轨运输车项目）","产业发展","新建","1.晒坪2个，占地面积442㎡；\n2.仓储房2座，占地面积398㎡；\n3.轨道车20套，总长8385.68米；\n4.混凝土路面宽3.5m，厚度20cm，路基宽4.0m,厚度10cm，道路总长96.789米","2025年4月－－2025年12月",163.268403,148,126,22,null,1,null,909,3416,244,1018,null,null,"三江侗族自治县林业局","三江侗族自治县林业局","完成28条园地单轨运输车线，总长968.26米，配套机组货厢。","通过建设1027.54亩优质高效油茶示范基地,完善旅游融合示范基地，改善村民的生产条件，促进产业发展，增加群众收入，受益人口909户3416人。"]
[262,"八江镇","八江村","八江镇石南山片区示范基地建设项目（杨练坡至高归基地道路硬化）","产业发展","新建","1.路面硬化宽4.5米、厚度20cm，路基宽5米，碎石厚15cm，道路硬化3.647公里。\n2.涵管6道42米；","2025年4月－－2025年12月",273.128161,250,205,45,null,1,null,426,1910,74,277,null,null,"三江侗族自治县林业局","三江侗族自治县林业局","完成产业路硬化3.6公里","完善旅游融合示范基地，改善村民的生产条件，促进产业发展，增加群众收入，受益人口426户1910人。"]
[263,"八江镇","八江村","八江镇石南山片区示范基地建设项目（半归至鸡凹基地道路硬化）","产业发展","新建","1.路面硬化宽4.5米、厚度20cm，路基宽5.0米，碎石厚15cm，道路硬化2.835公里。\n2.涵管10道70米；\n3.C25毛石混凝土挡土墙2幅，总长26米等。","2025年4月－－2025年12月",225.148565,205,172,33,null,1,null,426,1910,74,277,null,null,"三江侗族自治县林业局","三江侗族自治县林业局","完成产业路硬化2.835公里","完善旅游融合示范基地，改善村民的生产条件，促进产业发展，增加群众收入，受益人口426户1910人。"]
[264,"林溪镇","林溪村","林溪镇林溪村科马界茶油基地运输轨道和仓储建设项目","产业发展","新建","1.晒坪1个，占地面积共602㎡；\n2.仓储房1座，占地面积共117㎡；\n3.轨道车15套，总长3669.629米。","2025年4月－－2025年12月",86.606848,77,66,11,null,1,null,956,2568,135,450,null,null,"三江侗族自治县林业局","三江侗族自治县林业局","解决林溪村茶油基地的正常管护工作","通过建设259.56亩优质高效油茶示范基地,改善林溪村茶油基地的正常管护工作，受益人口956户2568人。"]
[265,"林溪镇","美俗村","林溪镇美俗村康岭油茶基地轨道车及仓储建设项目","产业发展","新建","1.晒坪1个，占地面积共130㎡；\n2.仓储房1座，占地面积共117；\n3.轨道车9套，总长2616.349米\n4.混凝土路面宽3.5m，厚度20cm，路基宽4.5m,厚度15cm，道路总长22.390米。","2025年4月－－2025年12月",62.195336,55,48,7,null,null,1,453,1645,75,257,null,null,"三江侗族自治县林业局","三江侗族自治县林业局","完成中寨水牛田油茶基地9000米轨道及配套24台机车的运输系统工程和1500平方米仓储及加工厂房的工程建设。","通过建设201.82亩优质高效油茶示范基地,降低劳动成本，提高劳动成果，对油茶基地高质量发展及示范引领发挥重要作用，带动居家剩余劳动力就业务工，促进周边闲置土地发展油茶产业，促进群众增收，受益人口453户1645人。"]
[266,"林溪镇","美俗村","林溪镇美俗村高冲油茶基地轨道车及仓储、晒坪建设项目","产业发展","新建","1.晒坪1个，占地面积283㎡；\n2.仓储房1座，占地面积117㎡；\n3.轨道车25套，总长2898米。","2025年4月－－2025年12月",84.099941,71,64,7,null,null,1,453,1645,75,257,null,null,"三江侗族自治县林业局","三江侗族自治县林业局","新建轨道车线路2条，轨道长约2000米，配套机车2台，新建仓储加工厂房800平方米，晒坪300平方米，道路硬化9公里","通过建设289.44亩优质高效油茶示范基地,降低劳动成本，提高劳动成果，对油茶基地高质量发展及示范引领发挥重要作用，带动居家剩余劳动力就业务工，促进周边闲置土地发展油茶产业，促进群众增收，受益人口453户1645人。"]
[267,"林溪镇","高秀村","林溪镇高秀村马哨屯务命加祥油茶产业基地轨道路运输和仓储项目","产业发展","新建","1.晒坪、仓储房各1个，占地面积共200㎡；\n2.轨道车6套，总长1906.467米","2025年4月－－2025年12月",47.071475,42,36,6,null,null,1,418,1648,140,557,null,null,"三江侗族自治县林业局","三江侗族自治县林业局","完成运输轨道1000米铺设，及配套设施建设。","通过建设225.6亩优质高效油茶示范基地,解决高秀村马哨屯务命加祥油茶产业基地地轨运输问题，改善产业基础设施建设，提高油茶生产效率，受益人口418户1648人。"]
[268,"林溪镇","平岩村","林溪镇平岩村林桃油茶基地运输轨道车和仓储建设项目","产业发展","新建","1.晒坪2个，占地面积共1010㎡；\n2.仓储房2座，占地面积共234㎡；\n3.轨道车49套，总长12572.283米。","2025年4月－－2025年12月",249.285495,225,184,41,null,1,null,975,3873,205,832,null,null,"三江侗族自治县林业局","三江侗族自治县林业局","解决平岩村林桃油茶基地的正常管护工作。","通过建设833.86亩优质高效油茶示范基地,改善平岩村林桃油茶基地的管扶工作，受益人口975户3873人。"]
[269,"林溪镇","平铺村","林溪镇平铺村黑石山油茶基地储仓、晒坪、轨道建设项目","产业发展","新建","1.晒坪2个，占地面积共690.8㎡；\n2.仓储房2座，占地面积共400㎡；\n3.轨道车36套，总长7388.463米。","2025年4月－－2025年12月",168.486963,151,129,22,null,1,null,845,3345,131,519,null,null,"三江侗族自治县林业局","三江侗族自治县林业局","新建轨道车线路6条，轨道长约3000米，配套机车6台，新建仓储加工厂房100平方米，晒坪800平方米","通过建设885.49亩优质高效油茶示范基地,降低劳动成本，提高劳动成果，对油茶基地高质量发展及示范引领发挥重要作用，带动居家剩余劳动力就业务工，促进周边闲置土地发展油茶产业，促进群众增收，受益人口845户3345人。"]
[270,"斗江镇","东坪村","斗江镇东坪村毛竹基地建设项目（新建宇朝屯至中堂山林区路）","产业发展","新建","新建林区砂石路3.908公里，路面宽3.5米，路基宽4.5米，水沟3.908km，涵管21座、错车道12道,新建盖板涵1座。","2025年4月－－2025年12月",130.8871,119,100,19,null,1,null,65,206,5,16,null,null,"三江侗族自治县林业局","三江侗族自治县林业局","完成林区砂石路4.5公里建设","解决该村毛竹基地交通困难问题，方便毛竹原材料出山，减少运输成本，提高毛竹基地管护水平，增加林农收入，受益人口65户206人。"]
[271,"斗江镇","牙林村","斗江镇牙林村毛竹基地建设项目（新建罗竹冲至林场林区路）","产业发展","新建","新建林区砂石路4.548公里，路面宽3.5米，路基宽4.5米，水沟4.548km，盖板涵2座，涵管16座、回车场1处，错车道14道。","2025年4月－－2025年12月",142.3203,127,108,19,null,1,null,85,350,12,40,null,null,"三江侗族自治县林业局","三江侗族自治县林业局","完成林区砂石路4公里建设","解决该村毛竹基地交通困难问题，方便毛竹原材料出山，减少运输成本，提高毛竹基地管护水平，增加林农收入，受益人口85户350人。"]
[272,"斗江镇","滩底村","斗江镇滩底村毛竹基地建设项目（新建从旦冲寨边到牛坡林区路）","产业发展","新建","新建林区砂石路4.588公里，路面宽3.5米，路基宽4.5米，水沟4.588km，涵管15座、盖板涵2座，错车道13道。","2025年4月－－2025年12月",169.1795,152,130,22,null,1,null,70,210,8,33,null,null,"三江侗族自治县林业局","三江侗族自治县林业局","完成林区砂石路5公里建设","解决该村毛竹基地交通困难问题，方便毛竹原材料出山，减少运输成本，提高毛竹基地管护水平，增加林农收入，受益人口70户210人。"]
[273,"斗江镇","思欧村","斗江镇思欧村田埂山油茶基地建设项目（新建轨道车和仓储项目）","产业发展","新建","轨道车线路13条，共计5565.41m，仓储面积167.44平方米，晒坪1260平方米，道路硬化550平方米","2025年4月－－2025年12月",139.044058,125,106,19,null,null,1,458,1392,123,407,null,null,"三江侗族自治县林业局","三江侗族自治县林业局","完成单轨运输车8套总长8000米、仓储1座200平米建设。","通过建设437亩优质高效油茶示范基地,解决油茶基地内肥料、茶果运输困难问题，提高基地管护水平，减少人工成本，提高产出，带动周边林农就近就业，受益人口458户1392人。"]
[274,"斗江镇","白言村","斗江镇白言村竹子产业基地新建产业路（九江屯大力冲）","产业发展","新建","新建林区砂石路4.8公里，路面宽3.5米，路基宽4.5米，圆涵管22道、滚水坝1道、盖板涵2道、错车道16道、挡土墙48米。","2025年4月－－2025年12月",190.3454,172,146,26,null,1,null,93,346,6,20,null,null,"三江侗族自治县林业局","三江侗族自治县林业局","完成林区砂石路建设7公里","解决该村竹林基地交通困难问题，方便竹林原材料出山，减少运输成本，提高竹林基地管护水平，增加林农收入，受益人口93户346人。"]
[275,"丹洲镇","合桐村","丹洲镇合桐村龙万山油茶产业示范园茶果仓储、晒坪建设项目","产业发展","新建","1.晒坪1个，占地面积共464.2㎡；\n2.仓储房2座，占地面积共601㎡。","2025年4月－－2025年12月",56.046241,50,43,7,null,1,null,209,516,2,9,0,null,"三江侗族自治县林业局","三江侗族自治县林业局","完善产业项目配套设施建设，方便生产作业。","通过建设200亩优质高效油茶示范基地,解决贫困村与非贫困村产业振兴乡村问题，改善产业生产基础设施，受益人口209户516人。"]
[276,"丹洲镇","红路村","丹洲镇红路村清水岭林区产业路修复工程","产业发展","新建","挡墙7幅，总长164米","2025年4月－－2025年12月",53.9105,49,42,7,{"$nulls":3},1,512,1871,67,223,null,"三江侗族自治县林业局","三江侗族自治县林业局","修复林区产业路，新建挡土墙长200米，高2.5米，厚1米，清理路基塌方，两处涵管冲毁修复，。","修复村清水岭林区产业路水毁路段，保持该林区路正常通行，方便群众运输原材料出山，增加收入，受益人口512户1871人。"]
[277,"丹洲镇","板江社区","丹洲镇板江社区麻江屯枫木冲竹木基地林区道路建设项目","产业发展","新建","1.新建林区砂石路1.523公里，路面宽3.5米，磨耗层厚2cm；路基宽4.5米，碎石厚15cm，占地7331.337㎡；\n2.涵管8道61米等。","2025年4月－－2025年12月",50.771437,47,40,7,null,1,null,50,154,4,20,null,null,"三江侗族自治县林业局","三江侗族自治县林业局","完成林区砂石路建设1.5公里","解决该村竹木基地交通困难问题，方便竹木原材料出山，减少运输成本，提高竹木基地管护水平，增加林农收入，受益人口50户154人。"]
[278,"独峒镇","高亚村","独峒镇高亚村\"信劳\"油茶示范基地运输轨道建设项目","产业发展","新建","1.晒坪1个，占地面积共417㎡；\n2.仓储房1座，占地面积共200㎡；\n3.轨道车6套，总长1519米。","2025年4月－－2025年12月",60.24324,53,46,7,null,null,1,null,445,1680,95,350,null,"三江侗族自治县林业局","三江侗族自治县林业局","完成油茶基地轨道运输长1.5千米及配套设施。","通过建设288.16亩优质高效油茶示范基地,改善高亚村的生产生活条件，打造油茶示范基地250亩，促进产业发展，油茶基地每亩年增收300元以上受益群众445户1680人。"]
[279,"独峒镇","岜团村","独峒镇岜团村桐木山示范基地建设项目（新建轨道运输车、仓储、晒坪项目）","产业发展","新建","1.晒坪1个，占地面积共500㎡；\n2.仓储房1座，占地面积共200㎡；\n3.轨道车10套，总长2185米。","2025年4月－－2025年12月",60.051833,53,46,7,null,null,1,110,440,42,156,0,0,"三江侗族自治县林业局","三江侗族自治县林业局","完成油茶基地轨道运输、仓储、晒坪建设。","通过建设465.72亩优质高效油茶示范基地,改善岜团村的生产生活条件，促进产业发展，受益人口110户440人。"]
[280,"同乐乡","岑甲村","同乐乡岑甲村加列屯至下良柳油茶产业基地新建产业路工程","产业发展","新建","1.新建林区砂石路1.326公里，路面宽3.5米，路基宽4.5米，碎石厚15cm，磨耗层厚2cm；\n2.涵管6道43米等。","2025年4月－－2025年12月",36.652036,33,28,5,null,null,1,735,2858,282,1176,null,null,"三江侗族自治县林业局","三江侗族自治县林业局","完成产业路开挖2公里。方便735户2858人开展产业活动。","完善产业基地配套设施，扩大产业规模，促进产业提质增效。增加农户收入，壮大村集体经济。带动735户2858人开展产业活动。"]
[281,"良口乡","大滩村","良口乡大滩村油茶、杉竹基地建设项目（新建归化至井大林区路项目）","产业发展","新建","1.新建林区砂石路7.015公里，路面宽3.5米，路基宽4.5米，碎石厚15cm，磨耗层厚2cm；\n2.涵管14道98米等。","2025年4月－－2025年12月",277.166222,250,205,45,null,null,1,353,1482,95,380,31,148,"三江侗族自治县林业局","三江侗族自治县林业局","新建产业路长7公里、宽4.5米。解决大滩村民通车运输农产品问题，改善村基础设施，方便353户1482人高质量发展产业。","解决大滩村村民通车运输农产品问题，改善村基础设施，方便353户1482人高质量发展产业。"]
[282,"良口乡","产口村","良口乡产口村寨枝、长冲屯毛竹基地建设项目（新建长冲至寨枝林区路）","产业发展","新建","1.新建林区砂石路2.775公里，路面宽3.5米，磨耗层厚2cm；路基宽4.5米，碎石厚15cm；\n2.涵管9道63米等。","2025年4月－－2025年12月",60.184525,53,46,7,null,0,1,489,1978,83,349,53,204,"三江侗族自治县林业局","三江侗族自治县林业局","完成林区砂石路3.5公里建设","解决该村毛竹基地交通困难问题，方便毛竹原材料出山，减少运输成本，提高毛竹基地管护水平，增加林农收入，受益人口489户1978人。"]
[283,"良口乡","滚良村","良口乡滚良村竹林基地建设项目（新建良开屯广登至务岺至高归松林区路）","产业发展","新建","1.新建林区砂石路1.750公里，路面宽3.5米，磨耗层厚2cm；路基宽4.5米，碎石厚15cm；\n2.涵管6道42米等。","2025年4月－－2025年12月",40.34603,36,31,5,null,0,1,472,1974,190,806,18,79,"三江侗族自治县林业局","三江侗族自治县林业局","完成林区砂石路3.5公里建设","解决该村竹林基地交通困难问题，方便竹林原材料出山，减少运输成本，提高竹林基地管护水平，增加林农收入，受益人口472户1974人。"]
[284,"良口乡","布糯村","良口乡布糯村布勾旧寨至乌鸦油茶基地至高归倒产业道路硬化项目","产业发展","新建","修复、硬化路面长3.348公里、路面宽3.5米、路基4.5米，合理设置涵洞、边沟、错车道等。","2025年4月－－2025年12月",221.8362,204,171,33,null,null,1,460,2487,167,983,null,null,"三江侗族自治县林业局","三江侗族自治县林业局","完成修复、硬化林区路3公里。","解决该村油茶、杉、竹基地交通困难问题，方便原材料出山，减少运输成本，提高基地管护水平，增加林农收入，受益人口460户2487人。"]
[285,"洋溪乡","红岩村","洋溪乡红岩村小兵屯加赖至塘老产业基地新建产业路项目","产业发展","新建","1.新建林区砂石路2.534公里，路面宽3.5米，路基宽4.5米，碎石厚15cm，磨耗层厚2cm；\n2.涵管4道28米等。","2025年4月－－2025年12月",83.487487,75,64,11,null,null,1,119,548,56,231,null,null,"三江侗族自治县林业局","三江侗族自治县林业局","建设新的产业路长3公里","改善村民的生活件，促进产业运输方便，方便群众出行，受益人口119户548人。"]
[286,"洋溪乡","安马村","洋溪乡安马村岑夜屯产业路建设工程项目","产业发展","新建","1.新建林区砂石路5.729公里，路面宽3.5米，路基宽4.5米，碎石厚15cm，磨耗层厚2cm；\n2.涵管23道161米等。","2025年4月－－2025年12月",135.545769,{"$f":"K308+L308+M308","v":123},104,19,null,null,1,456,2059,241,1031,null,null,"三江侗族自治县林业局","三江侗族自治县林业局","完成林区砂石路建设6公里","改善安马村村级产业路道路通车问题，改善贫困村基础设施的生活件，促进产业运输方便，方便群众出行，受益人口456户2059人。"]
[287,"老堡乡","老堡村","老堡乡老堡村毛竹基地建设项目（新建汪长冲至月亮山林区公路）","产业发展","新建","1.新建产业3.329公里，路面宽3.5米，路基宽4.5米，碎石厚15cm，磨耗层厚2cm；\n2.涵管14道112米","2025年4月－－2025年12月",95.882589,84,73,11,null,1,null,87,378,27,103,null,null,"三江侗族自治县林业局","三江侗族自治县林业局","完成老堡村马安屯对门坡竹林地内6000米生产道路建设，运输及日常管护。","降低林产品运输成本，提高产业效益，对竹林地高质量发展及示范引领发挥重要作用，带动居家剩余劳动力就业务工，促进群众增收，受益人口87户378人。"]
[288,"老堡乡","漾口村","老堡乡漾口村杉木、油茶产业基地新建产业路项目（平辽至洋洞发烂山）","产业发展","新建","1.新建产业7.027公里，路面宽3.5米，路基宽4.5米，碎石厚15cm，磨耗层厚2cm；\n2.涵管24道168米","2025年4月－－2025年12月",275.891461,250,210,40,null,1,null,469,1682,60,417,null,null,"三江侗族自治县林业局","三江侗族自治县林业局","完成林区砂石路建设7公里","解决该村竹木基地交通困难问题，方便竹木原材料出山，减少运输成本，提高竹木基地管护水平，增加林农收入，受益人口469户1682人。"]
[289,"程村乡","泗里村","程村乡泗里村汾水泠软枝油茶产业基地建设项目（新建轨道车项目）","产业发展","新建","轨道车线路7条，共计1775.52m，晒坪310平方米","2025年4月－－2025年12月",30.792954,28,22,6,null,null,1,153,628,31,96,null,null,"三江侗族自治县林业局","三江侗族自治县林业局","完成建设运输轨道车3条2000米，配套牵引机具、货厢等。","通过建设74亩优质高效油茶示范基地,改善泗里村的生产生活条件，促进产业发展，方便群众出行，受益人口153户628人。"]
[290,"程村乡","大树村","程村乡大树村佳林屯屋背岗产业路工程项目","产业发展","新建","新建林区砂石路2.437公里，路面宽3.5米，路基宽4.5米，水沟2.437km，涵管11座，错车道8道，路口挡土墙一幅长54米等。","2025年4月－－2025年12月",76.7805,70,59,11,null,null,224,759,41,147,{"$nulls":3},"三江侗族自治县林业局","三江侗族自治县林业局","完成新建屋背岗产业路，长3公里，及配套设施建设。","提升人居环境，改善群众出行条件，带动产业发展，受益人口224户759人。"]
[291,"梅林乡","新民村中寨屯","梅林乡新民村中寨屯产业路加宽硬化项目","产业发展","新建","1.道路硬化4.849公里。路面硬化宽3.5米，厚度20cm；路基宽4.5米，碎石厚15cm；\n2.涵管14道98米等。","2025年4月－－2025年12月",367.19753,335,270,65,null,null,1,377,1612,90,399,null,null,"三江侗族自治县林业局","三江侗族自治县林业局","改善村基础设施，方便377户1612人出行","促进产业发展，方便群众出行，受益人口377户1612人。"]
[292,"和平乡","六溪村","和平乡六溪村上花屯牛岭油茶基地配套产业路项目","产业发展","新建","新建林区砂石路2.149公里，路面宽3.5米，路基宽4.5米，圆涵管8道、滚水坝1道、错车道8道。","2025年4月－－2025年12月",63.7758,58,48,10,null,1,null,543,1743,62,223,null,null,"三江侗族自治县林业局","三江侗族自治县林业局","完成林区砂石路建设3.2公里","解决该油茶基地交通困难问题，方便林产品原材料出山，减少运输成本，提高基地管护水平，增加林农收入，受益人口543户1743人。"]
[293,"三江县","和平乡","和平乡大寨村三湘屯拉笼冲产业路项目","产业发展","新建","新建林区砂石路2.165公里，路面宽3.5米，路基宽4.5米，错车道、水沟、涵管等。","2025年4月－－2025年12月",73.9108,67,56,11,null,1,null,253,793,37,134,null,null,"三江侗族自治县林业局","三江侗族自治县林业局","完成林区砂石路建设3公里","解决该村竹木基地交通困难问题，方便竹木原材料出山，减少运输成本，提高竹木基地管护水平，增加林农收入，受益人口253户793人。"]
[294,"高基乡","拉旦村","高基乡拉旦村中寨屯水牛田油茶基地轨道车及仓储建设项目","产业发展","新建","新建22条山地单轨运输车线和两座临时仓库，共计长6404米。","2025年4月－－2025年12月",155.453181,140,118,22,null,null,1,136,450,28,145,7,28,"三江侗族自治县林业局","三江侗族自治县林业局","完成油茶基地轨道运输、仓储、晒坪建设。","通过建设780亩优质高效油茶示范基地,降低劳动成本，提高劳动成果，对油茶基地高质量发展及示范引领发挥重要作用，带动居家剩余劳动力就业务工，促进周边闲置土地发展油茶产业，促进群众增收，受益人口136户450人。"]
[295,"高基乡","冲干村","高基乡冲干村毛竹基地建设项目（新建平见雨岭河往下100米路口连接牛坡基地林区路）","产业发展","新建","新建林区砂石路4.219公里，路面宽3.5米，路基宽4.5米，新建漫水桥3座、涵管25道等。","2025年4月－－2025年12月",163.913726,148,124,24,null,1,0,43,170,13,54,null,null,"三江侗族自治县林业局","三江侗族自治县林业局","新建路面长5公里、路面宽4.5米，及配套设施建设。","解决平见屯及冲干屯合计竹林2000余亩，杉树2500余亩的出山困难问题，改善竹木出山的条件，有效增加农民收入，受益人口43户170人。"]
[296,"高基乡","冲干村","高基乡冲干村平见屯放牛坡油茶基地轨道运输系统和仓储建设项目","产业发展","新建","新建单轨运输车15套，总长4452米，仓储1座112.64平米，晒坪880平方米","2025年4月－－2025年12月",115.28912,104,87,17,null,1,null,43,165,13,54,null,null,"三江侗族自治县林业局","三江侗族自治县林业局","完成平见屯放牛坡油茶基地仓储项目1000平方米","通过建设492亩优质高效油茶示范基地,解决平见屯放牛坡油茶储存问题，受益人口43户165人。"]
[297,"高基乡","江口村","高基乡江口村毛竹基地建设项目（新建邱里至宇蒙林区路）","产业发展","新建","新建林区砂石路4条共计2.29公里，路面宽3.5米，路基宽4.5米，新建盖板桥4座，涵管11道等。","2025年4月－－2025年12月",91.054609,82,69,13,null,null,1,198,770,37,164,null,null,"三江侗族自治县林业局","三江侗族自治县林业局","完成硬化路面长5公里，及配套设施建设。","解决贫困村与非贫困村屯级道路通车问题，改善贫困村基础设施，方便198户770人出行水平。"]
[298,"高基乡","弓江村","高基乡弓江村毛竹基地建设项目（新建下宇苗屯平见坡至老寨林区路）","产业发展","新建","新建林区砂石路2条共计3.886公里，路面宽3.5米，路基宽4.5米，新建长20.2米漫水桥1座，新建盖板桥2座，涵管31道等。","2025年4月－－2025年12月",153.272211,139,114,25,null,null,1,39,128,22,70,null,null,"三江侗族自治县林业局","三江侗族自治县林业局","完成项目新开长3.2公里，及配套设施建设。","解决脱贫村竹子出山难问题，便于发展产业，增加村民收入，受益人口39户128人。"]
[299,"高基乡","弓江村","高基乡弓江村灯笼坡油茶基地轨道运输系统和仓储建设项目","产业发展","新建","新建单轨运输车8套总长2284米，仓储1座112.64平米，晒坪670平方米","2025年4月－－2025年12月",66.469525,60,50,10,null,null,1,19,66,7,23,null,null,"三江侗族自治县林业局","三江侗族自治县林业局","完成硬新建单轨运输车6套总长1000米，仓储1座200平米。","通过建设184亩优质高效油茶示范基地,解决脱贫村油茶基地道路通车问题，改善脱贫村基础设施，方便了200亩油茶林管护，受益人口19户66人。"]
[300,"良口乡","产口村","良口乡产口村长冲屯至坡底毛竹基地产业路","产业发展","新建","新建林区砂石路3公里，路面宽3.5米，路基宽4.5米，路面铺砂石0.2米内排水沟3公里","2025年4月－－2025年12月",108,76,76,{"$nulls":3},1,489,1989,88,364,null,null,"三江侗族自治县林业局","三江侗族自治县林业局","完成林区砂石路3公里建设","解决该村毛竹基地交通困难问题，方便毛竹原材料出山，减少运输成本，提高毛竹基地管护水平，增加林农收入。受益人口489户1989人。"]
[301,"和平乡","和平村","和平乡和平村江脑屯棉山油茶基地产业路修复硬化项目","产业发展","新建","硬化路面长2.746公里、路面宽3.5米、路基4.5米，合理设置涵洞、边沟、错车道等","2025年4月－－2025年12月",165,117,117,{"$nulls":3},1,400,1560,100,376,null,null,"三江侗族自治县林业局","三江侗族自治县林业局","完成修复硬化路面长2.7公","解决油茶种植户基地产业路，提高群众发展产业的信心，直接受益69户198人。"]
[302,"程村乡","头坪村","程村乡头坪村竹林基地建设项目(新建头坪村石赖山林区路)","产业发展","新建","新建林区砂石公路总长3公里，路基宽4.5米，路面宽3.5米，水沟、涵管、错车道等。","2025年4月－－2025年12月",108,76,76,{"$nulls":3},1,650,2400,37,139,null,null,"三江侗族自治县林业局","三江侗族自治县林业局","完成林区砂石路3公里建设","解决该村毛竹基地交通困难问题，方便毛竹原材料出山，减少运输成本，提高毛竹基地管护水平，增加林农收入。受益人口650户2400人。"]
[303,"程村乡","泗里村","程村乡泗里村竹林基地建设项目(新建泠槽屯滩脑山至小楠山林区路)","产业发展","新建","新建林区砂石公路总长3公里，路基宽4.5米，路面宽3.5米，水沟、涵管、错车道等。","2025年4月－－2025年12月",100,70,70,{"$nulls":3},1,138,575,8,26,null,null,"三江侗族自治县林业局","三江侗族自治县林业局","完成林区砂石路3公里建设","解决该村毛竹基地交通困难问题，方便毛竹原材料出山，减少运输成本，提高毛竹基地管护水平，增加林农收入。受益人口138户575人。"]
[304,"程村乡","泗里村","程村乡泗里村竹林基地建设项目(新建泠槽屯桐吾山林区路)","产业发展","新建","新建林区砂石公路总长1公里，路基宽4.5米，路面宽3.5米，水沟、涵管、错车道等。","2025年4月－－2025年12月",36,25,25,{"$nulls":3},1,138,575,8,26,null,null,"三江侗族自治县林业局","三江侗族自治县林业局","完成林区砂石路1公里建设","解决该村毛竹基地交通困难问题，方便毛竹原材料出山，减少运输成本，提高毛竹基地管护水平，增加林农收入。受益人口138户575人。"]
["县文体广旅局",null,"小计",null,"小计",{"$nulls":3},{"$f":"SUM(I328:I331)","v":1800},{"$f":"SUM(J328:J331)","v":420},{"$f":"SUM(K328:K331)","v":0},{"$f":"SUM(L328:L331)","v":420},{"$f":"SUM(M328:M331)","v":0},{"$f":"SUM(N328:N331)","v":99},74,61389,305247,28891,124148,6092,26254]
[305,"全县",null,"文创产品开发与文化旅游产业品牌宣传","产业发展","新建","1.围绕三江特色非遗、独有农耕文化、特色旅游文化以及名优农特产品设计文创产品，通过评选出优秀设计作品，并推动获奖作品落地生产，与本地企业、非遗传承人合作，将设计转化为市场化产品，通过线上线下渠道销售，增收收入。\n2.完善三江文旅新媒体矩阵，包括微信公众号、抖音、快手、小红书等平台，定期发布文旅资讯、民俗文化、旅游攻略等内容；制作高质量短视频、直播等内容，展示侗族文化、非遗技艺、乡村风光等，吸引年轻群体关注；与本地网红、非遗传承人合作，打造“侗乡文旅推荐官”团队，培训一批本地文旅推荐官，包括通过短视频、直播等形式推广三江文旅资源，到客源地进文化旅游宣传推广，提升三江文化旅游品牌影响力。 ","2025年4月－2025年12月",200,{"$f":"K328+L328+M328","v":50},null,50,null,98,72,60000,300000,28600,123000,6092,26254,"文体广旅局","文体广旅局","通过文创产品开发、文旅产业品牌宣传。提升三江旅游品牌知名度，吸引游客，促进产业发展","通过宣传展销提高我县知名度，促进消费，带动群众增收致富。"]
[306,"八江镇","布央村","布央仙人山景区旅游业态打造项目","产业发展","新建","布央仙人山露营地泳池150平方米、茶旅研学基地建设300平方米、民宿建设160平方米、观云阁长廊改建240平方米。","2025年4月－2025年12月",600,{"$f":"K329+L329+M329","v":130},null,130,null,null,1,632,2361,144,558,null,null,"文体广旅局","文体广旅局","通过对景区旅游业态项目的打造进一步提升景区的旅游业态，满足游客的需求，增加游客量带动群众增收致富。","1.收入分红。通过第三方租赁运营的方式每年向村集体经济分红金额。\n2.就业带动。项目施工时采用本地村民施工提供就业岗位，项目建成后直接提供稳定就业岗位25人。\n3.产业带动。带动周边村庄家禽、蔬菜、水果养殖种植户一批，受益人口约1000人。\n4.充分利用资源，实施农文旅融合发展，通过旅游+农业+研学，带动村民发展茶叶、家禽养殖、蔬菜种植等，受益人口约2000人。"]
[307,"高基乡","桐叶村","三江县桐瑶水韵民宿康养项目","产业发展","新建","项目占地面积4600平方米，新建民宿建筑面积1800平方米，其余配套设施及步道、绿化等。","2025年4月－2025年12月",850,{"$f":"K330+L330+M330","v":200},null,200,null,null,1,261,1057,70,299,0,0,"文体广旅局","文体广旅局","依托生态资源建设民宿群，发展生态旅游、康养旅游，吸引游客深度游，增加游客过夜率和消费频次，带动产业链延伸，增加经济收入。","1.收入分红。通过第三方租赁运营的方式每年向村集体经济分红金额。\n2.就业带动。项目施工时采用本地村民施工提供就业岗位，项目建成后直接提供稳定就业岗位15人。\n3.产业带动。带动周边村庄家禽、蔬菜、水果养殖种植户一批，受益人口约600人。\n4.充分利用资源，实施农文旅融合发展，通过旅游+农业+研学，带动村民发展水果种植、家禽养殖、蔬菜种植等，受益人口约1000人。"]
[308,"老堡乡","老堡村","三江口生态旅游区旅游业态打造项目","产业发展","新建","新建三江口永兴洲观景平台150平方米，三江口永兴洲露营基地300平方米.","2025年4月－2025年12月",150,{"$f":"K331+L331+M331","v":40},null,40,null,1,null,496,1829,77,291,null,null,"文体广旅局","文体广旅局","通过对景区旅游业态项目的打造进一步提升景区的旅游业态，满足游客的需求，增加游客量带动群众增收致富。","1.收入分红。通过第三方租赁运营的方式每年向村集体经济分红金额。\n2.就业带动。项目施工时采用本地村民施工提供就业岗位，项目建成后直接提供稳定就业岗位25人。\n3.产业带动。带动周边村庄家禽、蔬菜、水果养殖种植户一批，受益人口约1000人。\n4.充分利用资源，实施农文旅融合发展，通过旅游+农业+研学，带动村民发展茶叶、家禽养殖、蔬菜种植等，受益人口约2000人。"]
["县市场监督管理局",{"$nulls":3},"小计",{"$nulls":3},{"$f":"SUM(I333)","v":80},{"$f":"SUM(J333:J333)","v":80},{"$f":"SUM(K333:K333)","v":0},{"$f":"SUM(L333:L333)","v":80},{"$f":"SUM(M333:M333)","v":0},{"$f":"SUM(N333:N333)","v":0},0,0,0,0,0,0,0]
[309,"全县",null,"三江侗族自治县特色产业地理标志品牌保护运用及宣传推广项目","产业发展","新建","1.夯实地理标志证明商标的申报基础，完成“三江茶”“三江打油茶”在的论文撰写。                                 2.完成“三江茶”“三江打油茶”地理标志证明商标的前期申报规划，指导、培育与调研等工作。                          3.完成商标品牌标识的创意设计与产品包装的策划设计。                      4.开展地理标志产品专项检查2次，完成“三江茶”抽检8个批次。                        5.新增地理标志专用标志用标企业6家。                           6.组织市场主体参加商标（地理标志）知识专题培训2期，邀请知识产权专业人士到10家企业开展知识产权入企服务活动。7.完成上市茶叶抽样检测。","2025年4月－2025年12月",80,{"$f":"K333+L333+M333","v":80},null,80,{"$nulls":9},"三江侗族自治县市场监督管理局","三江侗族自治县市场监督管理局","1.完成“三江茶”“三江打油茶”论文各1篇，并发表在三江县志、年鉴或《中国茶叶》等权威刊物上，夯实地理标志申报基础。        2.开展“三江茶”地理标志专项检查，规范专用标志的印刷和使用，完成“三江茶”抽检8个批次。   3.设计“三江茶““三江打油茶”文字或图形商标，同时做好产品包装的策划设计。                4.组织市场主体参加商标（地理标志）知识专题培训2期，邀请知识产权专业人士到10家企业开展知识产权入企服务活动，全面提升市场主体商标品牌意识。通过打造区域公共品牌，以地理标志赋能乡村振兴，不断提升我县特色产品在市场的竞争力和品牌价值，推行“地理标志+龙头企业+合作社+农户”运行模式，从而带动农户增收致富。","通过提升“三江 茶\"\"三江茶油”的品牌影响力，促进“两茶”产业高质量发展，促进农民增收。"]